Workbook

Sheet Hoja4 (hidden)
A1: CLASIFICACIÓN DE LA INFORMACIÓN | B1: Pública
B3: Datos
A4: DEPENDENCIA | B4: Cantidad contratos | C4: % del Total
A5: ESTRATEGIA | B5: 4 | C5: 0.02985074627
A6: FINANCIERA Y ADMON | B6: 25 | C6: 0.1865671642
A7: NEGOCIOS | B7: 4 | C7: 0.02985074627
A8: OPERACIONES | B8: 3 | C8: 0.0223880597
A9: OTI | B9: 50 | C9: 0.3731343284
A10: RIESGOS | B10: 1 | C10: 0.007462686567
A11: SECRETARIA GENERAL Y JURIDICA | B11: 43 | C11: 0.3208955224
A12: TÉCNICA | B12: 4 | C12: 0.02985074627
A13: Total general | B13: 134 | C13: 1
A16: DEPENDENCIA | B16: CANTIDAD CONTRATOS | C16: % DEL TOTAL
A17: OTI | B17: 50 | C17: 0.3731343284
A18: SECRETARIA GENERAL Y JURIDICA | B18: 43 | C18: 0.3208955224
A19: FINANCIERA Y ADMON | B19: 25 | C19: 0.1865671642
A20: ESTRATEGIA | B20: 4 | C20: 0.02985074627
A21: NEGOCIOS | B21: 4 | C21: 0.02985074627
A22: TÉCNICA | B22: 4 | C22: 0.02985074627
A23: OPERACIONES | B23: 3 | C23: 0.0223880597
A24: RIESGOS | B24: 1 | C24: 0.007462686567
A25: TOTAL GENERAL | B25: 134 | C25: 1

Sheet Hoja3 (hidden)
I1: DEPENDENCIA | J1: Planeado | K1: Contratado | L1: %
A2: DEPENDENCIA | B2: VALOR | C2: PRESUPUESTO CONTRATADO | D2: % | I2: ESTRATEGIA | J2: 1172306306 | K2: 1172306306 | L2: =K2/J2 -> 1
A3: OFICINA DE ESTRATEGIA Y DESARROLLO | B3: 694295625 | I3: FINANCIERA Y ADMON | J3: 8752267945 | K3: 5335356771 | L3: =K3/J3 -> 0.6095970558
A4: VICEPRESIDENCIA FINANCIERA Y ADMINISTRATIVA | B4: 8752267945 | C4: 3088070598 | D4: =C4/B4 -> 0.3528309025 | I4: NEGOCIOS | J4: 1.336003318e+10 | K4: 12691995310 | L4: =K4/J4 -> 0.9499972894
A5: VICEPRESIDENCIA DE NEGOCIOS | B5: 7381429080 | C5: 12227414358 | D5: =C5/B5 -> 1.656510443 | I5: OPERACIONES | J5: 38366883401 | K5: 31119191770 | L5: =K5/J5 -> 0.8110951167
A6: VICEPRESIDENCIA DE OPERACIONES | B6: 38366883401 | C6: 31119191770 | D6: 0.8110951167 | I6: OTI | J6: 1.63261224e+10 | K6: 9124308413 | L6: =K6/J6 -> 0.5588778639
A7: OFICINA DE TECNOLOGIAS DE LA INFORMACIÓN | B7: 1.63261224e+10 | C7: 201210990 | D7: 0.01232448129 | I7: PYP | J7: 120411187909 | K7: 99075259486 | L7: 0.8228077574
A8: VICEPRESIDENCIA DE PROMOCIÓN Y PREVENCIÓN | B8: 120411187909 | C8: 81402850713 | D8: 0.6760405916 | I8: RIESGOS | J8: 68348301 | K8: 68348301 | L8: 1
A9: OFICINA DE GESTIÓN INTEGRAL DE RIESGOS | B9: 68348301 | D9: 0 | I9: SECRETARIA GENERAL Y JURIDICA | J9: 5599124510 | K9: 4399646576 | L9: 0.7857740202
A10: SECRETARIA GENERAL Y JURIDICA | B10: 6077135191 | C10: 7043728834 | D10: 1.159054162 | I10: TÉCNICA | J10: 1132517831 | K10: 1125458561 | L10: 0.9937667471
A11: VICEPRESIDENCIA TÉCNICA | B11: 1132517831 | C11: 725588815 | D11: 0.6406864379 | I11: Total general | J11: =SUM(J2:J10) -> 2.051887918e+11 | K11: =SUM(K2:K10) -> 164111871494 | L11: 0.7998091419
A12: PRESUPUESTOS COMPARTIDOS
A13: VP NEGOCIOS Y VP FINANCIERA Y ADMON | B13: 269479593
A14: VP NEGOCIOS Y SECRETARIA GENERAL | B14: 110000000
A15: VP NEGOCIOS, SECRETARIA GENERAL y VP PYP | B15: 6589650515
A16: OFICINA DE ESTRATEGIA, G. TALENTO HUMANO y OFICINA DE RIESGOS | B16: 97086437
A17: TOTAL PLAN | B17: 2.062764042e+11 | C17: 135808056078

Sheet Hoja1 (hidden)
B3: Datos | E3: VICEPRESIDENCIA/SECTREATARÍA GENERAL | F3: CANTIDAD PREVISTA DE CONTRATOS | G3: VALOR PLANEADO A CONTRATAR | H3: % del valor estimado
A4: VICEPRESIDENCIA/SECTREATARÍA GENERAL | B4: CANTIDAD PREVISTA DE CONTRATOS | C4: VALOR PLANEADO A CONTRATAR | E4: Financiera y Administrativa | F4: 39 | G4: 9198008297 | H4: =G4/$G$10 -> 0.0461408428
A5: Financiera y Administrativa | B5: 39 | C5: 9198008297 | E5: Negocios | F5: 23 | G5: 8440161697 | H5: 0.04233918491
A6: Negocios | B6: 23 | C6: 8440161697 | E6: Operaciones | F6: 14 | G6: 30469448195 | H6: 0.1528467875
A7: Operaciones | B7: 14 | C7: 30469448195 | E7: Promoción y Prevención | F7: 270 | G7: 119824776984 | H7: 0.6010884118
A8: Promoción y Prevención | B8: 270 | C8: 119824776984 | E8: Secretaria General y Jurídica | F8: 128 | G8: 2.979845428e+10 | H8: 0.149480817
A9: Secretaria General y Jurídica | B9: 128 | C9: 2.979845428e+10 | E9: Técnica | F9: 438 | G9: 1615494000 | H9: 0.008103956019
A10: Técnica | B10: 438 | C10: 1615494000 | E10: Total general | F10: 912 | G10: 1.993463435e+11
A11: Total general | B11: 912 | C11: 1.993463435e+11
A16: CANTIDAD PREVISTA DE CONTRATOS
A17: MES | B17: Total
A18: ENERO | B18: 254
A19: FEBRERO | B19: 104
A20: MARZO | B20: 89
A21: ABRIL | B21: 83
A22: MAYO | B22: 62
A23: JUNIO | B23: 59
A24: JULIO | B24: 58
A25: AGOSTO | B25: 46
A26: SEPTIEMBRE | B26: 34
A27: OCTUBRE | B27: 41
A28: NOVIEMBRE | B28: 55
A29: DICIEMBRE | B29: 27
A30: Total general | B30: 912
A36: MES | B36: Total
A37: ENERO | B37: 254
A38: FEBRERO | B38: 104
A39: MARZO | B39: 89
A40: ABRIL | B40: 83
A41: MAYO | B41: 62
A42: JUNIO | B42: 59
A43: JULIO | B43: 58
A44: AGOSTO | B44: 46
A45: SEPTIEMBRE | B45: 34
A46: OCTUBRE | B46: 41
A47: NOVIEMBRE | B47: 55
A48: DICIEMBRE | B48: 27
A49: Total general | B49: 912

Sheet REPARTO (hidden)
A1: ¿YA SE CONTRATÓ? | B1: (Todas)
A2: Modalidad de selección | B2: (Todas)
G3: 250000 | I3: 120000
A4: Etiquetas de fila | B4: Cuenta de ABOGADO ASIGNADO | G4: =G3/20 -> 12500
A5: Financiera y Administrativa
A6: Gcia. Abastecimiento Estrategico
A7: Gcia. de Tesorería
A8: Gcia. Gestión Financiera
A9: Gcia. Logística
A10: Negocios | B10: 2
A11: Gcia. Canales
A12: Gcia. Experiencia del Cliente | B12: 1
A13: Gcia. Riesgos Laborales
A14: Gcia. Seguros de Vida | B14: 1
A15: Operaciones | B15: 4
A16: Gcia. Afiliaciones y Novedades
A17: Gcia. Recaudo y Cartera | B17: 4
A18: Vice. de Operaciones
A19: Promoción y Prevención | B19: 193
A20: Gcia. Administración del Riesgo | B20: 191
A21: Gcia. Investigación y Control d | B21: 2
A22: Vice. de Promoción y Prevención
A23: Secretaria General y Jurídica | B23: 27
A24: Gcia. Jurídica | B24: 4
A25: Gcia. Talento Humano | B25: 12
A26: Ofic. Control Interno
A27: Ofic. Estratégia y Desarrollo | B27: 1
A28: Ofic. Gestión Integral del Riesgo
A29: Ofic. Tecnologías de la Información | B29: 9
A30: Secretaría General y Jurídica | B30: 1
A31: Técnica | B31: 4
A32: Gcia. Actuaría
A33: Gcia. Indemnizaciones
A34: Gerencia Médica | B34: 4
A35: Total general | B35: 230

Sheet PLAN
F2: PLAN ANUAL DE ADQUISICIONES
F4: A. INFORMACIÓN GENERAL DE LA ENTIDAD
F5: Nombre | G5: POSITIVA COMPAÑÍA DE SEGUROS S.A. | L5: El principal objetivo del Plan Anual de Adquisiciones es permitir que la entidad estatal aumente la probabilidad de lograr mejores condiciones de competencia a través de la participación de un mayor número de operadores económicos interesados en los procesos de selección que se van a adelantar durante el año fiscal, y que el Estado cuente con información suficiente para realizar compras coordinadas.
F6: Dirección | G6: Avenida Carrera 45 No. 94-72
F7: Teléfono | G7: PBX:(57-1)6502200
F8: Página web | G8: www.positiva.gov.co
F9: Misión y visión | G9: MISION: Protegemos Integralmente la vida de las personas contribuyendo al bienestar de las familias, las empresas y la sociedad VISION: Ser la aseguradora que garantiza oportunamente la máxima protección a nuestros clientes
F10: Perspectiva estratégica | G10: POSITIVA COMPAÑÍA DE SEGUROS S.A., diseña e implementa un modelo de negocio de Responsabilidad Global que contribuya con la rentabilidad y el desarrollo sostenible de la empresa y que coadyude con el logro de sus objetivos específicos.
F11: Información de contacto | G11: Gerencia de Abastecimiento Estratégico contratacion@positiva.gov.co PBX: (1)6502200 Ext: 10641 | L11: El Plan Anual de Adquisiciones es un documento de naturaleza informativa y las adquisiciones incluidas en el mismo pueden ser canceladas, revisadas o modificadas. Esta información no representa compromiso u obligación alguna por parte de la entidad estatal ni la compromete a adquirir los bienes, obras y servicios en él señalados.
F12: Valor total del PAA | G12: =SUM(N:N) -> 3.073546718e+11
F13: Límite de contratación menor cuantía | G13: Régimen Especial de Contratación | AA13: SI
F14: Límite de contratación mínima cuantía | G14: Régimen Especial de Contratación | AA14: NO
F15: Fecha de última actualización del PAA | G15: 2021-07-06
F17: NOTA | G17: Acorde con el Decreto 2973 de 2013 en relación con el régimen de las reservas técnicas de las entidades aseguradoras y se dictan otras disposiciones, los contratos para la atención del siniestro se pagan con los recursos destinados a la reserva técnica. Este tipo de contratos son de cuantía indeterminada y aunque es determinable, al momento de la planeación únicamente se refleja el valor asociado al control presupuestal.
F21: B. ADQUISICIONES PLANEADAS
A22: VICEPRESIDENCIA/SECTREATARÍA GENERAL | B22: ÁREA | C22: ABOGADO ASIGNADO | D22: ¿YA SE CONTRATÓ? | E22: ORDEN | F22: Códigos UNSPSC | G22: Descripción | H22: Fecha estimada de inicio de proceso de selección | I22: MES | J22: Fecha fin contrato | K22: Duración estimada del contrato (Meses) | L22: Modalidad de selección | M22: Fuente de los recursos | N22: Valor total estimado | O22: Valor estimado en la vigencia actual | P22: ¿Se requieren vigencias futuras? | Q22: Estado de solicitud de vigencias futuras | R22: Datos de contacto del responsable | S22: ¿Su necesidad contiene información financiera y secretos comerciales? Ejm: Tarifas comerciales, disminución de la siniestralidad, atención o servicio conexo al siniestro, know how del negocio, clasificación de empresas, estrategias comerciales. | T22: ¿Su necesidad y el proceso de contratación son catalogados como misionales? Ejm: Gestión comercial, Gestión de clientes, Atención al siniestro, Estrategias de disminución de la siniestralidad, Gestión integral del portafolio, Gestión de reservas y reaseguros. | U22: En caso de ser una necesidad tecnologica ¿Su necesidad contiene información sensible? Ejm: Administración de bases de datos de clientes, información comercial de la Compañía, información relevante al know how del negocio. | V22: ¿De publicarse esta información referente al proceso de contratación podrían vulnerarse los intereses de Positiva con relación a su competencia al revelar información misional? | W22: CLASIFICACIÓN DE LA INFORMACIÓN | X22: DESCRIPCIÓN AJUSTADA
A23: Financiera y Administrativa | B23: Gcia. Gestión Financiera | D23: NO | E23: C56152021 | F23: 80111504 | G23: Prestación de servicios para desarrollar una actividad para fortalecer el reconocimiento, reconexión y relacionamiento de los equipos que participan en los procesos de la Gerencia de Gestión Financiera | H23: 2021-07-09 | I23: 7 | J23: 31/12/2021 | K23: 5.833333333 | L23: Invitación directa | M23: GastosAdministrativos | N23: 46492000 | O23: 46492000 | P23: NO | Q23: NA | R23: Gerencia de Abastecimiento Estratégico contratacion@positiva.gov.co PBX: (1)6502200 Ext: 10641 | S23: SI | T23: NO | U23: NO | V23: SI | W23: Pública clasificada | X23: C56152021-Tipo de información Pública clasificada-Prestación de servicios para desarrollar una actividad para fortalecer el reconocimiento, reconexión y relacionamiento de los equipos que participan en los procesos de la Gerencia de Gestión Financiera
A24: Financiera y Administrativa | B24: Gcia. Logística | D24: NO | E24: C55882021 | F24: 56101700 | G24: Suministro de sillas para funcionarios | H24: 2021-08-10 | I24: 8 | J24: 2021-12-15 | K24: 2 | L24: Invitación cerrada | M24: GastosAdministrativos | N24: 325835000 | O24: 325835000 | P24: NO | Q24: NA | R24: Gerencia de Abastecimiento Estratégico contratacion@positiva.gov.co PBX: (1)6502200 Ext: 10641 | S24: NO | T24: NO | U24: NO | V24: SI | W24: Pública clasificada | X24: C55882021-Tipo de información Pública clasificada-Suministro de sillas para funcionarios
A25: Financiera y Administrativa | B25: Gcia. Logística | D25: NO | E25: C56112021 | F25: 72151207 | G25: Prestación de servicios para el mantenimiento preventivo de Sistemas de Aire Acondicionado y mantenimiento correctivo de ducto aire acondicionado central del inmueble “El Limonar” de la Sucursal Valle Tipo A Coordinadora de POSITIVA COMPAÑÍA DE SEGUROS | H25: 2021-07-07 | I25: 7 | J25: 2021-12-15 | K25: 5 | L25: Invitación directa | M25: GastosAdministrativos | N25: 10539330 | O25: 10539330 | P25: NO | Q25: NA | R25: Gerencia de Abastecimiento Estratégico contratacion@positiva.gov.co PBX: (1)6502200 Ext: 10641 | S25: NO | T25: NO | U25: NO | V25: SI | W25: Pública clasificada | X25: C56112021-Tipo de información Pública clasificada-Prestación de servicios para el mantenimiento preventivo de Sistemas de Aire Acondicionado y mantenimiento correctivo de ducto aire acondicionado central del inmueble “El Limonar” de la Sucursal Valle Tipo A Coordinadora de POSITIVA COMPAÑÍA DE SEGUROS
A26: Financiera y Administrativa | B26: Gcia. Logística | D26: NO | E26: C56242021 | F26: 72101507 | G26: Obra: traslado punto atención Medellin | H26: 2021-08-01 | I26: 8 | J26: 2021-10-01 | K26: 1 | L26: Invitación directa | M26: GastosAdministrativos | N26: 60000000 | O26: 60000000 | P26: NO | Q26: NA | R26: Gerencia de Abastecimiento Estratégico contratacion@positiva.gov.co PBX: (1)6502200 Ext: 10641 | S26: NO | T26: NO | U26: NO | V26: SI | W26: Pública clasificada | X26: C56242021-Tipo de información Pública clasificada-Obra: traslado punto atención Medellin
A27: Financiera y Administrativa | B27: Gcia. Abastecimiento Estrategico | C27: LINA PANTOJA | D27: SI | E27: C55512021 | F27: 80111607 | G27: PRESTACION DE SERVICIOS PROFESIONALES DE ABOGADO, BRINDANDO APOYO Y ACOMPAÑAMIENTO PARA LA ATENCION DE LOS DIFERENTES PROCESOS, ACTIVIDADES Y GESTIONES A CARGO DE LA GERENCIA DE ABASTECIMIENTO ESTRATEGICO DE LA VICEPRESIDENCIA FINANCIERA Y ADMINISTRATIVA DE POSITIVA COMPALIA DE SEGUROS SA | H27: 1/01/2021 | I27: 1 | J27: 31/12/2021 | K27: 12.13333333 | L27: Invitación directa | M27: GastosAdministrativos | N27: 101945088 | O27: 101945088 | P27: NO | Q27: NA | R27: Gerencia de Abastecimiento Estratégico contratacion@positiva.gov.co PBX: (1)6502200 Ext: 10641 | S27: NO | T27: NO | U27: NO | V27: NO | W27: Pública | X27: C55512021-Tipo de información Pública-PRESTACION DE SERVICIOS PROFESIONALES DE ABOGADO, BRINDANDO APOYO Y ACOMPAÑAMIENTO PARA LA ATENCION DE LOS DIFERENTES PROCESOS, ACTIVIDADES Y GESTIONES A CARGO DE LA GERENCIA DE ABASTECIMIENTO ESTRATEGICO DE LA VICEPRESIDENCIA FINANCIERA Y ADMINISTRATIVA DE POSITIVA COMPALIA DE SEGUROS SA
A28: Financiera y Administrativa | B28: Gcia. Abastecimiento Estrategico | E28: C5617202 | F28: 80111607 | G28: PRESTACION DE SERVICIOS PROFESIONALES DE ABOGADO, BRINDANDO APOYO Y ACOMPAÑAMIENTO PARA LA ATENCION DE LOS DIFERENTES PROCESOS, ACTIVIDADES Y GESTIONES A CARGO DE LA GERENCIA DE ABASTECIMIENTO ESTRATEGICO DE LA VICEPRESIDENCIA FINANCIERA Y ADMINISTRATIVA DE POSITIVA COMPALIA DE SEGUROS SA | H28: 2021-06-01 | I28: 6 | J28: 31/12/2021 | K28: 6 | L28: Invitación directa | M28: GastosAdministrativos | N28: 57516667 | O28: 57516667 | P28: NO | Q28: NA | R28: Gerencia de Abastecimiento Estratégico contratacion@positiva.gov.co PBX: (1)6502200 Ext: 10641 | S28: NO | T28: NO | U28: NO | V28: NO | W28: Pública | X28: C55512021-Tipo de información Pública-PRESTACION DE SERVICIOS PROFESIONALES DE ABOGADO, BRINDANDO APOYO Y ACOMPAÑAMIENTO PARA LA ATENCION DE LOS DIFERENTES PROCESOS, ACTIVIDADES Y GESTIONES A CARGO DE LA GERENCIA DE ABASTECIMIENTO ESTRATEGICO DE LA VICEPRESIDENCIA FINANCIERA Y ADMINISTRATIVA DE POSITIVA COMPALIA DE SEGUROS SA
A29: Financiera y Administrativa | B29: Gcia. Abastecimiento Estrategico | C29: LINA PANTOJA | D29: SI | E29: C55522021 | F29: 80111607 | G29: PRESTACION DE SERVICIOS PROFESIONALES DE ABOGADO, BRINDANDO APOYO Y ACOMPAÑAMIENTO PARA LA ATENCION DE LOS DIFERENTES PROCESOS, ACTIVIDADES Y GESTIONES A CARGO DE LA GERENCIA DE ABASTECIMIENTO ESTRATEGICO DE LA VICEPRESIDENCIA FINANCIERA Y ADMINISTRATIVA DE POSITIVA COMPALIA DE SEGUROS SA | H29: 1/01/2021 | I29: 1 | J29: 31/12/2021 | K29: 12.13333333 | L29: Invitación directa | M29: GastosAdministrativos | N29: 101945088 | O29: 101945088 | P29: NO | Q29: NA | R29: Gerencia de Abastecimiento Estratégico contratacion@positiva.gov.co PBX: (1)6502200 Ext: 10641 | S29: NO | T29: NO | U29: NO | V29: NO | W29: Pública | X29: C55522021-Tipo de información Pública-PRESTACION DE SERVICIOS PROFESIONALES DE ABOGADO, BRINDANDO APOYO Y ACOMPAÑAMIENTO PARA LA ATENCION DE LOS DIFERENTES PROCESOS, ACTIVIDADES Y GESTIONES A CARGO DE LA GERENCIA DE ABASTECIMIENTO ESTRATEGICO DE LA VICEPRESIDENCIA FINANCIERA Y ADMINISTRATIVA DE POSITIVA COMPALIA DE SEGUROS SA
A30: Financiera y Administrativa | B30: Gcia. Abastecimiento Estrategico | C30: LINA PANTOJA | D30: SI | E30: C55532021 | F30: 80111607 | G30: PRESTACION DE SERVICIOS PROFESIONALES DE ABOGADO, BRINDANDO APOYO Y ACOMPAÑAMIENTO PARA LA ATENCION DE LOS DIFERENTES PROCESOS, ACTIVIDADES Y GESTIONES A CARGO DE LA GERENCIA DE ABASTECIMIENTO ESTRATEGICO DE LA VICEPRESIDENCIA FINANCIERA Y ADMINISTRATIVA DE POSITIVA COMPALIA DE SEGUROS SA | H30: 1/01/2021 | I30: 1 | J30: 2021-03-31 | K30: 3 | L30: Invitación directa | M30: GastosAdministrativos | N30: 25022871 | O30: 25022871 | P30: NO | Q30: NA | R30: Gerencia de Abastecimiento Estratégico contratacion@positiva.gov.co PBX: (1)6502200 Ext: 10641 | S30: NO | T30: NO | U30: NO | V30: NO | W30: Pública | X30: C55532021-Tipo de información Pública-PRESTACION DE SERVICIOS PROFESIONALES DE ABOGADO, BRINDANDO APOYO Y ACOMPAÑAMIENTO PARA LA ATENCION DE LOS DIFERENTES PROCESOS, ACTIVIDADES Y GESTIONES A CARGO DE LA GERENCIA DE ABASTECIMIENTO ESTRATEGICO DE LA VICEPRESIDENCIA FINANCIERA Y ADMINISTRATIVA DE POSITIVA COMPALIA DE SEGUROS SA
A31: Financiera y Administrativa | B31: Gcia. Abastecimiento Estrategico | D31: NO | E31: C55552021 | F31: 81112200 | G31: RENOVACIÓN DE LICENCIA - SERVICIO DE ARRENDAMIENTO BAJO LA MODALIDAD DE SERVICIO SAAS DEL PRODUCTO ARIBA, EN EL MÓDULO ARIBA SOURCING PROFESSIONAL PARA 15 USUARIOS LÍDERES, CON ILIMITADO NÚMERO DE MIEMBROS DE EQUIPO Y DE PROCESOS CONTRACTUALES. | H31: 1/09/2021 | I31: 9 | J31: 30/09/2022 | K31: 12 | L31: Invitación directa | M31: GastosAdministrativos | N31: 152000000 | O31: 152000000 | P31: NO | Q31: NA | R31: Gerencia de Abastecimiento Estratégico contratacion@positiva.gov.co PBX: (1)6502200 Ext: 10641 | S31: NO | T31: NO | U31: NO | V31: SI | W31: Pública clasificada | X31: C55552021-Tipo de información Pública clasificada-RENOVACIÓN DE LICENCIA - SERVICIO DE ARRENDAMIENTO BAJO LA MODALIDAD DE SERVICIO SAAS DEL PRODUCTO ARIBA, EN EL MÓDULO ARIBA SOURCING PROFESSIONAL PARA 15 USUARIOS LÍDERES, CON ILIMITADO NÚMERO DE MIEMBROS DE EQUIPO Y DE PROCESOS CONTRACTUALES.
A32: Financiera y Administrativa | B32: Gcia. Abastecimiento Estrategico | D32: NO | E32: C55562021 | F32: 83120000;93151509;55111500 | G32: PRESTACIÓN DE SERVICIOS DE SUSCRIPCIÓN AL LIBRO ELECTRÓNICO DENOMINADO: ESTATUTO DE LA CONTRATACIÓN ESTATAL EN COLOMBIA, UBICADO EN LA DIRECCIÓN DE INTERNET WWW.CONTRATACIONESTATAL.COM, EN LA MODALIDAD DE LICENCIA DE USO (2 EDICIÓN - ISBN 978- 958-98685-1-5) PARA 12 USUARIOS FUNCIONARIOS DE LA COMPAÑÍA. | H32: 1/10/2021 | I32: 10 | J32: 30/10/2022 | K32: 12 | L32: Invitación directa | M32: GastosAdministrativos | N32: 2565937 | O32: 2565937 | P32: NO | Q32: NA | R32: Gerencia de Abastecimiento Estratégico contratacion@positiva.gov.co PBX: (1)6502200 Ext: 10641 | S32: NO | T32: NO | U32: NO | V32: NO | W32: Pública | X32: C55562021-Tipo de información Pública-PRESTACIÓN DE SERVICIOS DE SUSCRIPCIÓN AL LIBRO ELECTRÓNICO DENOMINADO: ESTATUTO DE LA CONTRATACIÓN ESTATAL EN COLOMBIA, UBICADO EN LA DIRECCIÓN DE INTERNET WWW.CONTRATACIONESTATAL.COM, EN LA MODALIDAD DE LICENCIA DE USO (2 EDICIÓN - ISBN 978- 958-98685-1-5) PARA 12 USUARIOS FUNCIONARIOS DE LA COMPAÑÍA.
A33: Financiera y Administrativa | B33: Gcia. de Tesorería | D33: NO | E33: C55572021 | F33: 84121806 | G33: En virtud del endoso de los físicos u orden de abono o cargo por anotación en cuenta de los títulos valores o valores desmaterializados u otros derechos financieros por parte del DEPOSITANTE, DECEVAL asume la custodia, la administración de los valores, cuando el depositante lo solicite, el registro de los gravámenes o limitaciones de dominio que el depositante o la autoridad competente le comunique, la compensación y liquidación de estos títulos valores, valores u otros derechos financieros. | H33: 1/01/2021 | I33: =MONTH(H33) -> 1 | J33: 31/12/2021 | K33: =_xlfn.DAYS(J33,H33)/30 -> 12.13333333 | L33: Invitación directa | M33: OtrosIngresosYEgresos | N33: 358319230 | O33: 358319230 | P33: NO | Q33: NA | R33: Gerencia de Abastecimiento Estratégico contratacion@positiva.gov.co PBX: (1)6502200 Ext: 10641 | S33: SI | T33: SI | U33: NO | V33: SI | W33: =IF(V33="SI","Pública clasificada","Pública") -> Pública clasificada | X33: =CONCATENATE(E33,"-","Tipo de información"," ",W33,"-",G33) -> C55572021-Tipo de información Pública clasificada-En virtud del endoso de los físicos u orden de abono o cargo por anotación en cuenta de los títulos valores o valores desmaterializados u otros derechos financieros por parte del DEPOSITANTE, DECEVAL asume la custodia, la administración de los valores, cuando el depositante lo solicite, el registro de los gravámenes o limitaciones de dominio que el depositante o la autoridad competente le comunique, la compensación y liquidación de estos títulos valores, valores u otros derechos financieros.
A34: Financiera y Administrativa | B34: Gcia. de Tesorería | D34: NO | E34: C55582021 | F34: 84121705 | G34: En virtud del presente Contrato PRECIA se obliga con EL CLIENTE a prestar el servicio de suscripción anual para el acceso a los servicios de cálculo, determinación y proveeduría o suministro de INFORMACIÓN para la valoración de las inversiones de EL CLIENTE y de los fondos que administre, así como la suscripción anual para el acceso a servicios de cálculo y análisis de variables o factores de riesgo como insumo para la medición de riesgos financieros, de acuerdo con las metodologías de valoración de PRECIA, y conforme a los servicios que sean requeridos por EL CLIENTE | H34: 1/01/2021 | I34: =MONTH(H34) -> 1 | J34: 31/12/2021 | K34: =_xlfn.DAYS(J34,H34)/30 -> 12.13333333 | L34: Invitación directa | M34: GastosAdministrativos | N34: 97377418 | O34: 97377418 | P34: NO | Q34: NA | R34: Gerencia de Abastecimiento Estratégico contratacion@positiva.gov.co PBX: (1)6502200 Ext: 10641 | S34: SI | T34: SI | U34: NO | V34: SI | W34: =IF(V34="SI","Pública clasificada","Pública") -> Pública clasificada | X34: =CONCATENATE(E34,"-","Tipo de información"," ",W34,"-",G34) -> C55582021-Tipo de información Pública clasificada-En virtud del presente Contrato PRECIA se obliga con EL CLIENTE a prestar el servicio de suscripción anual para el acceso a los servicios de cálculo, determinación y proveeduría o suministro de INFORMACIÓN para la valoración de las inversiones de EL CLIENTE y de los fondos que administre, así como la suscripción anual para el acceso a servicios de cálculo y análisis de variables o factores de riesgo como insumo para la medición de riesgos financieros, de acuerdo con las metodologías de valoración de PRECIA, y conforme a los servicios que sean requeridos por EL CLIENTE
A35: Financiera y Administrativa | B35: Gcia. de Tesorería | D35: NO | E35: C55592021 | F35: 81112502 | G35: Arrendamiento de la plataforma tecnológica y el aplicativo para la administración y valoración del portafolio de inversiones, así como también cualquier otro servicio que se derive de la prestación de los mismos, de acuerdo con las especificaciones y funcionalidades requeridas por Positiva S.A. | H35: 1/01/2021 | I35: =MONTH(H35) -> 1 | J35: 31/12/2021 | K35: =_xlfn.DAYS(J35,H35)/30 -> 12.13333333 | L35: Invitación directa | M35: GastosAdministrativos | N35: 576798720 | O35: 576798720 | P35: NO | Q35: NA | R35: Gerencia de Abastecimiento Estratégico contratacion@positiva.gov.co PBX: (1)6502200 Ext: 10641 | S35: SI | T35: SI | U35: NO | V35: SI | W35: =IF(V35="SI","Pública clasificada","Pública") -> Pública clasificada | X35: =CONCATENATE(E35,"-","Tipo de información"," ",W35,"-",G35) -> C55592021-Tipo de información Pública clasificada-Arrendamiento de la plataforma tecnológica y el aplicativo para la administración y valoración del portafolio de inversiones, así como también cualquier otro servicio que se derive de la prestación de los mismos, de acuerdo con las especificaciones y funcionalidades requeridas por Positiva S.A.
A36: Financiera y Administrativa | B36: Gcia. Gestión Financiera | D36: NO | E36: C55612021 | F36: 84111802 | G36: Prestación de servicios profesionales de Revisoría Fiscal | H36: 1/04/2021 | I36: =MONTH(H36) -> 4 | J36: 31/03/2022 | K36: =_xlfn.DAYS(J36,H36)/30 -> 12.13333333 | L36: Invitación directa | M36: GastosAdministrativos | N36: 563147568 | O36: 422360676 | P36: SI | Q36: Aprobada | R36: Gerencia de Abastecimiento Estratégico contratacion@positiva.gov.co PBX: (1)6502200 Ext: 10641 | S36: SI | T36: NO | U36: NO | V36: SI | W36: =IF(V36="SI","Pública clasificada","Pública") -> Pública clasificada | X36: =CONCATENATE(E36,"-","Tipo de información"," ",W36,"-",G36) -> C55612021-Tipo de información Pública clasificada-Prestación de servicios profesionales de Revisoría Fiscal
A37: Financiera y Administrativa | B37: Gcia. Gestión Financiera | D37: NO | E37: C55632021 | F37: 81112501 | G37: Prestación de servicios para la renovación de la garantía, soporte y actualizaciones de la licencia adicional del software GaussProfit Edición Advanced. | H37: 1/10/2021 | I37: =MONTH(H37) -> 10 | J37: 30/09/2022 | K37: =_xlfn.DAYS(J37,H37)/30 -> 12.13333333 | L37: Invitación directa | M37: GastosAdministrativos | N37: 14154596 | O37: 14154596 | P37: NO | Q37: NA | R37: Gerencia de Abastecimiento Estratégico contratacion@positiva.gov.co PBX: (1)6502200 Ext: 10641 | S37: SI | T37: NO | U37: NO | V37: SI | W37: =IF(V37="SI","Pública clasificada","Pública") -> Pública clasificada | X37: =CONCATENATE(E37,"-","Tipo de información"," ",W37,"-",G37) -> C55632021-Tipo de información Pública clasificada-Prestación de servicios para la renovación de la garantía, soporte y actualizaciones de la licencia adicional del software GaussProfit Edición Advanced.
A38: Financiera y Administrativa | B38: Gcia. Gestión Financiera | D38: NO | E38: C55652021 | F38: 81111805 | G38: Prestación de servicios de soporte y actualizaciones del software GaussProfit | H38: 1/01/2021 | I38: =MONTH(H38) -> 1 | J38: 31/12/2021 | K38: =_xlfn.DAYS(J38,H38)/30 -> 12.13333333 | L38: Invitación directa | M38: GastosAdministrativos | N38: 29989041 | O38: 29989041 | P38: NO | Q38: NA | R38: Gerencia de Abastecimiento Estratégico contratacion@positiva.gov.co PBX: (1)6502200 Ext: 10641 | S38: SI | T38: NO | U38: NO | V38: SI | W38: =IF(V38="SI","Pública clasificada","Pública") -> Pública clasificada | X38: =CONCATENATE(E38,"-","Tipo de información"," ",W38,"-",G38) -> C55652021-Tipo de información Pública clasificada-Prestación de servicios de soporte y actualizaciones del software GaussProfit
A39: Financiera y Administrativa | B39: Gcia. Gestión Financiera | D39: NO | E39: C55672021 | F39: 80101500 | G39: Prestación de servicios profesionales especializados para el soporte, acompañamiento y socialización en la implementación de las Normas Internacionales de Información Financiera y sus interpretaciones sobre todas las áreas de impacto en POSITIVA | H39: 2021-02-28 | I39: =MONTH(H39) -> 2 | J39: 31/12/2021 | K39: =_xlfn.DAYS(J39,H39)/30 -> 10.2 | L39: Invitación directa | M39: GastosAdministrativos | N39: 76924155 | O39: 76924155 | P39: NO | Q39: NA | R39: Gerencia de Abastecimiento Estratégico contratacion@positiva.gov.co PBX: (1)6502200 Ext: 10641 | S39: SI | T39: NO | U39: NO | V39: SI | W39: =IF(V39="SI","Pública clasificada","Pública") -> Pública clasificada | X39: =CONCATENATE(E39,"-","Tipo de información"," ",W39,"-",G39) -> C55672021-Tipo de información Pública clasificada-Prestación de servicios profesionales especializados para el soporte, acompañamiento y socialización en la implementación de las Normas Internacionales de Información Financiera y sus interpretaciones sobre todas las áreas de impacto en POSITIVA
A40: Financiera y Administrativa | B40: Gcia. Gestión Financiera | D40: NO | E40: C55682021 | F40: 80101500 | G40: Prestación de servicios - para el soporte, acompañamiento y socialización de la normatividad tributaria a nivel nacional, distrital y municipal para POSITIVA. | H40: 1/01/2021 | I40: =MONTH(H40) -> 1 | J40: 31/12/2021 | K40: =_xlfn.DAYS(J40,H40)/30 -> 12.13333333 | L40: Invitación directa | M40: GastosAdministrativos | N40: 76817761 | O40: 76817761 | P40: NO | Q40: NA | R40: Gerencia de Abastecimiento Estratégico contratacion@positiva.gov.co PBX: (1)6502200 Ext: 10641 | S40: SI | T40: NO | U40: NO | V40: SI | W40: =IF(V40="SI","Pública clasificada","Pública") -> Pública clasificada | X40: =CONCATENATE(E40,"-","Tipo de información"," ",W40,"-",G40) -> C55682021-Tipo de información Pública clasificada-Prestación de servicios - para el soporte, acompañamiento y socialización de la normatividad tributaria a nivel nacional, distrital y municipal para POSITIVA.
A41: Financiera y Administrativa | B41: Gcia. Gestión Financiera | D41: NO | E41: C55692021 | F41: 80101500 | G41: Prestación del servicio para el soporte funcional presencial y remoto del módulo FI-CO del ERP SAP, de acuerdo con las necesidades de POSITIVA | H41: 1/01/2021 | I41: =MONTH(H41) -> 1 | J41: 31/12/2021 | K41: =_xlfn.DAYS(J41,H41)/30 -> 12.13333333 | L41: Invitación directa | M41: GastosAdministrativos | N41: 682248888 | O41: 682248888 | P41: NO | Q41: NA | R41: Gerencia de Abastecimiento Estratégico contratacion@positiva.gov.co PBX: (1)6502200 Ext: 10641 | S41: SI | T41: NO | U41: NO | V41: SI | W41: =IF(V41="SI","Pública clasificada","Pública") -> Pública clasificada | X41: =CONCATENATE(E41,"-","Tipo de información"," ",W41,"-",G41) -> C55692021-Tipo de información Pública clasificada-Prestación del servicio para el soporte funcional presencial y remoto del módulo FI-CO del ERP SAP, de acuerdo con las necesidades de POSITIVA
A42: Financiera y Administrativa | B42: Gcia. Gestión Financiera | D42: NO | E42: C55702021 | F42: 80101500 | G42: Prestación de servicios -para el acompañamiento financiero especializado para realizar la valoración de los ramos distintos a Administración de Riesgos Laborales- ARL, con énfasis en los ramos de largo plazo: Conmutación pensional, BEPS, Rentas vitalicias, ARL largo plazo, Vida grupo, Vida individual, Accidentes personales, entre otros, en adelante las unidades de negocio. | H42: 2021-06-01 | I42: =MONTH(H42) -> 6 | J42: 31/12/2021 | K42: =_xlfn.DAYS(J42,H42)/30 -> 7.1 | L42: Invitación directa | M42: GastosAdministrativos | N42: 35700000 | O42: 35700000 | P42: NO | Q42: NA | R42: Gerencia de Abastecimiento Estratégico contratacion@positiva.gov.co PBX: (1)6502200 Ext: 10641 | S42: SI | T42: NO | U42: NO | V42: SI | W42: =IF(V42="SI","Pública clasificada","Pública") -> Pública clasificada | X42: =CONCATENATE(E42,"-","Tipo de información"," ",W42,"-",G42) -> C55702021-Tipo de información Pública clasificada-Prestación de servicios -para el acompañamiento financiero especializado para realizar la valoración de los ramos distintos a Administración de Riesgos Laborales- ARL, con énfasis en los ramos de largo plazo: Conmutación pensional, BEPS, Rentas vitalicias, ARL largo plazo, Vida grupo, Vida individual, Accidentes personales, entre otros, en adelante las unidades de negocio.
A43: Financiera y Administrativa | B43: Gcia. Gestión Financiera | D43: NO | E43: C55712021 | F43: 80101500 | G43: Prestación de servicios - para la calificación de la fortaleza financiera y capacidad de pago de siniestros derivados de la suscripción de pólizas y otras obligaciones contractuales de POSITIVA. | H43: 5/04/2021 | I43: =MONTH(H43) -> 4 | J43: 4/04/2022 | K43: =_xlfn.DAYS(J43,H43)/30 -> 12.13333333 | L43: Invitación directa | M43: GastosAdministrativos | N43: 34795121 | O43: 34962916 | P43: NO | Q43: NA | R43: Gerencia de Abastecimiento Estratégico contratacion@positiva.gov.co PBX: (1)6502200 Ext: 10641 | S43: SI | T43: NO | U43: NO | V43: SI | W43: =IF(V43="SI","Pública clasificada","Pública") -> Pública clasificada | X43: =CONCATENATE(E43,"-","Tipo de información"," ",W43,"-",G43) -> C55712021-Tipo de información Pública clasificada-Prestación de servicios - para la calificación de la fortaleza financiera y capacidad de pago de siniestros derivados de la suscripción de pólizas y otras obligaciones contractuales de POSITIVA.
A44: Financiera y Administrativa | B44: Gcia. Gestión Financiera | D44: NO | E44: C55722021 | F44: 80101500 | G44: Prestación de servicios - para la estimación de la prueba de deterioro de la plusvalía (Crédito Mercantil) adquirida de la cesión de activos, pasivos y contratos del negocio de riesgos laborales del Instituto Seguro Social, de conformidad con los lineamientos establecidos en las Normas Internacionales de Información Financiera (NIIF) y la NIC36 - deterioro del valor de los activos | H44: 1/10/2021 | I44: =MONTH(H44) -> 10 | J44: 31/12/2021 | K44: =_xlfn.DAYS(J44,H44)/30 -> 3.033333333 | L44: Invitación directa | M44: GastosAdministrativos | N44: 45544258 | O44: 45544258 | P44: NO | Q44: NA | R44: Gerencia de Abastecimiento Estratégico contratacion@positiva.gov.co PBX: (1)6502200 Ext: 10641 | S44: SI | T44: NO | U44: NO | V44: SI | W44: =IF(V44="SI","Pública clasificada","Pública") -> Pública clasificada | X44: =CONCATENATE(E44,"-","Tipo de información"," ",W44,"-",G44) -> C55722021-Tipo de información Pública clasificada-Prestación de servicios - para la estimación de la prueba de deterioro de la plusvalía (Crédito Mercantil) adquirida de la cesión de activos, pasivos y contratos del negocio de riesgos laborales del Instituto Seguro Social, de conformidad con los lineamientos establecidos en las Normas Internacionales de Información Financiera (NIIF) y la NIC36 - deterioro del valor de los activos
A45: Financiera y Administrativa | B45: Gcia. Logística | D45: NO | E45: C55482021 | F45: 83110000 | G45: Proyecto telefónia a Nivel Nacional | H45: 1/04/2021 | I45: =MONTH(H45) -> 4 | J45: 2023-12-31 | K45: =_xlfn.DAYS(J45,H45)/30 -> 33.46666667 | L45: Invitación directa | M45: GastosAdministrativos | N45: 1170307819 | O45: 319174861 | P45: SI | Q45: Aprobadas | R45: Gerencia de Abastecimiento Estratégico contratacion@positiva.gov.co PBX: (1)6502200 Ext: 10641 | S45: NO | T45: NO | U45: NO | V45: SI | W45: =IF(V45="SI","Pública clasificada","Pública") -> Pública clasificada | X45: =CONCATENATE(E45,"-","Tipo de información"," ",W45,"-",G45) -> C55482021-Tipo de información Pública clasificada-Proyecto telefónia a Nivel Nacional
A46: Financiera y Administrativa | B46: Gcia. Logística | D46: NO | E46: C55892021-C56232021 | F46: 72151207 | G46: Suministro: Compraventa e instalación de equipos de aire acondicionado de las oficinas de Positiva a nivel nacional | H46: 2021-08-01 | I46: 8 | J46: 2021-12-15 | K46: 3.5 | L46: Invitación cerrada | M46: GastosAdministrativos | N46: 285000000 | O46: 285000000 | P46: NO | Q46: NA | R46: Gerencia de Abastecimiento Estratégico contratacion@positiva.gov.co PBX: (1)6502200 Ext: 10641 | S46: NO | T46: NO | U46: NO | V46: SI | W46: Pública clasificada | X46: C55892021-Tipo de información Pública clasificada-Suministro: Compraventa e instalación de equipos de aire acondicionado de las oficinas de Positiva a nivel nacional
A47: Financiera y Administrativa | B47: Gcia. Logística | D47: NO | E47: C56092021 | F47: 72153613 | G47: Suministro: Mueble para Presidencia | H47: 2021-02-05 | I47: =MONTH(H47) -> 2 | J47: 2021-03-15 | K47: =_xlfn.DAYS(J47,H47)/30 -> 1.266666667 | L47: Invitación directa | M47: GastosAdministrativos | N47: 4165000 | O47: 4165000 | P47: NO | Q47: NA | R47: Gerencia de Abastecimiento Estratégico contratacion@positiva.gov.co PBX: (1)6502200 Ext: 10641 | S47: NO | T47: NO | U47: NO | V47: SI | W47: =IF(V47="SI","Pública clasificada","Pública") -> Pública clasificada | X47: =CONCATENATE(E47,"-","Tipo de información"," ",W47,"-",G47) -> C56092021-Tipo de información Pública clasificada-Suministro: Mueble para Presidencia
A48: Financiera y Administrativa | B48: Gcia. Logística | D48: NO | E48: C55902021 | F48: 78131602-80161506 | G48: Prestación del servicio especializado en gestión documental de compañía para la administración y custodia del archivo físico tanto administrativo como misional de la compañía. | H48: 2021-02-15 | I48: =MONTH(H48) -> 2 | J48: 2022-10-31 | K48: =_xlfn.DAYS(J48,H48)/30 -> 20.76666667 | L48: Invitación pública | M48: GastosAdministrativos | N48: 3825803042 | O48: 1689108907 | P48: SI | Q48: Aprobada | R48: Gerencia de Abastecimiento Estratégico contratacion@positiva.gov.co PBX: (1)6502200 Ext: 10641 | S48: NO | T48: NO | U48: NO | V48: SI | W48: =IF(V48="SI","Pública clasificada","Pública") -> Pública clasificada | X48: =CONCATENATE(E48,"-","Tipo de información"," ",W48,"-",G48) -> C55902021-Tipo de información Pública clasificada-Prestación del servicio especializado en gestión documental de compañía para la administración y custodia del archivo físico tanto administrativo como misional de la compañía.
A49: Financiera y Administrativa | B49: Gcia. Logística | D49: NO | E49: C55912021-C84032021 | F49: 90000000 | G49: Suministro de tiquetes aéreos para los servidores en el desarrollo de las actividades de Positiva Compañía de Seguros SA | H49: 2021-07-07 | I49: 7 | J49: 2021-12-31 | K49: 5 | L49: Invitación cerrada | M49: GastosAdministrativos | N49: 92000000 | O49: 92000000 | P49: NO | Q49: NA | R49: Gerencia de Abastecimiento Estratégico contratacion@positiva.gov.co PBX: (1)6502200 Ext: 10641 | S49: NO | T49: NO | U49: NO | V49: SI | W49: Pública clasificada | X49: C55912021-Tipo de información Pública clasificada-Suministro de tiquetes aéreos para los servidores en el desarrollo de las actividades de Positiva Compañía de Seguros SA
A50: Financiera y Administrativa | B50: Gcia. Logística | D50: NO | E50: C55932021 | F50: 78181500 | G50: Prestación de servicio de mantenimiento preventivo y correctivo con el suministro de repuestos, insumos y accesorios para los vehículos de casa matriz y la coordinadora Bogotá de Positiva Compañía de Seguros S.A. | H50: 2021-04-01 | I50: =MONTH(H50) -> 4 | J50: 2021-12-31 | K50: =_xlfn.DAYS(J50,H50)/30 -> 9.133333333 | L50: Invitación directa | M50: GastosAdministrativos | N50: 52272951 | O50: 52272951 | P50: NO | Q50: NA | R50: Gerencia de Abastecimiento Estratégico contratacion@positiva.gov.co PBX: (1)6502200 Ext: 10641 | S50: NO | T50: NO | U50: NO | V50: SI | W50: =IF(V50="SI","Pública clasificada","Pública") -> Pública clasificada | X50: =CONCATENATE(E50,"-","Tipo de información"," ",W50,"-",G50) -> C55932021-Tipo de información Pública clasificada-Prestación de servicio de mantenimiento preventivo y correctivo con el suministro de repuestos, insumos y accesorios para los vehículos de casa matriz y la coordinadora Bogotá de Positiva Compañía de Seguros S.A.
A51: Financiera y Administrativa | B51: Gcia. Logística | D51: NO | E51: C55942021 | F51: 78181500 | G51: Prestación de servicio de mantenimiento preventivo y correctivo con el suministro de repuestos, insumos y accesorios para los vehículos de las coordinadoras Antioquia, Atlántico, Valle y Santander de Positiva Compañía de Seguros S.A. | H51: 2021-02-01 | I51: =MONTH(H51) -> 2 | J51: 2021-12-31 | K51: =_xlfn.DAYS(J51,H51)/30 -> 11.1 | L51: Invitación directa | M51: GastosAdministrativos | N51: 30870000 | O51: 30870000 | P51: NO | Q51: NA | R51: Gerencia de Abastecimiento Estratégico contratacion@positiva.gov.co PBX: (1)6502200 Ext: 10641 | S51: NO | T51: NO | U51: NO | V51: SI | W51: =IF(V51="SI","Pública clasificada","Pública") -> Pública clasificada | X51: =CONCATENATE(E51,"-","Tipo de información"," ",W51,"-",G51) -> C55942021-Tipo de información Pública clasificada-Prestación de servicio de mantenimiento preventivo y correctivo con el suministro de repuestos, insumos y accesorios para los vehículos de las coordinadoras Antioquia, Atlántico, Valle y Santander de Positiva Compañía de Seguros S.A.
A52: Financiera y Administrativa | B52: Gcia. Logística | D52: NO | E52: C55952021 | F52: 81111811 | G52: Prestación de servicios: especializados de mesa de servicio nivel 1 y el soporte técnico para infraestructura básica de Positiva Compañía de Seguros S.A. a nivel nacional. | H52: 2021-08-01 | I52: =MONTH(H52) -> 8 | J52: 2021-12-31 | K52: =_xlfn.DAYS(J52,H52)/30 -> 5.066666667 | L52: Invitación pública | M52: GastosAdministrativos | N52: 216000000 | O52: 216000000 | P52: NO | Q52: NA | R52: Gerencia de Abastecimiento Estratégico contratacion@positiva.gov.co PBX: (1)6502200 Ext: 10641 | S52: NO | T52: NO | U52: NO | V52: SI | W52: =IF(V52="SI","Pública clasificada","Pública") -> Pública clasificada | X52: =CONCATENATE(E52,"-","Tipo de información"," ",W52,"-",G52) -> C55952021-Tipo de información Pública clasificada-Prestación de servicios: especializados de mesa de servicio nivel 1 y el soporte técnico para infraestructura básica de Positiva Compañía de Seguros S.A. a nivel nacional.
A53: Financiera y Administrativa | B53: Gcia. Logística | D53: NO | E53: C55462021 | F53: 72101507 | G53: Prestación de servicios de mantenimiento locativo sedes a Nivel Nacional | H53: 2021-04-15 | I53: =MONTH(H53) -> 4 | J53: 2021-12-31 | K53: =_xlfn.DAYS(J53,H53)/30 -> 8.666666667 | L53: Invitación pública | M53: GastosAdministrativos | N53: 871000000 | O53: 871000000 | P53: NO | Q53: NA | R53: Gerencia de Abastecimiento Estratégico contratacion@positiva.gov.co PBX: (1)6502200 Ext: 10641 | S53: NO | T53: NO | U53: NO | V53: SI | W53: =IF(V53="SI","Pública clasificada","Pública") -> Pública clasificada | X53: =CONCATENATE(E53,"-","Tipo de información"," ",W53,"-",G53) -> C55462021-Tipo de información Pública clasificada-Prestación de servicios de mantenimiento locativo sedes a Nivel Nacional
A54: Financiera y Administrativa | B54: Gcia. Logística | D54: NO | E54: C55972021 | F54: 72101507 | G54: Prestacion de servicios para el mantenimiento preventivo y correctivo de la Planta de Emergencia y Sub Estacion de Cali | H54: 2021-05-15 | I54: =MONTH(H54) -> 5 | J54: 2021-12-31 | K54: =_xlfn.DAYS(J54,H54)/30 -> 7.666666667 | L54: Invitación directa | M54: GastosAdministrativos | N54: 10083278 | O54: 10083278 | P54: NO | Q54: NA | R54: Gerencia de Abastecimiento Estratégico contratacion@positiva.gov.co PBX: (1)6502200 Ext: 10641 | S54: NO | T54: NO | U54: NO | V54: SI | W54: =IF(V54="SI","Pública clasificada","Pública") -> Pública clasificada | X54: =CONCATENATE(E54,"-","Tipo de información"," ",W54,"-",G54) -> C55972021-Tipo de información Pública clasificada-Prestacion de servicios para el mantenimiento preventivo y correctivo de la Planta de Emergencia y Sub Estacion de Cali
A55: Financiera y Administrativa | B55: Gcia. Logística | D55: NO | E55: C55982021 | F55: 47000000 | G55: Prestacion del servicio para el mantenimiento del equipo hidroneumatico y manteniminto de piscinas Cali. | H55: 2021-04-05 | I55: =MONTH(H55) -> 4 | J55: 2021-12-31 | K55: =_xlfn.DAYS(J55,H55)/30 -> 9 | L55: Invitación directa | M55: GastosAdministrativos | N55: 16000000 | O55: 16000000 | P55: NO | Q55: NA | R55: Gerencia de Abastecimiento Estratégico contratacion@positiva.gov.co PBX: (1)6502200 Ext: 10641 | S55: NO | T55: NO | U55: NO | V55: SI | W55: =IF(V55="SI","Pública clasificada","Pública") -> Pública clasificada | X55: =CONCATENATE(E55,"-","Tipo de información"," ",W55,"-",G55) -> C55982021-Tipo de información Pública clasificada-Prestacion del servicio para el mantenimiento del equipo hidroneumatico y manteniminto de piscinas Cali.
A56: Financiera y Administrativa | B56: Gcia. Logística | D56: NO | E56: C55992021 | F56: 72101507 | G56: Obra: Adecuación Traslado Meta | H56: 2021-03-01 | I56: =MONTH(H56) -> 3 | J56: 2021-04-30 | K56: =_xlfn.DAYS(J56,H56)/30 -> 2 | L56: Invitación directa | M56: GastosAdministrativos | N56: 85000000 | O56: 85000000 | P56: NO | Q56: NA | R56: Gerencia de Abastecimiento Estratégico contratacion@positiva.gov.co PBX: (1)6502200 Ext: 10641 | S56: NO | T56: NO | U56: NO | V56: SI | W56: =IF(V56="SI","Pública clasificada","Pública") -> Pública clasificada | X56: =CONCATENATE(E56,"-","Tipo de información"," ",W56,"-",G56) -> C55992021-Tipo de información Pública clasificada-Obra: Adecuación Traslado Meta
A57: Financiera y Administrativa | B57: Gcia. Logística | D57: NO | E57: C56002021 | F57: 72101507 | G57: Obra: Adecuación Traslado Caquetá | H57: 2021-05-01 | I57: =MONTH(H57) -> 5 | J57: 2021-07-31 | K57: =_xlfn.DAYS(J57,H57)/30 -> 3.033333333 | L57: Invitación directa | M57: GastosAdministrativos | N57: 40000000 | O57: 40000000 | P57: NO | Q57: NA | R57: Gerencia de Abastecimiento Estratégico contratacion@positiva.gov.co PBX: (1)6502200 Ext: 10641 | S57: NO | T57: NO | U57: NO | V57: SI | W57: =IF(V57="SI","Pública clasificada","Pública") -> Pública clasificada | X57: =CONCATENATE(E57,"-","Tipo de información"," ",W57,"-",G57) -> C56002021-Tipo de información Pública clasificada-Obra: Adecuación Traslado Caquetá
A58: Financiera y Administrativa | B58: Gcia. Logística | D58: NO | E58: C56012021 | F58: 72154066 | G58: Prestación de servicios de mantenimiento CCTV con repuestos | H58: 2021-03-01 | I58: =MONTH(H58) -> 3 | J58: 2021-12-31 | K58: =_xlfn.DAYS(J58,H58)/30 -> 10.16666667 | L58: Invitación directa | M58: GastosAdministrativos | N58: 105000000 | O58: 105000000 | P58: NO | Q58: NA | R58: Gerencia de Abastecimiento Estratégico contratacion@positiva.gov.co PBX: (1)6502200 Ext: 10641 | S58: NO | T58: NO | U58: NO | V58: SI | W58: =IF(V58="SI","Pública clasificada","Pública") -> Pública clasificada | X58: =CONCATENATE(E58,"-","Tipo de información"," ",W58,"-",G58) -> C56012021-Tipo de información Pública clasificada-Prestación de servicios de mantenimiento CCTV con repuestos
A59: Financiera y Administrativa | B59: Gcia. Logística | D59: NO | E59: C56022021 | F59: 72154066 | G59: Prestación de servicios de mantenimiento dispositivos video conferencia con repuestos | H59: 2021-03-01 | I59: =MONTH(H59) -> 3 | J59: 2021-12-31 | K59: =_xlfn.DAYS(J59,H59)/30 -> 10.16666667 | L59: Invitación directa | M59: GastosAdministrativos | N59: 60000000 | O59: 60000000 | P59: NO | Q59: NA | R59: Gerencia de Abastecimiento Estratégico contratacion@positiva.gov.co PBX: (1)6502200 Ext: 10641 | S59: NO | T59: NO | U59: NO | V59: SI | W59: =IF(V59="SI","Pública clasificada","Pública") -> Pública clasificada | X59: =CONCATENATE(E59,"-","Tipo de información"," ",W59,"-",G59) -> C56022021-Tipo de información Pública clasificada-Prestación de servicios de mantenimiento dispositivos video conferencia con repuestos
A60: Financiera y Administrativa | B60: Gcia. Logística | D60: NO | E60: C56032021 | F60: 72154066 | G60: Prestación de servicios de mantenimiento digiturnos | H60: 2021-05-01 | I60: =MONTH(H60) -> 5 | J60: 2021-12-31 | K60: =_xlfn.DAYS(J60,H60)/30 -> 8.133333333 | L60: Invitación directa | M60: GastosAdministrativos | N60: 30000000 | O60: 30000000 | P60: NO | Q60: NA | R60: Gerencia de Abastecimiento Estratégico contratacion@positiva.gov.co PBX: (1)6502200 Ext: 10641 | S60: NO | T60: NO | U60: NO | V60: SI | W60: =IF(V60="SI","Pública clasificada","Pública") -> Pública clasificada | X60: =CONCATENATE(E60,"-","Tipo de información"," ",W60,"-",G60) -> C56032021-Tipo de información Pública clasificada-Prestación de servicios de mantenimiento digiturnos
A61: Financiera y Administrativa | B61: Gcia. Logística | D61: NO | E61: C56042021 | F61: 78181701 | G61: Suminisro de combustible vehiculos Positiva Compañía de Seguros SA | H61: 2021-03-01 | I61: =MONTH(H61) -> 3 | J61: 2021-12-31 | K61: =_xlfn.DAYS(J61,H61)/30 -> 10.16666667 | L61: Invitación directa | M61: GastosAdministrativos | N61: 63500000 | O61: 63500000 | P61: NO | Q61: NA | R61: Gerencia de Abastecimiento Estratégico contratacion@positiva.gov.co PBX: (1)6502200 Ext: 10641 | S61: NO | T61: NO | U61: NO | V61: SI | W61: =IF(V61="SI","Pública clasificada","Pública") -> Pública clasificada | X61: =CONCATENATE(E61,"-","Tipo de información"," ",W61,"-",G61) -> C56042021-Tipo de información Pública clasificada-Suminisro de combustible vehiculos Positiva Compañía de Seguros SA
A62: Financiera y Administrativa | B62: Gcia. Logística | D62: NO | E62: C56052021 | F62: 14111828 | G62: Suministro de papelería | H62: 2021-08-01 | I62: =MONTH(H62) -> 8 | J62: 2021-12-31 | K62: =_xlfn.DAYS(J62,H62)/30 -> 5.066666667 | L62: Invitación directa | M62: GastosAdministrativos | N62: 32000000 | O62: 32000000 | P62: NO | Q62: NA | R62: Gerencia de Abastecimiento Estratégico contratacion@positiva.gov.co PBX: (1)6502200 Ext: 10641 | S62: NO | T62: NO | U62: NO | V62: SI | W62: =IF(V62="SI","Pública clasificada","Pública") -> Pública clasificada | X62: =CONCATENATE(E62,"-","Tipo de información"," ",W62,"-",G62) -> C56052021-Tipo de información Pública clasificada-Suministro de papelería
A63: Financiera y Administrativa | B63: Gcia. Logística | D63: NO | E63: C56062021 | F63: 81112200 | G63: Prestación de servicios de mantenimiento aplicativos Sunboxes y Sico Viáticos | H63: 2021-05-01 | I63: =MONTH(H63) -> 5 | J63: 2021-12-31 | K63: =_xlfn.DAYS(J63,H63)/30 -> 8.133333333 | L63: Invitación directa | M63: GastosAdministrativos | N63: 66600000 | O63: 66600000 | P63: NO | Q63: NA | R63: Gerencia de Abastecimiento Estratégico contratacion@positiva.gov.co PBX: (1)6502200 Ext: 10641 | S63: NO | T63: NO | U63: NO | V63: SI | W63: =IF(V63="SI","Pública clasificada","Pública") -> Pública clasificada | X63: =CONCATENATE(E63,"-","Tipo de información"," ",W63,"-",G63) -> C56062021-Tipo de información Pública clasificada-Prestación de servicios de mantenimiento aplicativos Sunboxes y Sico Viáticos
A64: Financiera y Administrativa | B64: Gcia. Logística | D64: NO | E64: C56072021 | F64: 80131802 | G64: Prestación de servicios de avalúos inmuebles | H64: 2021-10-01 | I64: =MONTH(H64) -> 10 | J64: 2021-12-31 | K64: =_xlfn.DAYS(J64,H64)/30 -> 3.033333333 | L64: Invitación directa | M64: GastosAdministrativos | N64: 65000000 | O64: 65000000 | P64: NO | Q64: NA | R64: Gerencia de Abastecimiento Estratégico contratacion@positiva.gov.co PBX: (1)6502200 Ext: 10641 | S64: NO | T64: NO | U64: NO | V64: SI | W64: =IF(V64="SI","Pública clasificada","Pública") -> Pública clasificada | X64: =CONCATENATE(E64,"-","Tipo de información"," ",W64,"-",G64) -> C56072021-Tipo de información Pública clasificada-Prestación de servicios de avalúos inmuebles
A65: Financiera y Administrativa | B65: Gcia. Logística | D65: NO | E65: C56122021 | F65: 46191601 | G65: Suministro: Compra de 64 Extintores contra incendio tipo NBC-BIOXIDO DE CARBONO GAS CO2, (Dotado de valbula de descargue, Cilindro en ACERO AL CARBONO pintado en color rojo, manguera, cornetadielectrica), Modelo 10 Libras de capacidad , debidamente cargado, con su respectiva señalizacion. | H65: 2021-05-15 | I65: =MONTH(H65) -> 5 | J65: 2021-07-30 | K65: =_xlfn.DAYS(J65,H65)/30 -> 2.533333333 | L65: Invitación directa | M65: GastosAdministrativos | N65: 16640000 | O65: 16640000 | P65: NO | Q65: NA | R65: Gerencia de Abastecimiento Estratégico contratacion@positiva.gov.co PBX: (1)6502200 Ext: 10641 | S65: NO | T65: NO | U65: NO | V65: SI | W65: =IF(V65="SI","Pública clasificada","Pública") -> Pública clasificada | X65: =CONCATENATE(E65,"-","Tipo de información"," ",W65,"-",G65) -> C56122021-Tipo de información Pública clasificada-Suministro: Compra de 64 Extintores contra incendio tipo NBC-BIOXIDO DE CARBONO GAS CO2, (Dotado de valbula de descargue, Cilindro en ACERO AL CARBONO pintado en color rojo, manguera, cornetadielectrica), Modelo 10 Libras de capacidad , debidamente cargado, con su respectiva señalizacion.
A66: Financiera y Administrativa | B66: Gcia. Logística | D66: NO | E66: C56132021 | F66: 71123005 | G66: Suministrar la logística para atender reuniones de nivel directivo en Positiva Compañía de Seguros a través del servicio de catering para los eventos que programe la Compañía. | H66: 2021-04-20 | I66: =MONTH(H66) -> 4 | J66: 2021-12-31 | K66: =_xlfn.DAYS(J66,H66)/30 -> 8.5 | L66: Invitación directa | M66: GastosAdministrativos | N66: 20000000 | O66: 20000000 | P66: NO | Q66: NA | R66: Gerencia de Abastecimiento Estratégico contratacion@positiva.gov.co PBX: (1)6502200 Ext: 10641 | S66: NO | T66: NO | U66: NO | V66: SI | W66: =IF(V66="SI","Pública clasificada","Pública") -> Pública clasificada | X66: =CONCATENATE(E66,"-","Tipo de información"," ",W66,"-",G66) -> C56132021-Tipo de información Pública clasificada-Suministrar la logística para atender reuniones de nivel directivo en Positiva Compañía de Seguros a través del servicio de catering para los eventos que programe la Compañía.
A67: Financiera y Administrativa | B67: Gcia. Logística | D67: NO | E67: C56142021 | F67: 72101507 | G67: Obra: Adecuación locativa para entrega del local del bien inmueble ubicado en la Calle 49 Número 19- 81 Piso 1 Barrio Colombia en Barrancabermeja y Suministro e instalación de Gato hidráulico marca Speedy ref. m25, para puerta principal de la ciudad de Bucaramanga-Santander | H67: 2021-06-01 | I67: =MONTH(H67) -> 6 | J67: 2021-06-30 | K67: =_xlfn.DAYS(J67,H67)/30 -> 0.9666666667 | L67: Invitación directa | M67: GastosAdministrativos | N67: 5778948 | O67: 5778948 | P67: NO | Q67: NA | R67: Gerencia de Abastecimiento Estratégico contratacion@positiva.gov.co PBX: (1)6502200 Ext: 10641 | S67: NO | T67: NO | U67: NO | V67: SI | W67: =IF(V67="SI","Pública clasificada","Pública") -> Pública clasificada | X67: =CONCATENATE(E67,"-","Tipo de información"," ",W67,"-",G67) -> C56142021-Tipo de información Pública clasificada-Obra: Adecuación locativa para entrega del local del bien inmueble ubicado en la Calle 49 Número 19- 81 Piso 1 Barrio Colombia en Barrancabermeja y Suministro e instalación de Gato hidráulico marca Speedy ref. m25, para puerta principal de la ciudad de Bucaramanga-Santander
A68: Financiera y Administrativa | B68: Gcia. Logística | D68: NO | E68: C56162021 | F68: 72101507 | G68: Prestación de servicios de mantenimiento locativo de la sede Pereira de Positiva Compañía de Seguros S.A. | H68: 2021-06-01 | I68: =MONTH(H68) -> 6 | J68: 2021-06-30 | K68: =_xlfn.DAYS(J68,H68)/30 -> 0.9666666667 | L68: Invitación directa | M68: GastosAdministrativos | N68: 31260244 | O68: 31260244 | P68: NO | Q68: NA | R68: Gerencia de Abastecimiento Estratégico contratacion@positiva.gov.co PBX: (1)6502200 Ext: 10641 | S68: NO | T68: NO | U68: NO | V68: SI | W68: =IF(V68="SI","Pública clasificada","Pública") -> Pública clasificada | X68: =CONCATENATE(E68,"-","Tipo de información"," ",W68,"-",G68) -> C56162021-Tipo de información Pública clasificada-Prestación de servicios de mantenimiento locativo de la sede Pereira de Positiva Compañía de Seguros S.A.
A69: Negocios | B69: Gcia. Canales | D69: NO | E69: C35302021 | F69: 80141600 | G69: Prestación de servicios outsorcing de personal | H69: 1/03/2021 | I69: =MONTH(H69) -> 3 | J69: 31/12/2021 | K69: =_xlfn.DAYS(J69,H69)/30 -> 10.16666667 | L69: Invitación cerrada | M69: GastosAdministrativos | N69: 5226142781 | O69: 5226142781 | P69: NO | Q69: NA | R69: Gerencia de Abastecimiento Estratégico contratacion@positiva.gov.co PBX: (1)6502200 Ext: 10641 | S69: SI | T69: SI | U69: NA | V69: SI | W69: =IF(V69="SI","Pública clasificada","Pública") -> Pública clasificada | X69: =CONCATENATE(E69,"-","Tipo de información"," ",W69,"-",G69) -> C35302021-Tipo de información Pública clasificada-Prestación de servicios outsorcing de personal
A70: Negocios | B70: Gcia. Canales | D70: NO | E70: C35432021 | F70: 80141607 | G70: Prestación de servicios plan de formación | H70: 1/03/2021 | I70: =MONTH(H70) -> 3 | J70: 31/05/2021 | K70: =_xlfn.DAYS(J70,H70)/30 -> 3.033333333 | L70: Invitación directa | M70: GastosAdministrativos | N70: 793253451 | O70: 793253451 | P70: NO | Q70: NA | R70: Gerencia de Abastecimiento Estratégico contratacion@positiva.gov.co PBX: (1)6502200 Ext: 10641 | S70: NO | T70: SI | U70: NA | V70: NO | W70: =IF(V70="SI","Pública clasificada","Pública") -> Pública | X70: =CONCATENATE(E70,"-","Tipo de información"," ",W70,"-",G70) -> C35432021-Tipo de información Pública-Prestación de servicios plan de formación
A71: Negocios | B71: Gcia. Canales | D71: NO | E71: C35322021 | F71: 43232303 | G71: Servicios de habilitación de suscripción salesforce.com, así como los servicios de soporte tecnológico y capacitación funcional. | H71: 1/01/2021 | I71: =MONTH(H71) -> 1 | J71: 31/12/2021 | K71: =_xlfn.DAYS(J71,H71)/30 -> 12.13333333 | L71: Invitación directa | M71: GastosAdministrativos | N71: 610238339 | O71: 610238339 | P71: NO | Q71: NA | R71: Gerencia de Abastecimiento Estratégico contratacion@positiva.gov.co PBX: (1)6502200 Ext: 10641 | S71: SI | T71: SI | U71: SI | V71: SI | W71: =IF(V71="SI","Pública clasificada","Pública") -> Pública clasificada | X71: =CONCATENATE(E71,"-","Tipo de información"," ",W71,"-",G71) -> C35322021-Tipo de información Pública clasificada-Servicios de habilitación de suscripción salesforce.com, así como los servicios de soporte tecnológico y capacitación funcional.
A72: Negocios | B72: Gcia. Canales | D72: NO | E72: C35402021 | F72: 82101800, 82101701, 82101801, 82101802, 82101900, | G72: Prestación de servicios para la planeación e implementación de estrategias de mercadeo y comunicaciones, las cuales se ejecutarán por medio de las diversas actividades y disciplinas de marketing, endomarketing y comunicaciones, orientadas a fortalecer la posición de positiva compañía de seguros en el mercado y al interior de la compañía | H72: 1/05/2021 | I72: =MONTH(H72) -> 5 | J72: 31/12/2021 | K72: =_xlfn.DAYS(J72,H72)/30 -> 8.133333333 | L72: Invitación directa | M72: GastosAdministrativos | N72: 120000000 | O72: 120000000 | P72: NO | Q72: NA | R72: Gerencia de Abastecimiento Estratégico contratacion@positiva.gov.co PBX: (1)6502200 Ext: 10641 | S72: SI | T72: SI | U72: NA | V72: SI | W72: =IF(V72="SI","Pública clasificada","Pública") -> Pública clasificada | X72: =CONCATENATE(E72,"-","Tipo de información"," ",W72,"-",G72) -> C35402021-Tipo de información Pública clasificada-Prestación de servicios para la planeación e implementación de estrategias de mercadeo y comunicaciones, las cuales se ejecutarán por medio de las diversas actividades y disciplinas de marketing, endomarketing y comunicaciones, orientadas a fortalecer la posición de positiva compañía de seguros en el mercado y al interior de la compañía
A73: Negocios | B73: Gcia. Canales | D73: NO | E73: C35252021 | F73: 86101804 | G73: Prestación de servicios, capacitaciones virtuales para la estructura comercial e intermediarios | H73: 1/01/2021 | I73: =MONTH(H73) -> 1 | J73: 31/12/2021 | K73: =_xlfn.DAYS(J73,H73)/30 -> 12.13333333 | L73: Invitación directa | M73: GastosAdministrativos | N73: 100000000 | O73: 100000000 | P73: NO | Q73: NA | R73: Gerencia de Abastecimiento Estratégico contratacion@positiva.gov.co PBX: (1)6502200 Ext: 10641 | S73: SI | T73: NO | U73: SI | V73: SI | W73: =IF(V73="SI","Pública clasificada","Pública") -> Pública clasificada | X73: =CONCATENATE(E73,"-","Tipo de información"," ",W73,"-",G73) -> C35252021-Tipo de información Pública clasificada-Prestación de servicios, capacitaciones virtuales para la estructura comercial e intermediarios
A74: Negocios | B74: Gcia. Canales | D74: NO | E74: C35232021 | F74: 86132001 | G74: Capacitación y entrenamiento fuerza comercial | H74: 1/03/2021 | I74: =MONTH(H74) -> 3 | J74: 31/12/2021 | K74: 9 | L74: Invitación directa | M74: GastosAdministrativos | N74: 90000000 | O74: 90000000 | P74: NO | Q74: NA | R74: Gerencia de Abastecimiento Estratégico contratacion@positiva.gov.co PBX: (1)6502200 Ext: 10641 | S74: SI | T74: SI | U74: NA | V74: SI | W74: =IF(V74="SI","Pública clasificada","Pública") -> Pública clasificada | X74: =CONCATENATE(E74,"-","Tipo de información"," ",W74,"-",G74) -> C35232021-Tipo de información Pública clasificada-Capacitación y entrenamiento fuerza comercial
A75: Negocios | B75: Gcia. Seguros de Vida | D75: NO | E75: C35112021 | F75: 82101500 | G75: Renovación póliza magisterio contratada por intermedio de lym | H75: 2021-05-01 | I75: =MONTH(H75) -> 5 | J75: 31/12/2021 | K75: =_xlfn.DAYS(J75,H75)/30 -> 8.133333333 | L75: Invitación directa | M75: GastosAdministrativos | N75: 15315000 | O75: 15315000 | P75: NO | Q75: NA | R75: Gerencia de Abastecimiento Estratégico contratacion@positiva.gov.co PBX: (1)6502200 Ext: 10641 | S75: SI | T75: SI | U75: NA | V75: SI | W75: =IF(V75="SI","Pública clasificada","Pública") -> Pública clasificada | X75: =CONCATENATE(E75,"-","Tipo de información"," ",W75,"-",G75) -> C35112021-Tipo de información Pública clasificada-Renovación póliza magisterio contratada por intermedio de lym
A76: Negocios | B76: Gcia. Canales | D76: NO | E76: C35332021 | F76: 80141500 | G76: Adquisición de estudio de la calidad del servicio de las arl | H76: 1/02/2021 | I76: =MONTH(H76) -> 2 | J76: 31/05/2021 | K76: =_xlfn.DAYS(J76,H76)/30 -> 3.966666667 | L76: Invitación directa | M76: GastosAdministrativos | N76: 13911636 | O76: 13911636 | P76: NO | Q76: NA | R76: Gerencia de Abastecimiento Estratégico contratacion@positiva.gov.co PBX: (1)6502200 Ext: 10641 | S76: SI | T76: SI | U76: NA | V76: SI | W76: =IF(V76="SI","Pública clasificada","Pública") -> Pública clasificada | X76: =CONCATENATE(E76,"-","Tipo de información"," ",W76,"-",G76) -> C35332021-Tipo de información Pública clasificada-Adquisición de estudio de la calidad del servicio de las arl
A77: Negocios | B77: Gcia. Canales | D77: NO | E77: C35392021 | F77: 80141500 | G77: Contratar los servicios de una agencia de investigación de mercado, para realizar investigaciones que permitan recolectar información de interés para la compañía | H77: 1/04/2021 | I77: =MONTH(H77) -> 4 | J77: 31/07/2021 | K77: =_xlfn.DAYS(J77,H77)/30 -> 4.033333333 | L77: Invitación directa | M77: GastosAdministrativos | N77: 13783500 | O77: 13783500 | P77: NO | Q77: NA | R77: Gerencia de Abastecimiento Estratégico contratacion@positiva.gov.co PBX: (1)6502200 Ext: 10641 | S77: SI | T77: SI | U77: NA | V77: NO | W77: =IF(V77="SI","Pública clasificada","Pública") -> Pública | X77: =CONCATENATE(E77,"-","Tipo de información"," ",W77,"-",G77) -> C35392021-Tipo de información Pública-Contratar los servicios de una agencia de investigación de mercado, para realizar investigaciones que permitan recolectar información de interés para la compañía
A78: Negocios | B78: Gcia. Canales | D78: NO | E78: C35352021 | F78: 80141500 | G78: Adquisición de estudio de la calidad del servicio de las arl | H78: 1/02/2021 | I78: =MONTH(H78) -> 2 | J78: 31/05/2021 | K78: =_xlfn.DAYS(J78,H78)/30 -> 3.966666667 | L78: Invitación directa | M78: GastosAdministrativos | N78: 2250186 | O78: 2250186 | P78: NO | Q78: NA | R78: Gerencia de Abastecimiento Estratégico contratacion@positiva.gov.co PBX: (1)6502200 Ext: 10641 | S78: SI | T78: SI | U78: NA | V78: SI | W78: =IF(V78="SI","Pública clasificada","Pública") -> Pública clasificada | X78: =CONCATENATE(E78,"-","Tipo de información"," ",W78,"-",G78) -> C35352021-Tipo de información Pública clasificada-Adquisición de estudio de la calidad del servicio de las arl
A79: Negocios | B79: Gcia. Experiencia del Cliente | D79: NO | E79: C35182021 | F79: 81131504 | G79: Prestación de servicios / medición de satisfacción y experiencia con los productos y servicios que ofrece positiva compañía de seguros s.a. dirigida a clientes, empresas ramo rl, tomadores de póliza seguros de vida, intermediarios y proveedores. | H79: 1/02/2021 | I79: =MONTH(H79) -> 2 | J79: 31/12/2021 | K79: =_xlfn.DAYS(J79,H79)/30 -> 11.1 | L79: Invitación cerrada | M79: GastosAdministrativos | N79: 313191750 | O79: 313191750 | P79: NO | Q79: NA | R79: Gerencia de Abastecimiento Estratégico contratacion@positiva.gov.co PBX: (1)6502200 Ext: 10641 | S79: SI | T79: SI | U79: NA | V79: SI | W79: =IF(V79="SI","Pública clasificada","Pública") -> Pública clasificada | X79: =CONCATENATE(E79,"-","Tipo de información"," ",W79,"-",G79) -> C35182021-Tipo de información Pública clasificada-Prestación de servicios / medición de satisfacción y experiencia con los productos y servicios que ofrece positiva compañía de seguros s.a. dirigida a clientes, empresas ramo rl, tomadores de póliza seguros de vida, intermediarios y proveedores.
A80: Negocios | B80: Gcia. Experiencia del Cliente | D80: NO | E80: C35212021 | F80: 80141600 | G80: Prestación de servicios outsorcing de personal | H80: 1/03/2021 | I80: =MONTH(H80) -> 3 | J80: 31/12/2021 | K80: =_xlfn.DAYS(J80,H80)/30 -> 10.16666667 | L80: Invitación cerrada | M80: GastosAdministrativos | N80: 297707485 | O80: 297707485 | P80: NO | Q80: NA | R80: Gerencia de Abastecimiento Estratégico contratacion@positiva.gov.co PBX: (1)6502200 Ext: 10641 | S80: SI | T80: SI | U80: NA | V80: SI | W80: =IF(V80="SI","Pública clasificada","Pública") -> Pública clasificada | X80: =CONCATENATE(E80,"-","Tipo de información"," ",W80,"-",G80) -> C35212021-Tipo de información Pública clasificada-Prestación de servicios outsorcing de personal
A81: Negocios | B81: Gcia. Experiencia del Cliente | D81: NO | E81: C35202021 | F81: 14111608 | G81: Prestación de servicios / contar con un programa de fidelización y experiencia para los clientes. | H81: 1/06/2021 | I81: =MONTH(H81) -> 6 | J81: 31/12/2021 | K81: =_xlfn.DAYS(J81,H81)/30 -> 7.1 | L81: Invitación directa | M81: GastosAdministrativos | N81: 102100000 | O81: 102100000 | P81: NO | Q81: NA | R81: Gerencia de Abastecimiento Estratégico contratacion@positiva.gov.co PBX: (1)6502200 Ext: 10641 | S81: SI | T81: SI | U81: NA | V81: SI | W81: =IF(V81="SI","Pública clasificada","Pública") -> Pública clasificada | X81: =CONCATENATE(E81,"-","Tipo de información"," ",W81,"-",G81) -> C35202021-Tipo de información Pública clasificada-Prestación de servicios / contar con un programa de fidelización y experiencia para los clientes.
A82: Negocios | B82: Gcia. Experiencia del Cliente | D82: NO | E82: C35172021 | F82: 86101804 | G82: Prestación de servicios / desarrollar el programa de educación financiera a través de capacitaciones presenciales en el territorio nacional, dirigido a los trabajadores de las empresas afiliadas a riesgos laborales, tomadores de pólizas de vida y de otros ramos y/o clientes potenciales. | H82: 1/03/2021 | I82: =MONTH(H82) -> 3 | J82: 31/12/2021 | K82: =_xlfn.DAYS(J82,H82)/30 -> 10.16666667 | L82: Invitación directa | M82: GastosAdministrativos | N82: 91890000 | O82: 91890000 | P82: NO | Q82: NA | R82: Gerencia de Abastecimiento Estratégico contratacion@positiva.gov.co PBX: (1)6502200 Ext: 10641 | S82: NO | T82: SI | U82: NA | V82: NO | W82: =IF(V82="SI","Pública clasificada","Pública") -> Pública | X82: =CONCATENATE(E82,"-","Tipo de información"," ",W82,"-",G82) -> C35172021-Tipo de información Pública-Prestación de servicios / desarrollar el programa de educación financiera a través de capacitaciones presenciales en el territorio nacional, dirigido a los trabajadores de las empresas afiliadas a riesgos laborales, tomadores de pólizas de vida y de otros ramos y/o clientes potenciales.
A83: Negocios | B83: Gcia. Experiencia del Cliente | D83: NO | E83: C35342021 | F83: 80111616 | G83: Prestación de servicios / contar con el defensor del consumidor financiero | H83: 1/05/2021 | I83: =MONTH(H83) -> 5 | J83: 31/12/2021 | K83: =_xlfn.DAYS(J83,H83)/30 -> 8.133333333 | L83: Invitación directa | M83: GastosAdministrativos | N83: 71470000 | O83: 71470000 | P83: NO | Q83: NA | R83: Gerencia de Abastecimiento Estratégico contratacion@positiva.gov.co PBX: (1)6502200 Ext: 10641 | S83: NO | T83: SI | U83: NA | V83: NO | W83: =IF(V83="SI","Pública clasificada","Pública") -> Pública | X83: =CONCATENATE(E83,"-","Tipo de información"," ",W83,"-",G83) -> C35342021-Tipo de información Pública-Prestación de servicios / contar con el defensor del consumidor financiero
A84: Negocios | B84: Gcia. Experiencia del Cliente | D84: NO | E84: C35442021 | F84: 14111608 | G84: Prestación de servicios / contar con un programa de fidelización y experiencia en los diferentes momentos de verdad | H84: 1/05/2021 | I84: =MONTH(H84) -> 5 | J84: 31/12/2021 | K84: =_xlfn.DAYS(J84,H84)/30 -> 8.133333333 | L84: Invitación directa | M84: GastosAdministrativos | N84: 52000000 | O84: 52000000 | P84: NO | Q84: NA | R84: Gerencia de Abastecimiento Estratégico contratacion@positiva.gov.co PBX: (1)6502200 Ext: 10641 | S84: SI | T84: SI | U84: NA | V84: SI | W84: =IF(V84="SI","Pública clasificada","Pública") -> Pública clasificada | X84: =CONCATENATE(E84,"-","Tipo de información"," ",W84,"-",G84) -> C35442021-Tipo de información Pública clasificada-Prestación de servicios / contar con un programa de fidelización y experiencia en los diferentes momentos de verdad
A85: Negocios | B85: Gcia. Experiencia del Cliente | D85: NO | E85: C35452021 | F85: 81131504 | G85: Prestación de servicios / realizar medición de satisfacción y experiencia en tiempo real | H85: 1/04/2021 | I85: =MONTH(H85) -> 4 | J85: 31/12/2021 | K85: =_xlfn.DAYS(J85,H85)/30 -> 9.133333333 | L85: Invitación directa | M85: GastosAdministrativos | N85: 39053250 | O85: 39053250 | P85: NO | Q85: NA | R85: Gerencia de Abastecimiento Estratégico contratacion@positiva.gov.co PBX: (1)6502200 Ext: 10641 | S85: SI | T85: SI | U85: SI | V85: SI | W85: =IF(V85="SI","Pública clasificada","Pública") -> Pública clasificada | X85: =CONCATENATE(E85,"-","Tipo de información"," ",W85,"-",G85) -> C35452021-Tipo de información Pública clasificada-Prestación de servicios / realizar medición de satisfacción y experiencia en tiempo real
A86: Negocios | B86: Gcia. Experiencia del Cliente | C86: LINA PANTOJA | D86: SI | E86: C35222021 | F86: 80111616 | G86: Prestación de servicios / contar con el defensor del consumidor financiero | H86: 2021-01-30 | I86: =MONTH(H86) -> 1 | J86: 2021-04-30 | K86: =_xlfn.DAYS(J86,H86)/30 -> 3 | L86: Invitación directa | M86: GastosAdministrativos | N86: 30630000 | O86: 30630000 | P86: NO | Q86: NA | R86: Gerencia de Abastecimiento Estratégico contratacion@positiva.gov.co PBX: (1)6502200 Ext: 10641 | S86: NO | T86: SI | U86: NA | V86: NO | W86: =IF(V86="SI","Pública clasificada","Pública") -> Pública | X86: =CONCATENATE(E86,"-","Tipo de información"," ",W86,"-",G86) -> C35222021-Tipo de información Pública-Prestación de servicios / contar con el defensor del consumidor financiero
A87: Negocios | B87: Gcia. Seguros de Vida | D87: NO | E87: C35142021 | F87: 80141600, 80141606, 80141613 | G87: Prestación de servicios de promoción y prevención para implementar, mejorar y/o mantener actividades de asesoría, asistencia técnica y de formación en seguridad y salud en el trabajo, del plan básico en los programas (estructura empresarial, preparación y atención de emergencias, promoción y prevención en salud, protección colectiva e individual), plan avanzado en los programas (gestión de incidentes y accidentes de trabajo, gestión de enfermedad laboral), plan especializado (programa de vigilancia epidemiológica), plan gestión integral (sistemas integrados de gestión) de la estrategia crea del modelo de gestión positiva suma, de acuerdo a los planes de trabajo pactados con las empresas y cargados en el aplicativo gestpos, para empresas afiliadas a positiva compañía de seguros sucursales antioquia y chocó. / actividades de formación en prevención de accidentes, para estudiantes de las empresas clientes, de seguros de vida, especialmente municipio de medellín y la empresa itm de la sucursal antioquia de la zona antioquia | H87: 2021-09-01 | I87: =MONTH(H87) -> 9 | J87: 31/12/2021 | K87: =_xlfn.DAYS(J87,H87)/30 -> 4.033333333 | L87: Invitación directa | M87: GastosAdministrativos | N87: 116188655 | O87: 116188655 | P87: NO | Q87: NA | R87: Gerencia de Abastecimiento Estratégico contratacion@positiva.gov.co PBX: (1)6502200 Ext: 10641 | S87: SI | T87: SI | U87: NA | V87: SI | W87: =IF(V87="SI","Pública clasificada","Pública") -> Pública clasificada | X87: =CONCATENATE(E87,"-","Tipo de información"," ",W87,"-",G87) -> C35142021-Tipo de información Pública clasificada-Prestación de servicios de promoción y prevención para implementar, mejorar y/o mantener actividades de asesoría, asistencia técnica y de formación en seguridad y salud en el trabajo, del plan básico en los programas (estructura empresarial, preparación y atención de emergencias, promoción y prevención en salud, protección colectiva e individual), plan avanzado en los programas (gestión de incidentes y accidentes de trabajo, gestión de enfermedad laboral), plan especializado (programa de vigilancia epidemiológica), plan gestión integral (sistemas integrados de gestión) de la estrategia crea del modelo de gestión positiva suma, de acuerdo a los planes de trabajo pactados con las empresas y cargados en el aplicativo gestpos, para empresas afiliadas a positiva compañía de seguros sucursales antioquia y chocó. / actividades de formación en prevención de accidentes, para estudiantes de las empresas clientes, de seguros de vida, especialmente municipio de medellín y la empresa itm de la sucursal antioquia de la zona antioquia
A88: Negocios | B88: Gcia. Seguros de Vida | D88: NO | E88: C35362021 | F88: 14111514- 55101509 | G88: Suministro de material impreso para la divulgación de mensajes de promoción y prevención de accidentes en la póliza de accidentes personales de la universidad nacional | H88: 1/01/2021 | I88: =MONTH(H88) -> 1 | J88: 31/12/2021 | K88: =_xlfn.DAYS(J88,H88)/30 -> 12.13333333 | L88: Invitación directa | M88: GastosAdministrativos | N88: 82311345 | O88: 82311345 | P88: NO | Q88: NA | R88: Gerencia de Abastecimiento Estratégico contratacion@positiva.gov.co PBX: (1)6502200 Ext: 10641 | S88: SI | T88: SI | U88: NA | V88: SI | W88: =IF(V88="SI","Pública clasificada","Pública") -> Pública clasificada | X88: =CONCATENATE(E88,"-","Tipo de información"," ",W88,"-",G88) -> C35362021-Tipo de información Pública clasificada-Suministro de material impreso para la divulgación de mensajes de promoción y prevención de accidentes en la póliza de accidentes personales de la universidad nacional
A89: Negocios | B89: Gcia. Seguros de Vida | C89: LINA PANTOJA | D89: SI | E89: C35372021 | F89: 83121700-83121703-82101903 | G89: Manejo de redes sociales de la universidad nacional que incluyen campañas para controlar la accidentalidad y prevención, vida saludable, valores y actividades | H89: 1/01/2021 | I89: =MONTH(H89) -> 1 | J89: 31/12/2021 | K89: =_xlfn.DAYS(J89,H89)/30 -> 12.13333333 | L89: Invitación directa | M89: GastosAdministrativos | N89: 60500000 | O89: 60500000 | P89: NO | Q89: NA | R89: Gerencia de Abastecimiento Estratégico contratacion@positiva.gov.co PBX: (1)6502200 Ext: 10641 | S89: SI | T89: SI | U89: NA | V89: SI | W89: =IF(V89="SI","Pública clasificada","Pública") -> Pública clasificada | X89: =CONCATENATE(E89,"-","Tipo de información"," ",W89,"-",G89) -> C35372021-Tipo de información Pública clasificada-Manejo de redes sociales de la universidad nacional que incluyen campañas para controlar la accidentalidad y prevención, vida saludable, valores y actividades
A90: Negocios | B90: Gcia. Canales | D90: NO | E90: C35242021 | F90: 80141625 | G90: Suministro de productos y/o servicios de acuerdo con los requerimientos, cantidades y precios demandados por la compañía, para satisfacer las necesidades referentes a la entrega de incentivos a la gestión comercial | H90: 2021-04-01 | I90: =MONTH(H90) -> 4 | J90: 31/12/2021 | K90: =_xlfn.DAYS(J90,H90)/30 -> 9.133333333 | L90: Invitación directa | M90: GastosAdministrativos | N90: 90000000 | O90: 90000000 | P90: NO | Q90: NA | R90: Gerencia de Abastecimiento Estratégico contratacion@positiva.gov.co PBX: (1)6502200 Ext: 10641 | S90: SI | T90: SI | U90: SI | V90: SI | W90: =IF(V90="SI","Pública clasificada","Pública") -> Pública clasificada | X90: =CONCATENATE(E90,"-","Tipo de información"," ",W90,"-",G90) -> C35242021-Tipo de información Pública clasificada-Suministro de productos y/o servicios de acuerdo con los requerimientos, cantidades y precios demandados por la compañía, para satisfacer las necesidades referentes a la entrega de incentivos a la gestión comercial
A91: Operaciones | B91: Gcia. Afiliaciones y Novedades | D91: NO | E91: C45072021 | F91: 80121610 | G91: Suministros de Carnés Ramo Vida y ARL | H91: 1/05/2021 | I91: =MONTH(H91) -> 5 | J91: 30/12/2021 | K91: 8.1 | L91: Invitación directa | M91: GastosAdministrativos | N91: 205021936 | O91: 205021936 | P91: NO | Q91: NA | R91: Gerencia de Abastecimiento Estratégico contratacion@positiva.gov.co PBX: (1)6502200 Ext: 10641 | S91: SI | T91: SI | U91: NO | V91: SI | W91: Pública clasificada | X91: =CONCATENATE(E91,"-","Tipo de información"," ",W91,"-",G91) -> C45072021-Tipo de información Pública clasificada-Suministros de Carnés Ramo Vida y ARL
A92: Operaciones | B92: Gcia. Afiliaciones y Novedades | D92: NO | E92: C45082021 C45042022 C45012023 | F92: 80101510 | G92: Prestación de servicios de procesamiento de información y transferencia a las bases de datos de POSITIVA | H92: 2021-08-01 | I92: 8 | J92: 2023-07-31 | K92: 24.3 | L92: Invitación directa | M92: GastosAdministrativos | N92: 56938791319 | O92: 9139925719 | P92: NO | Q92: NA | R92: Gerencia de Abastecimiento Estratégico contratacion@positiva.gov.co PBX: (1)6502200 Ext: 10641 | S92: SI | T92: SI | U92: NO | V92: SI | W92: Pública clasificada | X92: =CONCATENATE(E92,"-","Tipo de información"," ",W92,"-",G92) -> C45082021 C45042022 C45012023-Tipo de información Pública clasificada-Prestación de servicios de procesamiento de información y transferencia a las bases de datos de POSITIVA
A93: Operaciones | B93: Gcia. Afiliaciones y Novedades | D93: NO | E93: C45252021 | F93: 80101510 | G93: Prestación de servicios de procesamiento de información y transferencia a las bases de datos de POSITIVA | H93: 1/06/2021 | I93: =MONTH(H93) -> 6 | J93: 2021-07-31 | K93: 2 | L93: Invitación directa | M93: GastosAdministrativos | N93: 4400000000 | O93: 4400000000 | P93: NO | Q93: NA | R93: Gerencia de Abastecimiento Estratégico contratacion@positiva.gov.co PBX: (1)6502200 Ext: 10641 | S93: SI | T93: SI | U93: NO | V93: SI | W93: Pública clasificada | X93: =CONCATENATE(E93,"-","Tipo de información"," ",W93,"-",G93) -> C45252021-Tipo de información Pública clasificada-Prestación de servicios de procesamiento de información y transferencia a las bases de datos de POSITIVA
A94: Operaciones | B94: Gcia. Recaudo y Cartera | D94: NO | E94: C45102021 | F94: 80121610 | G94: "Prestar sus servicios profesionales a la Gerencia de Recaudo y Cartera de POSITIVA en la revisión y conciliación de la información registrada en los diferentes aplicativos de los procesos de recaudo, cartera y liquidación de comisiones a fin de identificar inconsistencias y realizar los ajustes a que haya lugar; así como a apoyar en la legalización y reporte de los saldos pendientes por recuperar y/o los saldos pendientes por pagar en las cuentas corrientes de los intermediarios." | H94: 1/01/2021 | I94: =MONTH(H94) -> 1 | J94: 2021-12-31 | K94: 12.13333333 | L94: Invitación directa | M94: GastosAdministrativos | N94: 146404972 | O94: 146404972 | P94: NO | Q94: NA | R94: Gerencia de Abastecimiento Estratégico contratacion@positiva.gov.co PBX: (1)6502200 Ext: 10641 | S94: SI | T94: SI | U94: NO | V94: SI | W94: Pública clasificada
A95: Operaciones | B95: Gcia. Recaudo y Cartera | D95: NO | E95: C45112021 | F95: 80121610 | G95: Prestar servicios a la Gerencia de Afiliaciones y Novedades y a la Gerencia de Recaudo y Cartera de la Vicepresidencia de Operaciones de POSITIVA S.A en los asuntos administrativos que les competan en materia de afiliaciones, novedades, recaudos, cartera y recobros, así como en los temas específicos de naturaleza análoga que requiera directamente la Vicepresidencia de Operaciones. | H95: 1/01/2021 | I95: =MONTH(H95) -> 1 | J95: 2021-12-31 | K95: 12.13333333 | L95: Invitación directa | M95: GastosAdministrativos | N95: 146404972 | O95: 146404972 | P95: NO | Q95: NA | R95: Gerencia de Abastecimiento Estratégico contratacion@positiva.gov.co PBX: (1)6502200 Ext: 10641 | S95: SI | T95: SI | U95: NO | V95: SI | W95: Pública clasificada
A96: Operaciones | B96: Gcia. Recaudo y Cartera | D96: NO | E96: C45122021 | F96: 80121610 | G96: "Prestar sus servicios profesionales a la Gerencia de Recaudo y Cartera de POSITIVA en la revisión y conciliación de la información registrada en los diferentes aplicativos de los procesos de recaudo, cartera y liquidación de comisiones a fin de identificar inconsistencias y realizar los ajustes a que haya lugar; así como a apoyar en la legalización y reporte de los saldos pendientes por recuperar y/o los saldos pendientes por pagar en las cuentas corrientes de los intermediarios." | H96: 1/01/2021 | I96: =MONTH(H96) -> 1 | J96: 2021-12-31 | K96: 12.13333333 | L96: Invitación directa | M96: GastosAdministrativos | N96: 123029388 | O96: 123029388 | P96: NO | Q96: NA | R96: Gerencia de Abastecimiento Estratégico contratacion@positiva.gov.co PBX: (1)6502200 Ext: 10641 | S96: SI | T96: SI | U96: NO | V96: SI | W96: Pública clasificada
A97: Operaciones | B97: Gcia. Recaudo y Cartera | D97: NO | E97: C45132021 | F97: 80121610 | G97: Prestar sus servicios a la Gerencia de Afiliaciones y Novedades en la revisión, validación, conciliación y gestión de los procesos de mantenimiento de pólizas de los ramos de vida individual y colectivo. | H97: 1/01/2021 | I97: =MONTH(H97) -> 1 | J97: 2021-12-31 | K97: 12.13333333 | L97: Invitación directa | M97: GastosAdministrativos | N97: 50109345 | O97: 50109345 | P97: NO | Q97: NA | R97: Gerencia de Abastecimiento Estratégico contratacion@positiva.gov.co PBX: (1)6502200 Ext: 10641 | S97: SI | T97: SI | U97: NO | V97: SI | W97: Pública clasificada | X97: =CONCATENATE(E97,"-","Tipo de información"," ",W97,"-",G97) -> C45132021-Tipo de información Pública clasificada-Prestar sus servicios a la Gerencia de Afiliaciones y Novedades en la revisión, validación, conciliación y gestión de los procesos de mantenimiento de pólizas de los ramos de vida individual y colectivo.
A98: Operaciones | B98: Gcia. Recaudo y Cartera | D98: NO | E98: C45142021 | F98: 80121610 | G98: Prestar servicios a la Gerencia de Afiliaciones y Novedades y a la Gerencia de Recaudo y Cartera de la Vicepresidencia de Operaciones de POSITIVA S.A en los asuntos administrativos que les competan en materia de afiliaciones, novedades, recaudos, cartera y recobros, así como en los temas específicos de naturaleza análoga que requiera directamente la Vicepresidencia de Operaciones. | H98: 1/01/2021 | I98: =MONTH(H98) -> 1 | J98: 2021-12-31 | K98: 12.13333333 | L98: Invitación directa | M98: GastosAdministrativos | N98: 123029388 | O98: 123029388 | P98: NO | Q98: NA | R98: Gerencia de Abastecimiento Estratégico contratacion@positiva.gov.co PBX: (1)6502200 Ext: 10641 | S98: SI | T98: SI | U98: SI | V98: SI | W98: Pública clasificada | X98: =CONCATENATE(E98,"-","Tipo de información"," ",W98,"-",G98) -> C45142021-Tipo de información Pública clasificada-Prestar servicios a la Gerencia de Afiliaciones y Novedades y a la Gerencia de Recaudo y Cartera de la Vicepresidencia de Operaciones de POSITIVA S.A en los asuntos administrativos que les competan en materia de afiliaciones, novedades, recaudos, cartera y recobros, así como en los temas específicos de naturaleza análoga que requiera directamente la Vicepresidencia de Operaciones.
A99: Operaciones | B99: Gcia. Recaudo y Cartera | C99: JAVIER ERAZO | D99: SI | E99: C45152021 | F99: 80121610 | G99: Prestar los servicios de Gestión administrativa, persuasiva y pre jurídica de cobro por aportes de riesgos laborales en mora o inexactos. | H99: 1/06/2021 | I99: =MONTH(H99) -> 6 | J99: 2022-05-31 | K99: 12.13333333 | L99: Invitación directa | M99: GastosAdministrativos | N99: 346189042 | O99: 346189042 | P99: NO | Q99: NA | R99: Gerencia de Abastecimiento Estratégico contratacion@positiva.gov.co PBX: (1)6502200 Ext: 10641 | S99: SI | T99: SI | U99: NO | V99: SI | W99: Pública clasificada | X99: =CONCATENATE(E99,"-","Tipo de información"," ",W99,"-",G99) -> C45152021-Tipo de información Pública clasificada-Prestar los servicios de Gestión administrativa, persuasiva y pre jurídica de cobro por aportes de riesgos laborales en mora o inexactos.
A100: Operaciones | B100: Gcia. Recaudo y Cartera | C100: LINA PANTOJA | D100: SI | E100: C45162021 | F100: 80121610 | G100: Prestar los servicios de (i) envío de notificaciones certificadas y no certificadas, (ii) gestión administrativa, persuasiva y pre jurídica de cobro por aportes de riesgos laborales en mora o inexactos y (iii) Gestión administrativa, persuasiva y pre jurídica de recobros por mora, inconsistencias administrativas y ETB. | H100: 1/06/2021 | I100: =MONTH(H100) -> 6 | J100: 2022-05-31 | K100: 12.13333333 | L100: Invitación directa | M100: GastosAdministrativos | N100: 1400000000 | O100: 1400000000 | P100: NO | Q100: NA | R100: Gerencia de Abastecimiento Estratégico contratacion@positiva.gov.co PBX: (1)6502200 Ext: 10641 | S100: SI | T100: SI | U100: NO | V100: SI | W100: Pública clasificada | X100: =CONCATENATE(E100,"-","Tipo de información"," ",W100,"-",G100) -> C45162021-Tipo de información Pública clasificada-Prestar los servicios de (i) envío de notificaciones certificadas y no certificadas, (ii) gestión administrativa, persuasiva y pre jurídica de cobro por aportes de riesgos laborales en mora o inexactos y (iii) Gestión administrativa, persuasiva y pre jurídica de recobros por mora, inconsistencias administrativas y ETB.
A101: Operaciones | B101: Gcia. Recaudo y Cartera | C101: LINA PANTOJA | D101: SI | E101: C45172021 | F101: 80121610 | G101: Prestar los servicios de Gestión administrativa, persuasiva y pre jurídica de cobro por aportes de riesgos laborales en mora o inexactos y gestión administrativa de cobro de cartera vida. | H101: 1/06/2021 | I101: =MONTH(H101) -> 6 | J101: 2022-05-31 | K101: 12.13333333 | L101: Invitación directa | M101: GastosAdministrativos | N101: 321151456 | O101: 321151456 | P101: NO | Q101: NA | R101: Gerencia de Abastecimiento Estratégico contratacion@positiva.gov.co PBX: (1)6502200 Ext: 10641 | S101: SI | T101: SI | U101: NO | V101: SI | W101: Pública clasificada | X101: =CONCATENATE(E101,"-","Tipo de información"," ",W101,"-",G101) -> C45172021-Tipo de información Pública clasificada-Prestar los servicios de Gestión administrativa, persuasiva y pre jurídica de cobro por aportes de riesgos laborales en mora o inexactos y gestión administrativa de cobro de cartera vida.
A102: Operaciones | B102: Gcia. Recaudo y Cartera | D102: NO | E102: C45012022 | F102: 80121610 | G102: Prestar los servicios de Gestión administrativa, persuasiva y pre jurídica de cobro por aportes de riesgos laborales en mora o inexactos. | H102: 1/06/2021 | I102: =MONTH(H102) -> 6 | J102: 2022-05-31 | K102: 12.13333333 | L102: Invitación directa | M102: GastosAdministrativos | N102: 300000000 | O102: 300000000 | P102: SI | Q102: APROBADA | R102: Gerencia de Abastecimiento Estratégico contratacion@positiva.gov.co PBX: (1)6502200 Ext: 10641 | S102: SI | T102: SI | U102: NO | V102: SI | W102: Pública clasificada | X102: =CONCATENATE(E102,"-","Tipo de información"," ",W102,"-",G102) -> C45012022-Tipo de información Pública clasificada-Prestar los servicios de Gestión administrativa, persuasiva y pre jurídica de cobro por aportes de riesgos laborales en mora o inexactos.
A103: Operaciones | B103: Gcia. Recaudo y Cartera | D103: NO | E103: C4502222 | F103: 80121610 | G103: Prestar los servicios de (i) envío de notificaciones certificadas y no certificadas, (ii) gestión administrativa, persuasiva y pre jurídica de cobro por aportes de riesgos laborales en mora o inexactos y (iii) Gestión administrativa, persuasiva y pre jurídica de recobros por mora, inconsistencias administrativas y ETB. | H103: 1/06/2021 | I103: =MONTH(H103) -> 6 | J103: 2022-05-31 | K103: 12.13333333 | L103: Invitación directa | M103: GastosAdministrativos | N103: 1100000000 | O103: 1100000000 | P103: SI | Q103: APROBADA | R103: Gerencia de Abastecimiento Estratégico contratacion@positiva.gov.co PBX: (1)6502200 Ext: 10641 | S103: SI | T103: SI | U103: NO | V103: SI | W103: Pública clasificada | X103: =CONCATENATE(E103,"-","Tipo de información"," ",W103,"-",G103) -> C4502222-Tipo de información Pública clasificada-Prestar los servicios de (i) envío de notificaciones certificadas y no certificadas, (ii) gestión administrativa, persuasiva y pre jurídica de cobro por aportes de riesgos laborales en mora o inexactos y (iii) Gestión administrativa, persuasiva y pre jurídica de recobros por mora, inconsistencias administrativas y ETB.
A104: Operaciones | B104: Gcia. Recaudo y Cartera | D104: NO | E104: C45032022 | F104: 80121610 | G104: Prestar los servicios de Gestión administrativa, persuasiva y pre jurídica de cobro por aportes de riesgos laborales en mora o inexactos y gestión administrativa de cobro de cartera vida. | H104: 1/06/2021 | I104: =MONTH(H104) -> 6 | J104: 2022-05-31 | K104: 12.13333333 | L104: Invitación directa | M104: GastosAdministrativos | N104: 155000000 | O104: 155000000 | P104: SI | Q104: APROBADA | R104: Gerencia de Abastecimiento Estratégico contratacion@positiva.gov.co PBX: (1)6502200 Ext: 10641 | S104: SI | T104: SI | U104: NO | V104: SI | W104: Pública clasificada | X104: =CONCATENATE(E104,"-","Tipo de información"," ",W104,"-",G104) -> C45032022-Tipo de información Pública clasificada-Prestar los servicios de Gestión administrativa, persuasiva y pre jurídica de cobro por aportes de riesgos laborales en mora o inexactos y gestión administrativa de cobro de cartera vida.
A105: Operaciones | B105: Gcia. Recaudo y Cartera | C105: JAVIER ERAZO | D105: SI | E105: C45182021 | F105: 80121610 | G105: Prestación de Servicios de gestion de cobro en etapa persuasiva y prejuridica de firmas externas para Cartera ARL, y recobros por Mora a la Fecha del evento por GESTION DE COBRANZA CARTERA APORTES CONCILIACION | H105: 01/06/2020 | I105: =MONTH(H105) -> 6 | J105: 31/05/2021 | K105: 12.13333333 | L105: Invitación directa | M105: GastosAdministrativos | N105: 47180000 | O105: 47180000 | P105: NO | Q105: NA | R105: Gerencia de Abastecimiento Estratégico contratacion@positiva.gov.co PBX: (1)6502200 Ext: 10641 | S105: SI | T105: SI | U105: SI | V105: SI | W105: Pública clasificada | X105: =CONCATENATE(E105,"-","Tipo de información"," ",W105,"-",G105) -> C45182021-Tipo de información Pública clasificada-Prestación de Servicios de gestion de cobro en etapa persuasiva y prejuridica de firmas externas para Cartera ARL, y recobros por Mora a la Fecha del evento por GESTION DE COBRANZA CARTERA APORTES CONCILIACION
A106: Operaciones | B106: Gcia. Recaudo y Cartera | D106: NO | E106: C45192021 | F106: 80121610 | G106: Prestación de Servicios de Compra de registros al operador de información por datos Seguridad social sistema de Riesgos laborales. | H106: 2021-07-01 | I106: =MONTH(H106) -> 7 | J106: 2022-06-30 | K106: 12.13333333 | L106: Invitación directa | M106: GastosAdministrativos | N106: 9100598039 | O106: 9100598039 | P106: SI | Q106: EN TRAMITE | R106: Gerencia de Abastecimiento Estratégico contratacion@positiva.gov.co PBX: (1)6502200 Ext: 10641 | S106: SI | T106: SI | U106: NO | V106: SI | W106: Pública clasificada | X106: =CONCATENATE(E106,"-","Tipo de información"," ",W106,"-",G106) -> C45192021-Tipo de información Pública clasificada-Prestación de Servicios de Compra de registros al operador de información por datos Seguridad social sistema de Riesgos laborales.
A107: Operaciones | B107: Gcia. Recaudo y Cartera | D107: NO | E107: C45202021 | F107: 80121610 | G107: Prestación de Servicios de Compra de registros al operador de información por datos Seguridad social sistema de Riesgos laborales. | H107: 2021-07-01 | I107: =MONTH(H107) -> 7 | J107: 2022-06-30 | K107: 12.13333333 | L107: Invitación directa | M107: GastosAdministrativos | N107: 120403938 | O107: 120403938 | P107: SI | Q107: EN TRAMITE | R107: Gerencia de Abastecimiento Estratégico contratacion@positiva.gov.co PBX: (1)6502200 Ext: 10641 | S107: SI | T107: SI | U107: NO | V107: SI | W107: Pública clasificada | X107: =CONCATENATE(E107,"-","Tipo de información"," ",W107,"-",G107) -> C45202021-Tipo de información Pública clasificada-Prestación de Servicios de Compra de registros al operador de información por datos Seguridad social sistema de Riesgos laborales.
A108: Operaciones | B108: Vice. de Operaciones | C108: OMAR VANEGAS | D108: SI | E108: C45092021 | F108: 80121610 | G108: Prestación de Servicios de Contact Center | H108: 2021-12-01 | I108: =MONTH(H108) -> 12 | J108: 2022-11-30 | K108: 12.13333333 | L108: Invitación directa | M108: GastosAdministrativos | N108: 4800000000 | O108: 395000000 | P108: SI | Q108: EN TRAMITE | R108: Gerencia de Abastecimiento Estratégico contratacion@positiva.gov.co PBX: (1)6502200 Ext: 10641 | S108: SI | T108: SI | U108: NO | V108: SI | W108: Pública clasificada | X108: =CONCATENATE(E108,"-","Tipo de información"," ",W108,"-",G108) -> C45092021-Tipo de información Pública clasificada-Prestación de Servicios de Contact Center
A109: Promoción y Prevención | B109: Gcia. Administración del Riesgo | C109: OMAR VANEGAS | D109: SI | E109: C77842021 | F109: 93141808 93141811 | G109: Prestación de servicios de Promoción y Prevención para implementar, mejorar y/o mantener actividades de asesoría técnica del Sistema de Gestión de Seguridad y Salud en Trabajo, con base en los Programas de la Estrategia POSITIVA CREA del Modelo de Gestión POSITIVA SUMA en PLAN BASICO - Programa de Prevención y Protección Colectiva e Individual, Programa de Promoción y Prevención en Salud y Programa de Investigación de Incidentes y Accidentes de Trabajo PLAN AVANZADO - Programa Gestión para el control de Incidentes y Accidentes de Trabajo y Programa Gestión para la Prevención de la Enfermedad Laboral PLAN ESPECIALIZADO - Programas de Vigilancia Epidemiológica y PLAN GESTION INTEGRAL – Sistemas Integrados de Gestión para el acompañamiento de las empresas afiliadas a POSITIVA COMPAÑÍA DE SEGUROS en la Zona Bogotá; Gerencia de Corredores en la modalidad de atención Planes Regulares | H109: 2021-03-01 | I109: =MONTH(H109) -> 3 | J109: 2021-11-30 | K109: 11 | L109: Invitación directa | M109: PromociónyPrevención | N109: 61238000 | O109: 61238000 | P109: NO | Q109: NA | R109: Gerencia de Abastecimiento Estratégico contratacion@positiva.gov.co PBX: (1)6502200 Ext: 10641 | S109: SI | T109: NO | U109: NO | V109: SI | W109: =IF(V109="SI","Pública clasificada","Pública") -> Pública clasificada | X109: =CONCATENATE(E109,"-","Tipo de información"," ",W109,"-",G109) -> C77842021-Tipo de información Pública clasificada-Prestación de servicios de Promoción y Prevención para implementar, mejorar y/o mantener actividades de asesoría técnica del Sistema de Gestión de Seguridad y Salud en Trabajo, con base en los Programas de la Estrategia POSITIVA CREA del Modelo de Gestión POSITIVA SUMA en PLAN BASICO - Programa de Prevención y Protección Colectiva e Individual, Programa de Promoción y Prevención en Salud y Programa de Investigación de Incidentes y Accidentes de Trabajo PLAN AVANZADO - Programa Gestión para el control de Incidentes y Accidentes de Trabajo y Programa Gestión para la Prevención de la Enfermedad Laboral PLAN ESPECIALIZADO - Programas de Vigilancia Epidemiológica y PLAN GESTION INTEGRAL – Sistemas Integrados de Gestión para el acompañamiento de las empresas afiliadas a POSITIVA COMPAÑÍA DE SEGUROS en la Zona Bogotá; Gerencia de Corredores en la modalidad de atención Planes Regulares
A110: Promoción y Prevención | B110: Gcia. Administración del Riesgo | C110: DAVID DAZA | D110: SI | E110: C76282021 | F110: 93141808 93141811 | G110: Prestación de servicios de Promoción y Prevención del Sistema de Gestión de Seguridad y Salud en el Trabajo, para la ejecución de actividades de asesoría y asistencia técnica en el acompañamiento para el desarrollo de actividades de acondicionamiento físico mediante la utilización de una app y una plataforma digital de bienestar que se trabajará en tres ejes principales, el Físico, el emocional y el de comunidad, en la implementación del programa gestión en la prevención de enfermedades profesionales, del PLAN ESPECIALIZADO de la Estrategia CREA del Modelo de Gestión de Positiva SUMA para los trabajadores de la sede Bogotá de la empresa CARBONES DEL CERREJON LIMITED, en la sucursal Guajira de la Zona Atlántico. | H110: 2021-02-26 | I110: =MONTH(H110) -> 2 | J110: 2021-04-30 | K110: 2 | L110: Invitación directa | M110: PromociónyPrevención | N110: 41600000 | O110: 41600000 | P110: NO | Q110: NA | R110: Gerencia de Abastecimiento Estratégico contratacion@positiva.gov.co PBX: (1)6502200 Ext: 10641 | S110: SI | T110: NO | U110: NO | V110: SI | W110: =IF(V110="SI","Pública clasificada","Pública") -> Pública clasificada | X110: =CONCATENATE(E110,"-","Tipo de información"," ",W110,"-",G110) -> C76282021-Tipo de información Pública clasificada-Prestación de servicios de Promoción y Prevención del Sistema de Gestión de Seguridad y Salud en el Trabajo, para la ejecución de actividades de asesoría y asistencia técnica en el acompañamiento para el desarrollo de actividades de acondicionamiento físico mediante la utilización de una app y una plataforma digital de bienestar que se trabajará en tres ejes principales, el Físico, el emocional y el de comunidad, en la implementación del programa gestión en la prevención de enfermedades profesionales, del PLAN ESPECIALIZADO de la Estrategia CREA del Modelo de Gestión de Positiva SUMA para los trabajadores de la sede Bogotá de la empresa CARBONES DEL CERREJON LIMITED, en la sucursal Guajira de la Zona Atlántico.
A111: Promoción y Prevención | B111: Gcia. Administración del Riesgo | C111: OMAR VANEGAS | D111: SI | E111: C78172021 | F111: 93141808 93141811 | G111: Prestación de servicios de Promoción y Prevención para implementar, mejorar y/o mantener actividades de asesoría técnica del Sistema de Gestión de Seguridad y Salud en Trabajo, con base en los Programas de la Estrategia POSITIVA CREA del Modelo de Gestión POSITIVA SUMA PLAN AVANZADO - Programa Gestión para la Prevención de la Enfermedad Laboral para el acompañamiento de las empresas afiliadas a POSITIVA COMPAÑÍA DE SEGUROS en las Zonas Bogotá, Atlántico, Antioquia, Santander y Valle, atendidas en modalidad Gran Empresas | H111: 2021-02-15 | I111: =MONTH(H111) -> 2 | J111: 2021-11-30 | K111: 9 | L111: Invitación directa | M111: PromociónyPrevención | N111: 250000000 | O111: 250000000 | P111: NO | Q111: NA | R111: Gerencia de Abastecimiento Estratégico contratacion@positiva.gov.co PBX: (1)6502200 Ext: 10641 | S111: SI | T111: NO | U111: NO | V111: SI | W111: =IF(V111="SI","Pública clasificada","Pública") -> Pública clasificada | X111: =CONCATENATE(E111,"-","Tipo de información"," ",W111,"-",G111) -> C78172021-Tipo de información Pública clasificada-Prestación de servicios de Promoción y Prevención para implementar, mejorar y/o mantener actividades de asesoría técnica del Sistema de Gestión de Seguridad y Salud en Trabajo, con base en los Programas de la Estrategia POSITIVA CREA del Modelo de Gestión POSITIVA SUMA PLAN AVANZADO - Programa Gestión para la Prevención de la Enfermedad Laboral para el acompañamiento de las empresas afiliadas a POSITIVA COMPAÑÍA DE SEGUROS en las Zonas Bogotá, Atlántico, Antioquia, Santander y Valle, atendidas en modalidad Gran Empresas
A112: Promoción y Prevención | B112: Gcia. Administración del Riesgo | C112: OMAR VANEGAS | D112: SI | E112: C77882021 | F112: 93141808 93141811 | G112: prestación de de servicios de Promoción y Prevención para implementar, mejorar y/o mantener actividades de asesoría técnica del Sistema de Gestión de Seguridad y Salud en Trabajo, con base en los Programas de la Estrategia POSITIVA CREA del Modelo de Gestión POSITIVA SUMA en PLAN BASICO - Programa de Prevención y Protección Colectiva e Individual, Programa de Promoción y Prevención en Salud y Programa de Investigación de Incidentes y Accidentes de Trabajo PLAN AVANZADO - Programa Gestión para el control de Incidentes y Accidentes de Trabajo y Programa Gestión para la Prevención de la Enfermedad Laboral PLAN ESPECIALIZADO - Programas de Vigilancia Epidemiológica y PLAN GESTION INTEGRAL – Sistemas Integrados de Gestión para el acompañamiento de las empresas afiliadas a POSITIVA COMPAÑÍA DE SEGUROS en la Zona Bogotá; Gerencia de Corredores en la modalidad de atención Planes Regulares. | H112: 2021-02-12 | I112: =MONTH(H112) -> 2 | J112: 2021-11-30 | K112: 9 | L112: Invitación directa | M112: PromociónyPrevención | N112: 10752800 | O112: 10752800 | P112: NO | Q112: NA | R112: Gerencia de Abastecimiento Estratégico contratacion@positiva.gov.co PBX: (1)6502200 Ext: 10641 | S112: SI | T112: NO | U112: NO | V112: SI | W112: =IF(V112="SI","Pública clasificada","Pública") -> Pública clasificada | X112: =CONCATENATE(E112,"-","Tipo de información"," ",W112,"-",G112) -> C77882021-Tipo de información Pública clasificada-prestación de de servicios de Promoción y Prevención para implementar, mejorar y/o mantener actividades de asesoría técnica del Sistema de Gestión de Seguridad y Salud en Trabajo, con base en los Programas de la Estrategia POSITIVA CREA del Modelo de Gestión POSITIVA SUMA en PLAN BASICO - Programa de Prevención y Protección Colectiva e Individual, Programa de Promoción y Prevención en Salud y Programa de Investigación de Incidentes y Accidentes de Trabajo PLAN AVANZADO - Programa Gestión para el control de Incidentes y Accidentes de Trabajo y Programa Gestión para la Prevención de la Enfermedad Laboral PLAN ESPECIALIZADO - Programas de Vigilancia Epidemiológica y PLAN GESTION INTEGRAL – Sistemas Integrados de Gestión para el acompañamiento de las empresas afiliadas a POSITIVA COMPAÑÍA DE SEGUROS en la Zona Bogotá; Gerencia de Corredores en la modalidad de atención Planes Regulares.
A113: Promoción y Prevención | B113: Gcia. Administración del Riesgo | C113: JONATHAN GONZALEZ | D113: SI | E113: C82372021 | F113: 93141808 93141811 | G113: prestación de servicios de Promoción y Prevención para implementar, mejorar y/o mantener actividades de asesoría técnica del Sistema de Gestión de Seguridad y Salud en Trabajo, con base en los Programas de la Estrategia POSITIVA CREA del Modelo de Gestión POSITIVA SUMA, en PLAN BASICO Preparación y Atención de Emergencias y Protección Colectiva e Individual, para los servidores de la Fiscalía General de la Nación en la ciudad de Bucaramanga. | H113: 2021-02-08 | I113: =MONTH(H113) -> 2 | J113: 2021-11-30 | K113: 9 | L113: Invitación directa | M113: PromociónyPrevención | N113: 112000000 | O113: 112000000 | P113: NO | Q113: NA | R113: Gerencia de Abastecimiento Estratégico contratacion@positiva.gov.co PBX: (1)6502200 Ext: 10641 | S113: SI | T113: NO | U113: NO | V113: SI | W113: =IF(V113="SI","Pública clasificada","Pública") -> Pública clasificada | X113: =CONCATENATE(E113,"-","Tipo de información"," ",W113,"-",G113) -> C82372021-Tipo de información Pública clasificada-prestación de servicios de Promoción y Prevención para implementar, mejorar y/o mantener actividades de asesoría técnica del Sistema de Gestión de Seguridad y Salud en Trabajo, con base en los Programas de la Estrategia POSITIVA CREA del Modelo de Gestión POSITIVA SUMA, en PLAN BASICO Preparación y Atención de Emergencias y Protección Colectiva e Individual, para los servidores de la Fiscalía General de la Nación en la ciudad de Bucaramanga.
A114: Promoción y Prevención | B114: Gcia. Administración del Riesgo | D114: NO | E114: C78162021 | F114: 93141808 | G114: Eis nivel nacional | H114: 16/03/2021 | I114: =MONTH(H114) -> 3 | J114: 31/12/2021 | K114: =_xlfn.DAYS(J114,H114)/30 -> 9.666666667 | L114: Invitación cerrada | M114: PromociónyPrevención | N114: 7110480000 | O114: 7110480000 | P114: NO | Q114: NA | R114: Gerencia de Abastecimiento Estratégico contratacion@positiva.gov.co PBX: (1)6502200 Ext: 10641 | S114: SI | T114: NO | U114: NO | V114: SI | W114: =IF(V114="SI","Pública clasificada","Pública") -> Pública clasificada | X114: =CONCATENATE(E114,"-","Tipo de información"," ",W114,"-",G114) -> C78162021-Tipo de información Pública clasificada-Eis nivel nacional
A115: Promoción y Prevención | B115: Gcia. Administración del Riesgo | D115: NO | E115: C78142021 | F115: 93141808 | G115: App cuenta fgn | H115: 1/05/2021 | I115: =MONTH(H115) -> 5 | J115: 31/12/2021 | K115: =_xlfn.DAYS(J115,H115)/30 -> 8.133333333 | L115: Invitación cerrada | M115: PromociónyPrevención | N115: 6470300000 | O115: 6470300000 | P115: NO | Q115: NA | R115: Gerencia de Abastecimiento Estratégico contratacion@positiva.gov.co PBX: (1)6502200 Ext: 10641 | S115: SI | T115: NO | U115: NO | V115: SI | W115: =IF(V115="SI","Pública clasificada","Pública") -> Pública clasificada | X115: =CONCATENATE(E115,"-","Tipo de información"," ",W115,"-",G115) -> C78142021-Tipo de información Pública clasificada-App cuenta fgn
A116: Promoción y Prevención | B116: Gcia. Administración del Riesgo | C116: DAVID DAZA | D116: SI | E116: C78012021 | F116: 93141808 | G116: Garantizar la continuidad de los servicios de asesoría, asistencia técnica, capacitación interdisciplinaria en la prevención de riesgos laborales para los servidores de fiscalía general de la nación | H116: 4/01/2021 | I116: =MONTH(H116) -> 1 | J116: 30/04/2021 | K116: =_xlfn.DAYS(J116,H116)/30 -> 3.866666667 | L116: Invitación directa | M116: PromociónyPrevención | N116: 4998041540 | O116: 4998041540 | P116: NO | Q116: NA | R116: Gerencia de Abastecimiento Estratégico contratacion@positiva.gov.co PBX: (1)6502200 Ext: 10641 | S116: SI | T116: NO | U116: NO | V116: SI | W116: =IF(V116="SI","Pública clasificada","Pública") -> Pública clasificada | X116: =CONCATENATE(E116,"-","Tipo de información"," ",W116,"-",G116) -> C78012021-Tipo de información Pública clasificada-Garantizar la continuidad de los servicios de asesoría, asistencia técnica, capacitación interdisciplinaria en la prevención de riesgos laborales para los servidores de fiscalía general de la nación
A117: Promoción y Prevención | B117: Gcia. Administración del Riesgo | D117: NO | E117: C78022021 | F117: 93141808 | G117: "prestación de servicios de apoyo logístico, que permitan garantizar la adecuada ejecución de las actividades del plan de trabajo pactado con fiscalía general de la nación y rama judicial; como soporte para la organización y ejecución de eventos, programas y actividades de seguridad y salud en el trabajo. adicionalmente, se requiere contar con el desarrollo de campañas atl, btl, servicios de planeación estratégica, creativa y divulgación para el apoyo de la gestión en sst de las empresas afiliadas, enmarcado en nuestras líneas de acción estratégica positiva comunica y positiva educa a nivel nacional." | H117: 1/01/2021 | I117: =MONTH(H117) -> 1 | J117: 31/05/2021 | K117: =_xlfn.DAYS(J117,H117)/30 -> 5 | L117: Invitación directa | M117: PromociónyPrevención | N117: 4000000000 | O117: 4000000000 | P117: NO | Q117: NA | R117: Gerencia de Abastecimiento Estratégico contratacion@positiva.gov.co PBX: (1)6502200 Ext: 10641 | S117: SI | T117: NO | U117: NO | V117: SI | W117: =IF(V117="SI","Pública clasificada","Pública") -> Pública clasificada | X117: =CONCATENATE(E117,"-","Tipo de información"," ",W117,"-",G117) -> C78022021-Tipo de información Pública clasificada-"prestación de servicios de apoyo logístico, que permitan garantizar la adecuada ejecución de las actividades del plan de trabajo pactado con fiscalía general de la nación y rama judicial; como soporte para la organización y ejecución de eventos, programas y actividades de seguridad y salud en el trabajo. adicionalmente, se requiere contar con el desarrollo de campañas atl, btl, servicios de planeación estratégica, creativa y divulgación para el apoyo de la gestión en sst de las empresas afiliadas, enmarcado en nuestras líneas de acción estratégica positiva comunica y positiva educa a nivel nacional."
A118: Promoción y Prevención | B118: Gcia. Administración del Riesgo | D118: NO | E118: C78082021 | F118: 93141808 | G118: Dar continuidad a los servicios integrales en rol ejecutivo integral de servicios (eis) para la asesoría y asistencia técnica interdisciplinaria en prevención de riesgos laborales, de conformidad con el marco legal colombiano vigente, en empresas afiliadas con cobertura a nivel nacional de positiva compañía de seguros | H118: 27/03/2020 | I118: =MONTH(H118) -> 3 | J118: 15/03/2021 | K118: =_xlfn.DAYS(J118,H118)/30 -> 11.76666667 | L118: Invitación directa | M118: PromociónyPrevención | N118: 3927632000 | O118: 3927632000 | P118: NO | Q118: NA | R118: Gerencia de Abastecimiento Estratégico contratacion@positiva.gov.co PBX: (1)6502200 Ext: 10641 | S118: SI | T118: NO | U118: NO | V118: SI | W118: =IF(V118="SI","Pública clasificada","Pública") -> Pública clasificada | X118: =CONCATENATE(E118,"-","Tipo de información"," ",W118,"-",G118) -> C78082021-Tipo de información Pública clasificada-Dar continuidad a los servicios integrales en rol ejecutivo integral de servicios (eis) para la asesoría y asistencia técnica interdisciplinaria en prevención de riesgos laborales, de conformidad con el marco legal colombiano vigente, en empresas afiliadas con cobertura a nivel nacional de positiva compañía de seguros
A119: Promoción y Prevención | B119: Gcia. Administración del Riesgo | D119: NO | E119: C78042021 | F119: 93141808 | G119: Dar continuidad a prestación de servicios integrales en promoción y prevención para brindar asesoría, asistencia técnica, capacitación, con un grupo de personal interdisciplinario especializado en prevención de riesgos laborales y realizar servicios transversales de actividades técnico-administrativas propias del proceso de promoción y prevención, de conformidad con el marco legal colombiano vigente, en empresas afiliadas en la zona bogotá y con presencia nacional. | H119: 30/04/2020 | I119: =MONTH(H119) -> 4 | J119: 31/03/2021 | K119: =_xlfn.DAYS(J119,H119)/30 -> 11.16666667 | L119: Invitación directa | M119: PromociónyPrevención | N119: 3691452170 | O119: 3691452170 | P119: NO | Q119: NA | R119: Gerencia de Abastecimiento Estratégico contratacion@positiva.gov.co PBX: (1)6502200 Ext: 10641 | S119: SI | T119: NO | U119: NO | V119: SI | W119: =IF(V119="SI","Pública clasificada","Pública") -> Pública clasificada | X119: =CONCATENATE(E119,"-","Tipo de información"," ",W119,"-",G119) -> C78042021-Tipo de información Pública clasificada-Dar continuidad a prestación de servicios integrales en promoción y prevención para brindar asesoría, asistencia técnica, capacitación, con un grupo de personal interdisciplinario especializado en prevención de riesgos laborales y realizar servicios transversales de actividades técnico-administrativas propias del proceso de promoción y prevención, de conformidad con el marco legal colombiano vigente, en empresas afiliadas en la zona bogotá y con presencia nacional.
A120: Promoción y Prevención | B120: Gcia. Administración del Riesgo | C120: OMAR VANEGAS | D120: SI | E120: C78152021 | F120: 93141808 | G120: App cuenta rama judicial | H120: 1/03/2021 | I120: =MONTH(H120) -> 3 | J120: 31/12/2021 | K120: =_xlfn.DAYS(J120,H120)/30 -> 10.16666667 | L120: Invitación cerrada | M120: PromociónyPrevención | N120: 3431458640 | O120: 3431458640 | P120: NO | Q120: NA | R120: Gerencia de Abastecimiento Estratégico contratacion@positiva.gov.co PBX: (1)6502200 Ext: 10641 | S120: SI | T120: NO | U120: NO | V120: SI | W120: =IF(V120="SI","Pública clasificada","Pública") -> Pública clasificada | X120: =CONCATENATE(E120,"-","Tipo de información"," ",W120,"-",G120) -> C78152021-Tipo de información Pública clasificada-App cuenta rama judicial
A121: Promoción y Prevención | B121: Gcia. Administración del Riesgo | C121: DAVID DAZA | D121: SI | E121: C77682021 | F121: 93141808 | G121: "de acuerdo con los planes de trabajo establecidos para las empresas afiliadas a positiva compañia de seguros en la zona bogotá;gerencia de corredores, sucursal bogotá coordinadora y sucursal bogotá cundinamarca se contemplan actividades de asesoría estratégica orientada a plantear soluciones a los problemas que presenta la empresa en materia de seguridad y salud en el trabajo." | H121: 15/01/2021 | I121: =MONTH(H121) -> 1 | J121: 31/12/2021 | K121: =_xlfn.DAYS(J121,H121)/30 -> 11.66666667 | L121: Invitación directa | M121: PromociónyPrevención | N121: 3400000000 | O121: 3400000000 | P121: NO | Q121: NA | R121: Gerencia de Abastecimiento Estratégico contratacion@positiva.gov.co PBX: (1)6502200 Ext: 10641 | S121: SI | T121: NO | U121: NO | V121: SI | W121: =IF(V121="SI","Pública clasificada","Pública") -> Pública clasificada | X121: =CONCATENATE(E121,"-","Tipo de información"," ",W121,"-",G121) -> C77682021-Tipo de información Pública clasificada-"de acuerdo con los planes de trabajo establecidos para las empresas afiliadas a positiva compañia de seguros en la zona bogotá;gerencia de corredores, sucursal bogotá coordinadora y sucursal bogotá cundinamarca se contemplan actividades de asesoría estratégica orientada a plantear soluciones a los problemas que presenta la empresa en materia de seguridad y salud en el trabajo."
A122: Promoción y Prevención | B122: Gcia. Administración del Riesgo | C122: DAVID DAZA | D122: SI | E122: C77012021 | F122: 93141808 | G122: Servicios en empresas clientes representativos para la sucursales cundinamarca, bogota coordinadora y gerencia corredores como el sena, idu, comapan entre otras,para la prestacion de los actividades en plan básico promoción y prevención en salud, plan avanzado- gestión de para la prevención de la enfermedad laboral -plan especializado- programas de vigilancia epidemiológico se proyectan para el próximo año 53,940 horas de ejecución | H122: 1/01/2021 | I122: =MONTH(H122) -> 1 | J122: 31/12/2021 | K122: =_xlfn.DAYS(J122,H122)/30 -> 12.13333333 | L122: Invitación directa | M122: PromociónyPrevención | N122: 2900000000 | O122: 2900000000 | P122: NO | Q122: NA | R122: Gerencia de Abastecimiento Estratégico contratacion@positiva.gov.co PBX: (1)6502200 Ext: 10641 | S122: SI | T122: NO | U122: NO | V122: SI | W122: =IF(V122="SI","Pública clasificada","Pública") -> Pública clasificada | X122: =CONCATENATE(E122,"-","Tipo de información"," ",W122,"-",G122) -> C77012021-Tipo de información Pública clasificada-Servicios en empresas clientes representativos para la sucursales cundinamarca, bogota coordinadora y gerencia corredores como el sena, idu, comapan entre otras,para la prestacion de los actividades en plan básico promoción y prevención en salud, plan avanzado- gestión de para la prevención de la enfermedad laboral -plan especializado- programas de vigilancia epidemiológico se proyectan para el próximo año 53,940 horas de ejecución
A123: Promoción y Prevención | B123: Gcia. Administración del Riesgo | D123: NO | E123: C78052021 | F123: 93141808 | G123: Dar continuidad a los servicios integrales en rol asesoría por proyecto en prevención para asesoría, asistencia técnica y capacitación interdisciplinaria en prevención de riesgos laborales de conformidad con el marco legal colombiano vigente en empresas afiliadas a la zona valle. | H123: 2021-01-01 | I123: =MONTH(H123) -> 1 | J123: 31/03/2021 | K123: =_xlfn.DAYS(J123,H123)/30 -> 2.966666667 | L123: Invitación directa | M123: PromociónyPrevención | N123: 2656242326 | O123: 2656242326 | P123: NO | Q123: NA | R123: Gerencia de Abastecimiento Estratégico contratacion@positiva.gov.co PBX: (1)6502200 Ext: 10641 | S123: SI | T123: NO | U123: NO | V123: SI | W123: =IF(V123="SI","Pública clasificada","Pública") -> Pública clasificada | X123: =CONCATENATE(E123,"-","Tipo de información"," ",W123,"-",G123) -> C78052021-Tipo de información Pública clasificada-Dar continuidad a los servicios integrales en rol asesoría por proyecto en prevención para asesoría, asistencia técnica y capacitación interdisciplinaria en prevención de riesgos laborales de conformidad con el marco legal colombiano vigente en empresas afiliadas a la zona valle.
A124: Promoción y Prevención | B124: Gcia. Administración del Riesgo | D124: NO | E124: C83052021 | F124: 93141808 | G124: Suministro, entrega y distribución de elementos de protección personal para la prevención, control y mitigación por exposición ocupacional de los efectos del covid-19, en las empresas afiliadas a positiva compañía de seguros, con base en los programas de la estrategia positiva crea del modelo de gestión positiva suma en plan basico - promoción y prevención en salud, plan avanzado - gestión para la prevención de la enfermedad laboral, para el acompañamiento de las empresas afiliadas a positiva compañía de seguros a nivel nacional de acuerdo con el anexo no. 1 denominado “especificaciones técnicas mínimas de los elementos de protección personal”. | H124: 6/11/2020 | I124: =MONTH(H124) -> 11 | J124: 28/02/2021 | K124: =_xlfn.DAYS(J124,H124)/30 -> 3.8 | L124: Invitación directa | M124: PromociónyPrevención | N124: 1919602260 | O124: 1919602260 | P124: NO | Q124: NA | R124: Gerencia de Abastecimiento Estratégico contratacion@positiva.gov.co PBX: (1)6502200 Ext: 10641 | S124: SI | T124: NO | U124: NO | V124: SI | W124: =IF(V124="SI","Pública clasificada","Pública") -> Pública clasificada | X124: =CONCATENATE(E124,"-","Tipo de información"," ",W124,"-",G124) -> C83052021-Tipo de información Pública clasificada-Suministro, entrega y distribución de elementos de protección personal para la prevención, control y mitigación por exposición ocupacional de los efectos del covid-19, en las empresas afiliadas a positiva compañía de seguros, con base en los programas de la estrategia positiva crea del modelo de gestión positiva suma en plan basico - promoción y prevención en salud, plan avanzado - gestión para la prevención de la enfermedad laboral, para el acompañamiento de las empresas afiliadas a positiva compañía de seguros a nivel nacional de acuerdo con el anexo no. 1 denominado “especificaciones técnicas mínimas de los elementos de protección personal”.
A125: Promoción y Prevención | B125: Gcia. Administración del Riesgo | D125: NO | E125: C83042021 | F125: 93141808 | G125: Suministro, entrega y distribución de elementos de protección personal para la prevención, control y mitigación por exposición ocupacional de los efectos del covid-19, en las empresas afiliadas a positiva compañía de seguros, con base en los programas de la estrategia positiva crea del modelo de gestión positiva suma en plan basico - promoción y prevención en salud, plan avanzado - gestión para la prevención de la enfermedad laboral, para el acompañamiento de las empresas afiliadas a positiva compañía de seguros a nivel nacional de acuerdo con el anexo no. 1 denominado “especificaciones técnicas mínimas de los elementos de protección personal”. | H125: 6/11/2020 | I125: =MONTH(H125) -> 11 | J125: 28/02/2021 | K125: =_xlfn.DAYS(J125,H125)/30 -> 3.8 | L125: Invitación directa | M125: PromociónyPrevención | N125: 1753965000 | O125: 1753965000 | P125: NO | Q125: NA | R125: Gerencia de Abastecimiento Estratégico contratacion@positiva.gov.co PBX: (1)6502200 Ext: 10641 | S125: SI | T125: NO | U125: NO | V125: SI | W125: =IF(V125="SI","Pública clasificada","Pública") -> Pública clasificada | X125: =CONCATENATE(E125,"-","Tipo de información"," ",W125,"-",G125) -> C83042021-Tipo de información Pública clasificada-Suministro, entrega y distribución de elementos de protección personal para la prevención, control y mitigación por exposición ocupacional de los efectos del covid-19, en las empresas afiliadas a positiva compañía de seguros, con base en los programas de la estrategia positiva crea del modelo de gestión positiva suma en plan basico - promoción y prevención en salud, plan avanzado - gestión para la prevención de la enfermedad laboral, para el acompañamiento de las empresas afiliadas a positiva compañía de seguros a nivel nacional de acuerdo con el anexo no. 1 denominado “especificaciones técnicas mínimas de los elementos de protección personal”.
A126: Promoción y Prevención | B126: Gcia. Administración del Riesgo | D126: NO | E126: C83022021 | F126: 93141808 | G126: Suministro, entrega y distribución de elementos de protección personal para la prevención, control y mitigación por exposición ocupacional de los efectos del covid-19, en las empresas afiliadas a positiva compañía de seguros, con base en los programas de la estrategia positiva crea del modelo de gestión positiva suma en plan basico - promoción y prevención en salud, plan avanzado - gestión para la prevención de la enfermedad laboral, para el acompañamiento de las empresas afiliadas a positiva compañía de seguros a nivel nacional de acuerdo con el anexo no. 1 denominado “especificaciones técnicas mínimas de los elementos de protección personal”. | H126: 11/11/2020 | I126: =MONTH(H126) -> 11 | J126: 28/02/2021 | K126: =_xlfn.DAYS(J126,H126)/30 -> 3.633333333 | L126: Invitación directa | M126: PromociónyPrevención | N126: 1707600000 | O126: 1707600000 | P126: NO | Q126: NA | R126: Gerencia de Abastecimiento Estratégico contratacion@positiva.gov.co PBX: (1)6502200 Ext: 10641 | S126: SI | T126: NO | U126: NO | V126: SI | W126: =IF(V126="SI","Pública clasificada","Pública") -> Pública clasificada | X126: =CONCATENATE(E126,"-","Tipo de información"," ",W126,"-",G126) -> C83022021-Tipo de información Pública clasificada-Suministro, entrega y distribución de elementos de protección personal para la prevención, control y mitigación por exposición ocupacional de los efectos del covid-19, en las empresas afiliadas a positiva compañía de seguros, con base en los programas de la estrategia positiva crea del modelo de gestión positiva suma en plan basico - promoción y prevención en salud, plan avanzado - gestión para la prevención de la enfermedad laboral, para el acompañamiento de las empresas afiliadas a positiva compañía de seguros a nivel nacional de acuerdo con el anexo no. 1 denominado “especificaciones técnicas mínimas de los elementos de protección personal”.
A127: Promoción y Prevención | B127: Gcia. Administración del Riesgo | C127: DAYANA BELTRAN | D127: SI | E127: C81062021 | F127: 93141808 | G127: Garantizar la atención de empresas mipymes afiliadas a positiva compañía de seguros, lo que contribuye al cumplimiento de la exigencia legal sobre la implementación del sistema de gestión de seguridad y salud en el trabajo y estándares mínimos, y al logro de los objetivos estratégicos de fidelización y la satisfacción de las necesidades y expectativas de los clientes. | H127: 1/01/2020 | I127: =MONTH(H127) -> 1 | J127: 31/12/2020 | K127: =_xlfn.DAYS(J127,H127)/30 -> 12.16666667 | L127: Invitación directa | M127: PromociónyPrevención | N127: 1622520000 | O127: 1622520000 | P127: NO | Q127: NA | R127: Gerencia de Abastecimiento Estratégico contratacion@positiva.gov.co PBX: (1)6502200 Ext: 10641 | S127: SI | T127: NO | U127: NO | V127: SI | W127: =IF(V127="SI","Pública clasificada","Pública") -> Pública clasificada | X127: =CONCATENATE(E127,"-","Tipo de información"," ",W127,"-",G127) -> C81062021-Tipo de información Pública clasificada-Garantizar la atención de empresas mipymes afiliadas a positiva compañía de seguros, lo que contribuye al cumplimiento de la exigencia legal sobre la implementación del sistema de gestión de seguridad y salud en el trabajo y estándares mínimos, y al logro de los objetivos estratégicos de fidelización y la satisfacción de las necesidades y expectativas de los clientes.
A128: Promoción y Prevención | B128: Gcia. Administración del Riesgo | C128: DAVID DAZA | D128: SI | E128: C81052021 | F128: 93141808 | G128: Garantizar la atención de empresas mipymes afiliadas a positiva compañía de seguros, lo que contribuye al cumplimiento de la exigencia legal sobre la implementación del sistema de gestión de seguridad y salud en el trabajo y estándares mínimos, y al logro de los objetivos estratégicos de fidelización y la satisfacción de las necesidades y expectativas de los clientes. | H128: 1/01/2020 | I128: =MONTH(H128) -> 1 | J128: 31/12/2020 | K128: =_xlfn.DAYS(J128,H128)/30 -> 12.16666667 | L128: Invitación directa | M128: PromociónyPrevención | N128: 1575000000 | O128: 1575000000 | P128: NO | Q128: NA | R128: Gerencia de Abastecimiento Estratégico contratacion@positiva.gov.co PBX: (1)6502200 Ext: 10641 | S128: SI | T128: NO | U128: NO | V128: SI | W128: =IF(V128="SI","Pública clasificada","Pública") -> Pública clasificada | X128: =CONCATENATE(E128,"-","Tipo de información"," ",W128,"-",G128) -> C81052021-Tipo de información Pública clasificada-Garantizar la atención de empresas mipymes afiliadas a positiva compañía de seguros, lo que contribuye al cumplimiento de la exigencia legal sobre la implementación del sistema de gestión de seguridad y salud en el trabajo y estándares mínimos, y al logro de los objetivos estratégicos de fidelización y la satisfacción de las necesidades y expectativas de los clientes.
A129: Promoción y Prevención | B129: Gcia. Administración del Riesgo | C129: OMAR VANEGAS | D129: SI | E129: C82352021 | F129: 93141808 93141811 | G129: prestación de los servicios de Promoción y Prevención para implementar, mejorar y/o mantener actividades de asesoría técnica del Sistema de Gestión de Seguridad y Salud en Trabajo, con base en los Programas de la Estrategia POSITIVA CREA del Modelo de Gestión POSITIVA SUMA, en PLAN BASICO Preparación y Atención de Emergencias y Protección Colectiva e Individual, para los servidores de la Fiscalía General de la Nación en las ciudades de Cali. PARÁGRAFO PRIMERO: Niveles de Servicio y Operación: Para mayor ilustración del alcance de la presente aceptación de oferta, la justificación de la contratación, los estudios previos, la invitación, la matriz de riesgos la propuesta comercial de la firma y los demás documentos precontractuales, hacen parte integral de la misma | H129: 2021-02-03 | I129: =MONTH(H129) -> 2 | J129: 2021-11-30 | K129: 9 | L129: Invitación directa | M129: PromociónyPrevención | N129: 110000000 | O129: 110000000 | P129: NO | Q129: NA | R129: Gerencia de Abastecimiento Estratégico contratacion@positiva.gov.co PBX: (1)6502200 Ext: 10641 | S129: SI | T129: NO | U129: NO | V129: SI | W129: =IF(V129="SI","Pública clasificada","Pública") -> Pública clasificada | X129: =CONCATENATE(E129,"-","Tipo de información"," ",W129,"-",G129) -> C82352021-Tipo de información Pública clasificada-prestación de los servicios de Promoción y Prevención para implementar, mejorar y/o mantener actividades de asesoría técnica del Sistema de Gestión de Seguridad y Salud en Trabajo, con base en los Programas de la Estrategia POSITIVA CREA del Modelo de Gestión POSITIVA SUMA, en PLAN BASICO Preparación y Atención de Emergencias y Protección Colectiva e Individual, para los servidores de la Fiscalía General de la Nación en las ciudades de Cali. PARÁGRAFO PRIMERO: Niveles de Servicio y Operación: Para mayor ilustración del alcance de la presente aceptación de oferta, la justificación de la contratación, los estudios previos, la invitación, la matriz de riesgos la propuesta comercial de la firma y los demás documentos precontractuales, hacen parte integral de la misma
A130: Promoción y Prevención | B130: Gcia. Administración del Riesgo | C130: DAVID DAZA | D130: SI | E130: C77452021 | F130: 93141808 | G130: "de acuerdo con los planes de trabajo establecidos para las empresas afiliadas a positiva compañia de seguros en la zona bogotá; gerencia de corredores, sucursal bogotá coordinadora y sucursal bogotá cundinamarca se contemplan actividades de asesoría estratégica integral orientada a plantear soluciones a los problemas que presenta la empresa en materia de seguridad y salud en el trabajo con el animo de generar impacto en la disminucion de la siniestralidad de accidentes y enfermedades laborales." | H130: 15/01/2021 | I130: =MONTH(H130) -> 1 | J130: 31/12/2021 | K130: =_xlfn.DAYS(J130,H130)/30 -> 11.66666667 | L130: Invitación directa | M130: PromociónyPrevención | N130: 1500000000 | O130: 1500000000 | P130: NO | Q130: NA | R130: Gerencia de Abastecimiento Estratégico contratacion@positiva.gov.co PBX: (1)6502200 Ext: 10641 | S130: SI | T130: NO | U130: NO | V130: SI | W130: =IF(V130="SI","Pública clasificada","Pública") -> Pública clasificada | X130: =CONCATENATE(E130,"-","Tipo de información"," ",W130,"-",G130) -> C77452021-Tipo de información Pública clasificada-"de acuerdo con los planes de trabajo establecidos para las empresas afiliadas a positiva compañia de seguros en la zona bogotá; gerencia de corredores, sucursal bogotá coordinadora y sucursal bogotá cundinamarca se contemplan actividades de asesoría estratégica integral orientada a plantear soluciones a los problemas que presenta la empresa en materia de seguridad y salud en el trabajo con el animo de generar impacto en la disminucion de la siniestralidad de accidentes y enfermedades laborales."
A131: Promoción y Prevención | B131: Gcia. Administración del Riesgo | D131: NO | E131: C81042021 | F131: 93141808 | G131: Garantizar la atención de empresas mipymes afiliadas a positiva compañía de seguros, lo que contribuye al cumplimiento de la exigencia legal sobre la implementación del sistema de gestión de seguridad y salud en el trabajo y estándares mínimos, y al logro de los objetivos estratégicos de fidelización y la satisfacción de las necesidades y expectativas de los clientes. | H131: 1/01/2020 | I131: =MONTH(H131) -> 1 | J131: 31/12/2020 | K131: =_xlfn.DAYS(J131,H131)/30 -> 12.16666667 | L131: Invitación directa | M131: PromociónyPrevención | N131: 1475000000 | O131: 1475000000 | P131: NO | Q131: NA | R131: Gerencia de Abastecimiento Estratégico contratacion@positiva.gov.co PBX: (1)6502200 Ext: 10641 | S131: SI | T131: NO | U131: NO | V131: SI | W131: =IF(V131="SI","Pública clasificada","Pública") -> Pública clasificada | X131: =CONCATENATE(E131,"-","Tipo de información"," ",W131,"-",G131) -> C81042021-Tipo de información Pública clasificada-Garantizar la atención de empresas mipymes afiliadas a positiva compañía de seguros, lo que contribuye al cumplimiento de la exigencia legal sobre la implementación del sistema de gestión de seguridad y salud en el trabajo y estándares mínimos, y al logro de los objetivos estratégicos de fidelización y la satisfacción de las necesidades y expectativas de los clientes.
A132: Promoción y Prevención | B132: Gcia. Administración del Riesgo | D132: NO | E132: C78032021 | F132: 93141808 | G132: En cumplimiento de la atención a empresas afiliadas a positiva compañía de seguros para realizar actividades de asesoría, asistencia técnica y de formación sobre el sistema de gestion de seguridad y salud en el trabajo y dar cumplimiento al ordenamiento legal contemplado en: decreto 1295 de 1994, especialmente en sus artículos, 2, 19, 59 y 80, parágrafo 1 en el que se señala que “las entidades administradoras de riesgos profesionales (hoy administradoras de riesgos laborales) deberán contratar o conformar equipos de prevención de riesgos laborales, para la planeación, organización, ejecución y supervisión de las actividades de que tratan los literales f y g del mismo artículo. ley 1562 de 2012, en el artículo 11 que define los servicios de promoción y prevención, señalando las actividades mínimas a realizar por parte de las administradoras de riesgos laborales. de acuerdo a la normatividad se autoriza a las arls a contratar con terceros para llevar a cabo la gestión, brindar asesoría y realizar seguimiento, en procura de fortalecer la intervención a empresas y trabajadores afiliados a positiva compañía de seguros. | H132: 1/01/2021 | I132: =MONTH(H132) -> 1 | J132: 28/02/2021 | K132: =_xlfn.DAYS(J132,H132)/30 -> 1.933333333 | L132: Invitación directa | M132: PromociónyPrevención | N132: 1389053680 | O132: 1389053680 | P132: NO | Q132: NA | R132: Gerencia de Abastecimiento Estratégico contratacion@positiva.gov.co PBX: (1)6502200 Ext: 10641 | S132: SI | T132: NO | U132: NO | V132: SI | W132: =IF(V132="SI","Pública clasificada","Pública") -> Pública clasificada | X132: =CONCATENATE(E132,"-","Tipo de información"," ",W132,"-",G132) -> C78032021-Tipo de información Pública clasificada-En cumplimiento de la atención a empresas afiliadas a positiva compañía de seguros para realizar actividades de asesoría, asistencia técnica y de formación sobre el sistema de gestion de seguridad y salud en el trabajo y dar cumplimiento al ordenamiento legal contemplado en: decreto 1295 de 1994, especialmente en sus artículos, 2, 19, 59 y 80, parágrafo 1 en el que se señala que “las entidades administradoras de riesgos profesionales (hoy administradoras de riesgos laborales) deberán contratar o conformar equipos de prevención de riesgos laborales, para la planeación, organización, ejecución y supervisión de las actividades de que tratan los literales f y g del mismo artículo. ley 1562 de 2012, en el artículo 11 que define los servicios de promoción y prevención, señalando las actividades mínimas a realizar por parte de las administradoras de riesgos laborales. de acuerdo a la normatividad se autoriza a las arls a contratar con terceros para llevar a cabo la gestión, brindar asesoría y realizar seguimiento, en procura de fortalecer la intervención a empresas y trabajadores afiliados a positiva compañía de seguros.
A133: Promoción y Prevención | B133: Gcia. Administración del Riesgo | D133: NO | E133: C78092021 | F133: 93141808 | G133: App zona antioquia | H133: 1/05/2021 | I133: =MONTH(H133) -> 5 | J133: 31/12/2021 | K133: =_xlfn.DAYS(J133,H133)/30 -> 8.133333333 | L133: Invitación cerrada | M133: PromociónyPrevención | N133: 1296000000 | O133: 1296000000 | P133: NO | Q133: NA | R133: Gerencia de Abastecimiento Estratégico contratacion@positiva.gov.co PBX: (1)6502200 Ext: 10641 | S133: SI | T133: NO | U133: NO | V133: SI | W133: =IF(V133="SI","Pública clasificada","Pública") -> Pública clasificada | X133: =CONCATENATE(E133,"-","Tipo de información"," ",W133,"-",G133) -> C78092021-Tipo de información Pública clasificada-App zona antioquia
A134: Promoción y Prevención | B134: Gcia. Administración del Riesgo | C134: DAYANA BELTRAN | D134: SI | E134: C81022021 | F134: 93141808 | G134: Garantizar la atención de empresas mipymes afiliadas a positiva compañía de seguros, lo que contribuye al cumplimiento de la exigencia legal sobre la implementación del sistema de gestión de seguridad y salud en el trabajo y estándares mínimos, y al logro de los objetivos estratégicos de fidelización y la satisfacción de las necesidades y expectativas de los clientes. | H134: 1/01/2020 | I134: =MONTH(H134) -> 1 | J134: 31/12/2020 | K134: =_xlfn.DAYS(J134,H134)/30 -> 12.16666667 | L134: Invitación directa | M134: PromociónyPrevención | N134: 1275000000 | O134: 1275000000 | P134: NO | Q134: NA | R134: Gerencia de Abastecimiento Estratégico contratacion@positiva.gov.co PBX: (1)6502200 Ext: 10641 | S134: SI | T134: NO | U134: NO | V134: SI | W134: =IF(V134="SI","Pública clasificada","Pública") -> Pública clasificada | X134: =CONCATENATE(E134,"-","Tipo de información"," ",W134,"-",G134) -> C81022021-Tipo de información Pública clasificada-Garantizar la atención de empresas mipymes afiliadas a positiva compañía de seguros, lo que contribuye al cumplimiento de la exigencia legal sobre la implementación del sistema de gestión de seguridad y salud en el trabajo y estándares mínimos, y al logro de los objetivos estratégicos de fidelización y la satisfacción de las necesidades y expectativas de los clientes.
A135: Promoción y Prevención | B135: Gcia. Administración del Riesgo | D135: NO | E135: C83012021 | F135: 93141808 | G135: Suministro, entrega y distribución de elementos de protección personal para la prevención, control y mitigación por exposición ocupacional de los efectos del covid-19, en las empresas afiliadas a positiva compañía de seguros, con base en los programas de la estrategia positiva crea del modelo de gestión positiva suma en plan basico - promoción y prevención en salud, plan avanzado - gestión para la prevención de la enfermedad laboral, para el acompañamiento de las empresas afiliadas a positiva compañía de seguros a nivel nacional de acuerdo con el anexo no. 1 denominado “especificaciones técnicas mínimas de los elementos de protección personal”. | H135: 29/11/2020 | I135: =MONTH(H135) -> 11 | J135: 28/02/2021 | K135: =_xlfn.DAYS(J135,H135)/30 -> 3.033333333 | L135: Invitación directa | M135: PromociónyPrevención | N135: 1214911300 | O135: 1214911300 | P135: NO | Q135: NA | R135: Gerencia de Abastecimiento Estratégico contratacion@positiva.gov.co PBX: (1)6502200 Ext: 10641 | S135: SI | T135: NO | U135: NO | V135: SI | W135: =IF(V135="SI","Pública clasificada","Pública") -> Pública clasificada | X135: =CONCATENATE(E135,"-","Tipo de información"," ",W135,"-",G135) -> C83012021-Tipo de información Pública clasificada-Suministro, entrega y distribución de elementos de protección personal para la prevención, control y mitigación por exposición ocupacional de los efectos del covid-19, en las empresas afiliadas a positiva compañía de seguros, con base en los programas de la estrategia positiva crea del modelo de gestión positiva suma en plan basico - promoción y prevención en salud, plan avanzado - gestión para la prevención de la enfermedad laboral, para el acompañamiento de las empresas afiliadas a positiva compañía de seguros a nivel nacional de acuerdo con el anexo no. 1 denominado “especificaciones técnicas mínimas de los elementos de protección personal”.
A136: Promoción y Prevención | B136: Gcia. Administración del Riesgo | C136: DIANA DIAZGRANADOS | D136: SI | E136: C76072021 | F136: 93141808 | G136: El aliado estratégico conhintec, ha ejecutado diversos contratos con nuestra compañía desde el año 2015 y que la empresa cliente tiene trabajadores expuestos a riesgos de higiene que pueden generar enfermedad laboral, se requiere realizar intervención oportuna, con estándares de calidad que contribuyan al logro de los objetivos estratégicos de fidelización y la satisfacción de las necesidades y expectativas de los clientes. | H136: 1/01/2021 | I136: =MONTH(H136) -> 1 | J136: 30/11/2021 | K136: =_xlfn.DAYS(J136,H136)/30 -> 11.1 | L136: Invitación directa | M136: PromociónyPrevención | N136: 1200000000 | O136: 1200000000 | P136: NO | Q136: NA | R136: Gerencia de Abastecimiento Estratégico contratacion@positiva.gov.co PBX: (1)6502200 Ext: 10641 | S136: SI | T136: NO | U136: NO | V136: SI | W136: =IF(V136="SI","Pública clasificada","Pública") -> Pública clasificada | X136: =CONCATENATE(E136,"-","Tipo de información"," ",W136,"-",G136) -> C76072021-Tipo de información Pública clasificada-El aliado estratégico conhintec, ha ejecutado diversos contratos con nuestra compañía desde el año 2015 y que la empresa cliente tiene trabajadores expuestos a riesgos de higiene que pueden generar enfermedad laboral, se requiere realizar intervención oportuna, con estándares de calidad que contribuyan al logro de los objetivos estratégicos de fidelización y la satisfacción de las necesidades y expectativas de los clientes.
A137: Promoción y Prevención | B137: Gcia. Administración del Riesgo | D137: NO | E137: C77332021 | F137: 93141808 | G137: Continuidad de servicios para los planes de trabajo de los clientes de la sucursal bogota cundinamarca, proveedor con contratos en vigencias pasadas y prestacion de servicios para los clientes de la sucursal. | H137: 15/01/2021 | I137: =MONTH(H137) -> 1 | J137: 31/12/2021 | K137: =_xlfn.DAYS(J137,H137)/30 -> 11.66666667 | L137: Invitación directa | M137: PromociónyPrevención | N137: 1200000000 | O137: 1200000000 | P137: NO | Q137: NA | R137: Gerencia de Abastecimiento Estratégico contratacion@positiva.gov.co PBX: (1)6502200 Ext: 10641 | S137: SI | T137: NO | U137: NO | V137: SI | W137: =IF(V137="SI","Pública clasificada","Pública") -> Pública clasificada | X137: =CONCATENATE(E137,"-","Tipo de información"," ",W137,"-",G137) -> C77332021-Tipo de información Pública clasificada-Continuidad de servicios para los planes de trabajo de los clientes de la sucursal bogota cundinamarca, proveedor con contratos en vigencias pasadas y prestacion de servicios para los clientes de la sucursal.
A138: Promoción y Prevención | B138: Gcia. Administración del Riesgo | C138: DIANA DIAZGRANADOS | D138: SI | E138: C76032021 | F138: 93141808 | G138: En cumplimiento de la atención a empresas afiliadas a positiva compañía de seguros para realizar actividades de asesoría, asistencia técnica y de formación sobre el sistema de gestion de seguridad y salud en el trabajo, con base en el modelo de gestión positiva suma, el cual conforma la estructura técnica para brindar la asesoría y asistencia en prevención de riesgos laborales. las estrategias que conforman este modelo de gestión son, positiva investiga, positiva crea y positiva premia, las cuales permiten identificar las mejores prácticas para la gestión, orientando y direccionado a las empresas afiliadas para conformar una cultura de modelo de gestión que le permita la realización de actividades laborales en unas óptimas condiciones de salud de sus trabajadores y unas adecuadas condiciones de trabajo en sus instalaciones, implementando programas de acuerdo con los riesgos laborales identificados. se requiere brindar atención a las empresas afiliadas a positiva compañía de seguros, para ejecutar actividades de promoción y prevención del modelo de gestión positiva suma, en asesoría y asistencia técnica del sistema de gestión en seguridad y salud en el trabajo con el fin de dar cumplimiento legal y promover comportamientos seguros para la prevención de los riesgos laborales. salud ocupacional sanitas, es un proveedor que brinda atención con oportunidad y eficacia, cuenta con un equipo humano y técnico calificado y formado, asimismo cuenta con la aceptación del cliente carbones del cerrejon ltda. | H138: 1/01/2021 | I138: =MONTH(H138) -> 1 | J138: 30/11/2021 | K138: =_xlfn.DAYS(J138,H138)/30 -> 11.1 | L138: Invitación directa | M138: PromociónyPrevención | N138: 1129756140 | O138: 1129756140 | P138: NO | Q138: NA | R138: Gerencia de Abastecimiento Estratégico contratacion@positiva.gov.co PBX: (1)6502200 Ext: 10641 | S138: SI | T138: NO | U138: NO | V138: SI | W138: =IF(V138="SI","Pública clasificada","Pública") -> Pública clasificada | X138: =CONCATENATE(E138,"-","Tipo de información"," ",W138,"-",G138) -> C76032021-Tipo de información Pública clasificada-En cumplimiento de la atención a empresas afiliadas a positiva compañía de seguros para realizar actividades de asesoría, asistencia técnica y de formación sobre el sistema de gestion de seguridad y salud en el trabajo, con base en el modelo de gestión positiva suma, el cual conforma la estructura técnica para brindar la asesoría y asistencia en prevención de riesgos laborales. las estrategias que conforman este modelo de gestión son, positiva investiga, positiva crea y positiva premia, las cuales permiten identificar las mejores prácticas para la gestión, orientando y direccionado a las empresas afiliadas para conformar una cultura de modelo de gestión que le permita la realización de actividades laborales en unas óptimas condiciones de salud de sus trabajadores y unas adecuadas condiciones de trabajo en sus instalaciones, implementando programas de acuerdo con los riesgos laborales identificados. se requiere brindar atención a las empresas afiliadas a positiva compañía de seguros, para ejecutar actividades de promoción y prevención del modelo de gestión positiva suma, en asesoría y asistencia técnica del sistema de gestión en seguridad y salud en el trabajo con el fin de dar cumplimiento legal y promover comportamientos seguros para la prevención de los riesgos laborales. salud ocupacional sanitas, es un proveedor que brinda atención con oportunidad y eficacia, cuenta con un equipo humano y técnico calificado y formado, asimismo cuenta con la aceptación del cliente carbones del cerrejon ltda.
A139: Promoción y Prevención | B139: Gcia. Administración del Riesgo | D139: NO | E139: C77182021 | F139: 93141808 | G139: Servicios en empresas clientes representativas para la sucursales cundinamarca, bogota coordinadora y gerencia corredores como el sena, rama judicial, inpec, universidad nacional, uspec, salgado melendez, entre otras, para la prestacion de las actividades en plan avanzado (programa de gestión prevención de la enfermedad profesional, énfasis psicosocial, programa gestión para el control de incidentes y accidentes de trabajo) plan especializado (programas de vigilancia epidemiológico con énfasis psicosocial), y plan de gestion integral, (programa sistema de gestión en s&so-ohsas 18001) se proyectan para el próximo año 20,029 horas de ejecución | H139: 27/04/2020 | I139: =MONTH(H139) -> 4 | J139: 31/03/2021 | K139: =_xlfn.DAYS(J139,H139)/30 -> 11.26666667 | L139: Invitación directa | M139: PromociónyPrevención | N139: 1076880440 | O139: 1076880440 | P139: NO | Q139: NA | R139: Gerencia de Abastecimiento Estratégico contratacion@positiva.gov.co PBX: (1)6502200 Ext: 10641 | S139: SI | T139: NO | U139: NO | V139: SI | W139: =IF(V139="SI","Pública clasificada","Pública") -> Pública clasificada | X139: =CONCATENATE(E139,"-","Tipo de información"," ",W139,"-",G139) -> C77182021-Tipo de información Pública clasificada-Servicios en empresas clientes representativas para la sucursales cundinamarca, bogota coordinadora y gerencia corredores como el sena, rama judicial, inpec, universidad nacional, uspec, salgado melendez, entre otras, para la prestacion de las actividades en plan avanzado (programa de gestión prevención de la enfermedad profesional, énfasis psicosocial, programa gestión para el control de incidentes y accidentes de trabajo) plan especializado (programas de vigilancia epidemiológico con énfasis psicosocial), y plan de gestion integral, (programa sistema de gestión en s&so-ohsas 18001) se proyectan para el próximo año 20,029 horas de ejecución
A140: Promoción y Prevención | B140: Gcia. Administración del Riesgo | C140: DAVID DAZA | D140: SI | E140: C81032021 | F140: 93141808 | G140: Garantizar la atención de empresas mipymes afiliadas a positiva compañía de seguros, lo que contribuye al cumplimiento de la exigencia legal sobre la implementación del sistema de gestión de seguridad y salud en el trabajo y estándares mínimos, y al logro de los objetivos estratégicos de fidelización y la satisfacción de las necesidades y expectativas de los clientes. | H140: 1/01/2020 | I140: =MONTH(H140) -> 1 | J140: 31/12/2020 | K140: =_xlfn.DAYS(J140,H140)/30 -> 12.16666667 | L140: Invitación directa | M140: PromociónyPrevención | N140: 1075000000 | O140: 1075000000 | P140: NO | Q140: NA | R140: Gerencia de Abastecimiento Estratégico contratacion@positiva.gov.co PBX: (1)6502200 Ext: 10641 | S140: SI | T140: NO | U140: NO | V140: SI | W140: =IF(V140="SI","Pública clasificada","Pública") -> Pública clasificada | X140: =CONCATENATE(E140,"-","Tipo de información"," ",W140,"-",G140) -> C81032021-Tipo de información Pública clasificada-Garantizar la atención de empresas mipymes afiliadas a positiva compañía de seguros, lo que contribuye al cumplimiento de la exigencia legal sobre la implementación del sistema de gestión de seguridad y salud en el trabajo y estándares mínimos, y al logro de los objetivos estratégicos de fidelización y la satisfacción de las necesidades y expectativas de los clientes.
A141: Promoción y Prevención | B141: Gcia. Administración del Riesgo | D141: NO | E141: C78072021 | F141: 93141808 | G141: Servicios integrales en rol asesoría por proyecto en prevención para asesoría, asistencia técnica y capacitación interdisciplinaria en prevención de riesgos laborales de conformidad con el marco legal colombiano vigente en empresas afiliadas a la zona santander | H141: 1/01/2021 | I141: =MONTH(H141) -> 1 | J141: 30/04/2021 | K141: =_xlfn.DAYS(J141,H141)/30 -> 3.966666667 | L141: Invitación directa | M141: PromociónyPrevención | N141: 1060000000 | O141: 1060000000 | P141: NO | Q141: NA | R141: Gerencia de Abastecimiento Estratégico contratacion@positiva.gov.co PBX: (1)6502200 Ext: 10641 | S141: SI | T141: NO | U141: NO | V141: SI | W141: =IF(V141="SI","Pública clasificada","Pública") -> Pública clasificada | X141: =CONCATENATE(E141,"-","Tipo de información"," ",W141,"-",G141) -> C78072021-Tipo de información Pública clasificada-Servicios integrales en rol asesoría por proyecto en prevención para asesoría, asistencia técnica y capacitación interdisciplinaria en prevención de riesgos laborales de conformidad con el marco legal colombiano vigente en empresas afiliadas a la zona santander
A142: Promoción y Prevención | B142: Gcia. Administración del Riesgo | D142: NO | E142: C78122021 | F142: 93141808 | G142: App zona santander | H142: 1/05/2021 | I142: =MONTH(H142) -> 5 | J142: 31/12/2021 | K142: =_xlfn.DAYS(J142,H142)/30 -> 8.133333333 | L142: Invitación cerrada | M142: PromociónyPrevención | N142: 1056000000 | O142: 1056000000 | P142: NO | Q142: NA | R142: Gerencia de Abastecimiento Estratégico contratacion@positiva.gov.co PBX: (1)6502200 Ext: 10641 | S142: SI | T142: NO | U142: NO | V142: SI | W142: =IF(V142="SI","Pública clasificada","Pública") -> Pública clasificada | X142: =CONCATENATE(E142,"-","Tipo de información"," ",W142,"-",G142) -> C78122021-Tipo de información Pública clasificada-App zona santander
A143: Promoción y Prevención | B143: Gcia. Administración del Riesgo | D143: NO | E143: C83072021 | F143: 93141808 | G143: Continuar con el desarrollo del proyecto de automatización de los procesos de pyp a través de alissta® sum y desarrollo evolutivo de alissta® en las necesidades de las empresas para facilitar la implementación del sistema de gestión en seguridad y salud en el trabajo. | H143: 19/12/2019 | I143: =MONTH(H143) -> 12 | J143: 31/05/2021 | K143: =_xlfn.DAYS(J143,H143)/30 -> 17.63333333 | L143: Invitación directa | M143: PromociónyPrevención | N143: 1050139037 | O143: 1050139037 | P143: NO | Q143: NA | R143: Gerencia de Abastecimiento Estratégico contratacion@positiva.gov.co PBX: (1)6502200 Ext: 10641 | S143: SI | T143: NO | U143: NO | V143: SI | W143: =IF(V143="SI","Pública clasificada","Pública") -> Pública clasificada | X143: =CONCATENATE(E143,"-","Tipo de información"," ",W143,"-",G143) -> C83072021-Tipo de información Pública clasificada-Continuar con el desarrollo del proyecto de automatización de los procesos de pyp a través de alissta® sum y desarrollo evolutivo de alissta® en las necesidades de las empresas para facilitar la implementación del sistema de gestión en seguridad y salud en el trabajo.
A144: Promoción y Prevención | B144: Gcia. Administración del Riesgo | C144: DAVID DAZA | D144: SI | E144: C77042021 | F144: 93141808 | G144: Servicios en empresas clinica del occidente sa, ese hospital universitario de la samaritana,ministerio de vivienda ciudad y territorio y grasco ltda, entre otras, para la prestacion de la asesoría de las actividades en plan básico (programa estructura empresarial, programa de preparación y atención de emergencias, programa de prevención y protección colectiva e individual, programa promoción y prevención en salud, programa de investigación de incidencia y accidentes de trabajo), plan avanzado (programa de gestión para el control de incidentes y accidentes de trabajo, programa de gestión prevención de la enfermedad profesional) plan especializado (programas de vigilancia epidemiológico) plan gestión integral (sistema de gestión en s&so – oshas 18001) se proyectan para el próximo año 18,600 horas de ejecución | H144: 1/01/2021 | I144: =MONTH(H144) -> 1 | J144: 31/12/2021 | K144: =_xlfn.DAYS(J144,H144)/30 -> 12.13333333 | L144: Invitación directa | M144: PromociónyPrevención | N144: 1000000000 | O144: 1000000000 | P144: NO | Q144: NA | R144: Gerencia de Abastecimiento Estratégico contratacion@positiva.gov.co PBX: (1)6502200 Ext: 10641 | S144: SI | T144: NO | U144: NO | V144: SI | W144: =IF(V144="SI","Pública clasificada","Pública") -> Pública clasificada | X144: =CONCATENATE(E144,"-","Tipo de información"," ",W144,"-",G144) -> C77042021-Tipo de información Pública clasificada-Servicios en empresas clinica del occidente sa, ese hospital universitario de la samaritana,ministerio de vivienda ciudad y territorio y grasco ltda, entre otras, para la prestacion de la asesoría de las actividades en plan básico (programa estructura empresarial, programa de preparación y atención de emergencias, programa de prevención y protección colectiva e individual, programa promoción y prevención en salud, programa de investigación de incidencia y accidentes de trabajo), plan avanzado (programa de gestión para el control de incidentes y accidentes de trabajo, programa de gestión prevención de la enfermedad profesional) plan especializado (programas de vigilancia epidemiológico) plan gestión integral (sistema de gestión en s&so – oshas 18001) se proyectan para el próximo año 18,600 horas de ejecución
A145: Promoción y Prevención | B145: Gcia. Administración del Riesgo | C145: OMAR VANEGAS | D145: SI | E145: C78182021 | F145: 80111701 | G145: prestación de servicios de Promoción y Prevención para implementar, mejorar y/o mantener actividades de asesoría técnica del Sistema de Gestión de Seguridad y Salud en Trabajo, con base en los Programas de la Estrategia POSITIVA CREA del Modelo de Gestión POSITIVA SUMA en PLAN ESPECIALIZADO - Programas de Vigilancia Epidemiológica para el acompañamiento de las empresas afiliadas a POSITIVA COMPAÑÍA DE SEGUROS en Zonas Antioquia, Atlántico, Bogotá, Santander y Valle en la modalidad de atención Gran Empresa | H145: 2021-02-17 | I145: =MONTH(H145) -> 2 | J145: 2021-11-30 | K145: 9 | L145: Invitación directa | M145: PromociónyPrevención | N145: 400000000 | O145: 400000000 | P145: NO | Q145: NA | R145: Gerencia de Abastecimiento Estratégico contratacion@positiva.gov.co PBX: (1)6502200 Ext: 10641 | S145: SI | T145: NO | U145: NO | V145: SI | W145: =IF(V145="SI","Pública clasificada","Pública") -> Pública clasificada | X145: =CONCATENATE(E145,"-","Tipo de información"," ",W145,"-",G145) -> C78182021 -Tipo de información Pública clasificada-prestación de servicios de Promoción y Prevención para implementar, mejorar y/o mantener actividades de asesoría técnica del Sistema de Gestión de Seguridad y Salud en Trabajo, con base en los Programas de la Estrategia POSITIVA CREA del Modelo de Gestión POSITIVA SUMA en PLAN ESPECIALIZADO - Programas de Vigilancia Epidemiológica para el acompañamiento de las empresas afiliadas a POSITIVA COMPAÑÍA DE SEGUROS en Zonas Antioquia, Atlántico, Bogotá, Santander y Valle en la modalidad de atención Gran Empresa
A146: Promoción y Prevención | B146: Gcia. Administración del Riesgo | D146: NO | E146: C75012021 | F146: 93141808 | G146: Prestación de servicios integrales para brindar acompañamiento, asistencia técnica y capacitación en el sistema de gestión de seguridad y salud en el trabajo de confirmadad con el marco legal colombiano vigente para la prevención de riesgo laborales, con el equipo interdisciplinario, en empresas afiliadas a positiva compañía de seguros en la zona antioquia, que le sean asignadas al proveedor, también el inicio de nuevos clientes como el municipio de medellin | H146: 4/01/2021 | I146: =MONTH(H146) -> 1 | J146: 30/04/2021 | K146: =_xlfn.DAYS(J146,H146)/30 -> 3.866666667 | L146: Invitación directa | M146: PromociónyPrevención | N146: 945410420 | O146: 945410420 | P146: NO | Q146: NA | R146: Gerencia de Abastecimiento Estratégico contratacion@positiva.gov.co PBX: (1)6502200 Ext: 10641 | S146: SI | T146: NO | U146: NO | V146: SI | W146: =IF(V146="SI","Pública clasificada","Pública") -> Pública clasificada | X146: =CONCATENATE(E146,"-","Tipo de información"," ",W146,"-",G146) -> C75012021-Tipo de información Pública clasificada-Prestación de servicios integrales para brindar acompañamiento, asistencia técnica y capacitación en el sistema de gestión de seguridad y salud en el trabajo de confirmadad con el marco legal colombiano vigente para la prevención de riesgo laborales, con el equipo interdisciplinario, en empresas afiliadas a positiva compañía de seguros en la zona antioquia, que le sean asignadas al proveedor, también el inicio de nuevos clientes como el municipio de medellin
A147: Promoción y Prevención | B147: Gcia. Administración del Riesgo | C147: OMAR VANEGAS | D147: SI | E147: C82362021 | F147: 93141808 93141811 | G147: Prestación de servicios de Promoción y Prevención para implementar, mejorar y/o mantener actividades de asesoría técnica del Sistema de Gestión de Seguridad y Salud en Trabajo, con base en los Programas de la Estrategia POSITIVA CREA del Modelo de Gestión POSITIVA SUMA, en PLAN BASICO Preparación y Atención de Emergencias y Protección Colectiva e Individual, para los servidores de la Fiscalía General de la Nación en la ciudad de Barranquilla. | H147: 2021-02-19 | I147: =MONTH(H147) -> 2 | J147: 2021-11-30 | K147: 9 | L147: Invitación directa | M147: PromociónyPrevención | N147: 152000000 | O147: 152000000 | P147: NO | Q147: NA | R147: Gerencia de Abastecimiento Estratégico contratacion@positiva.gov.co PBX: (1)6502200 Ext: 10641 | S147: SI | T147: NO | U147: NO | V147: SI | W147: =IF(V147="SI","Pública clasificada","Pública") -> Pública clasificada | X147: =CONCATENATE(E147,"-","Tipo de información"," ",W147,"-",G147) -> C82362021-Tipo de información Pública clasificada-Prestación de servicios de Promoción y Prevención para implementar, mejorar y/o mantener actividades de asesoría técnica del Sistema de Gestión de Seguridad y Salud en Trabajo, con base en los Programas de la Estrategia POSITIVA CREA del Modelo de Gestión POSITIVA SUMA, en PLAN BASICO Preparación y Atención de Emergencias y Protección Colectiva e Individual, para los servidores de la Fiscalía General de la Nación en la ciudad de Barranquilla.
A148: Promoción y Prevención | B148: Gcia. Administración del Riesgo | C148: DAVID DAZA | D148: SI | E148: C77102021 | F148: 93141808 | G148: Servicios en empresas clientes representativos para la sucursales cundinamarca, bogota coordinadora y gerencia corredores como procuraduría, je jaimes, invima, anla, superintendencia de industria y comercio, agencia de desarrollo rural, ministerio de educación, grupo grasco entre otras, para la prestacion de actividades de asesoría en plan básico (programa estructura empresarial, programa de preparación y atención de emergencias, programa de prevención y protección colectiva e individual, programa promoción y prevención en salud, programa de investigación de incidencia y accidentes de trabajo), plan avanzado (programa de gestión para el control de incidentes y accidentes de trabajo, programa de gestión prevención de la enfermedad profesional) plan especializado (programas de vigilancia epidemiológico) plan gestión integral (sistema de gestión en s&so – oshas 18001) se proyectan para el próximo año 14.879 horas de ejecución | H148: 1/01/2021 | I148: =MONTH(H148) -> 1 | J148: 31/12/2021 | K148: =_xlfn.DAYS(J148,H148)/30 -> 12.13333333 | L148: Invitación directa | M148: PromociónyPrevención | N148: 800000000 | O148: 800000000 | P148: NO | Q148: NA | R148: Gerencia de Abastecimiento Estratégico contratacion@positiva.gov.co PBX: (1)6502200 Ext: 10641 | S148: SI | T148: NO | U148: NO | V148: SI | W148: =IF(V148="SI","Pública clasificada","Pública") -> Pública clasificada | X148: =CONCATENATE(E148,"-","Tipo de información"," ",W148,"-",G148) -> C77102021-Tipo de información Pública clasificada-Servicios en empresas clientes representativos para la sucursales cundinamarca, bogota coordinadora y gerencia corredores como procuraduría, je jaimes, invima, anla, superintendencia de industria y comercio, agencia de desarrollo rural, ministerio de educación, grupo grasco entre otras, para la prestacion de actividades de asesoría en plan básico (programa estructura empresarial, programa de preparación y atención de emergencias, programa de prevención y protección colectiva e individual, programa promoción y prevención en salud, programa de investigación de incidencia y accidentes de trabajo), plan avanzado (programa de gestión para el control de incidentes y accidentes de trabajo, programa de gestión prevención de la enfermedad profesional) plan especializado (programas de vigilancia epidemiológico) plan gestión integral (sistema de gestión en s&so – oshas 18001) se proyectan para el próximo año 14.879 horas de ejecución
A149: Promoción y Prevención | B149: Gcia. Administración del Riesgo | D149: NO | E149: C77032021 | F149: 93141808 | G149: Autoprestacion de servicios en promoción y prevención en empresa cliente hospital universitario san ignacio para la prestacion de actividades en plan básico (programa de preparación y atención de emergencias, programa de prevención y protección colectiva e individual, programa promoción y prevención en salud, programa de investigación de incidencia y accidentes de trabajo), plan avanzado (programa de gestión para el control de incidentes y accidentes de trabajo, programa de gestión prevención de la enfermedad profesional) plan especializado (programas de vigilancia epidemiológico) se proyectan para el próximo año 14,470 horas de ejecución | H149: 1/01/2021 | I149: =MONTH(H149) -> 1 | J149: 30/11/2021 | K149: =_xlfn.DAYS(J149,H149)/30 -> 11.1 | L149: Invitación directa | M149: PromociónyPrevención | N149: 778000000 | O149: 778000000 | P149: NO | Q149: NA | R149: Gerencia de Abastecimiento Estratégico contratacion@positiva.gov.co PBX: (1)6502200 Ext: 10641 | S149: SI | T149: NO | U149: NO | V149: SI | W149: =IF(V149="SI","Pública clasificada","Pública") -> Pública clasificada | X149: =CONCATENATE(E149,"-","Tipo de información"," ",W149,"-",G149) -> C77032021-Tipo de información Pública clasificada-Autoprestacion de servicios en promoción y prevención en empresa cliente hospital universitario san ignacio para la prestacion de actividades en plan básico (programa de preparación y atención de emergencias, programa de prevención y protección colectiva e individual, programa promoción y prevención en salud, programa de investigación de incidencia y accidentes de trabajo), plan avanzado (programa de gestión para el control de incidentes y accidentes de trabajo, programa de gestión prevención de la enfermedad profesional) plan especializado (programas de vigilancia epidemiológico) se proyectan para el próximo año 14,470 horas de ejecución
A150: Promoción y Prevención | B150: Gcia. Administración del Riesgo | D150: NO | E150: C83032021 | F150: 93141808 | G150: Suministro, entrega y distribución de elementos de protección personal para la prevención, control y mitigación por exposición ocupacional de los efectos del covid-19, en las empresas afiliadas a positiva compañía de seguros, con base en los programas de la estrategia positiva crea del modelo de gestión positiva suma en plan basico - promoción y prevención en salud, plan avanzado - gestión para la prevención de la enfermedad laboral, para el acompañamiento de las empresas afiliadas a positiva compañía de seguros a nivel nacional de acuerdo con el anexo no. 1 denominado “especificaciones técnicas mínimas de los elementos de protección personal”. | H150: 11/11/2020 | I150: =MONTH(H150) -> 11 | J150: 28/02/2021 | K150: =_xlfn.DAYS(J150,H150)/30 -> 3.633333333 | L150: Invitación directa | M150: PromociónyPrevención | N150: 705196800 | O150: 705196800 | P150: NO | Q150: NA | R150: Gerencia de Abastecimiento Estratégico contratacion@positiva.gov.co PBX: (1)6502200 Ext: 10641 | S150: SI | T150: NO | U150: NO | V150: SI | W150: =IF(V150="SI","Pública clasificada","Pública") -> Pública clasificada | X150: =CONCATENATE(E150,"-","Tipo de información"," ",W150,"-",G150) -> C83032021-Tipo de información Pública clasificada-Suministro, entrega y distribución de elementos de protección personal para la prevención, control y mitigación por exposición ocupacional de los efectos del covid-19, en las empresas afiliadas a positiva compañía de seguros, con base en los programas de la estrategia positiva crea del modelo de gestión positiva suma en plan basico - promoción y prevención en salud, plan avanzado - gestión para la prevención de la enfermedad laboral, para el acompañamiento de las empresas afiliadas a positiva compañía de seguros a nivel nacional de acuerdo con el anexo no. 1 denominado “especificaciones técnicas mínimas de los elementos de protección personal”.
A151: Promoción y Prevención | B151: Gcia. Administración del Riesgo | C151: DAVID DAZA | D151: SI | E151: C77392021 | F151: 93141808 | G151: Continuidad de servicios para los planes de trabajo de los clientes de la sucursal bogota cundinamarca, proveedor con contratos en vigencias pasadas y prestacion de servicios para los clientes de la sucursal. | H151: 15/01/2021 | I151: =MONTH(H151) -> 1 | J151: 31/12/2021 | K151: =_xlfn.DAYS(J151,H151)/30 -> 11.66666667 | L151: Invitación directa | M151: PromociónyPrevención | N151: 700000000 | O151: 700000000 | P151: NO | Q151: NA | R151: Gerencia de Abastecimiento Estratégico contratacion@positiva.gov.co PBX: (1)6502200 Ext: 10641 | S151: SI | T151: NO | U151: NO | V151: SI | W151: =IF(V151="SI","Pública clasificada","Pública") -> Pública clasificada | X151: =CONCATENATE(E151,"-","Tipo de información"," ",W151,"-",G151) -> C77392021-Tipo de información Pública clasificada-Continuidad de servicios para los planes de trabajo de los clientes de la sucursal bogota cundinamarca, proveedor con contratos en vigencias pasadas y prestacion de servicios para los clientes de la sucursal.
A152: Promoción y Prevención | B152: Gcia. Administración del Riesgo | D152: NO | E152: C80142021 | F152: 93141808 | G152: Garantizar la atencion en p y p en el marco de la promesa de valor, dando cumplimiento a los aspectos legales ygenerando clienes fidelizados | H152: 8/01/2021 | I152: =MONTH(H152) -> 1 | J152: 30/11/2021 | K152: =_xlfn.DAYS(J152,H152)/30 -> 10.86666667 | L152: Invitación directa | M152: PromociónyPrevención | N152: 700000000 | O152: 700000000 | P152: NO | Q152: NA | R152: Gerencia de Abastecimiento Estratégico contratacion@positiva.gov.co PBX: (1)6502200 Ext: 10641 | S152: SI | T152: NO | U152: NO | V152: SI | W152: =IF(V152="SI","Pública clasificada","Pública") -> Pública clasificada | X152: =CONCATENATE(E152,"-","Tipo de información"," ",W152,"-",G152) -> C80142021-Tipo de información Pública clasificada-Garantizar la atencion en p y p en el marco de la promesa de valor, dando cumplimiento a los aspectos legales ygenerando clienes fidelizados
A153: Promoción y Prevención | B153: Gcia. Administración del Riesgo | D153: NO | E153: C83062021 | F153: 93141808 | G153: Suministro, entrega y distribución de elementos de protección personal para la prevención, control y mitigación por exposición ocupacional de los efectos del covid-19, en las empresas afiliadas a positiva compañía de seguros, con base en los programas de la estrategia positiva crea del modelo de gestión positiva suma en plan basico - promoción y prevención en salud, plan avanzado - gestión para la prevención de la enfermedad laboral, para el acompañamiento de las empresas afiliadas a positiva compañía de seguros a nivel nacional de acuerdo con el anexo no. 1 denominado “especificaciones técnicas mínimas de los elementos de protección personal”. | H153: 4/11/2020 | I153: =MONTH(H153) -> 11 | J153: 28/02/2021 | K153: =_xlfn.DAYS(J153,H153)/30 -> 3.866666667 | L153: Invitación directa | M153: PromociónyPrevención | N153: 698544000 | O153: 698544000 | P153: NO | Q153: NA | R153: Gerencia de Abastecimiento Estratégico contratacion@positiva.gov.co PBX: (1)6502200 Ext: 10641 | S153: SI | T153: NO | U153: NO | V153: SI | W153: =IF(V153="SI","Pública clasificada","Pública") -> Pública clasificada | X153: =CONCATENATE(E153,"-","Tipo de información"," ",W153,"-",G153) -> C83062021-Tipo de información Pública clasificada-Suministro, entrega y distribución de elementos de protección personal para la prevención, control y mitigación por exposición ocupacional de los efectos del covid-19, en las empresas afiliadas a positiva compañía de seguros, con base en los programas de la estrategia positiva crea del modelo de gestión positiva suma en plan basico - promoción y prevención en salud, plan avanzado - gestión para la prevención de la enfermedad laboral, para el acompañamiento de las empresas afiliadas a positiva compañía de seguros a nivel nacional de acuerdo con el anexo no. 1 denominado “especificaciones técnicas mínimas de los elementos de protección personal”.
A154: Promoción y Prevención | B154: Gcia. Administración del Riesgo | D154: NO | E154: C81072021 | F154: 93141808 | G154: Garantizar la atención de empresas mipymes afiliadas a positiva compañía de seguros, lo que contribuye al cumplimiento de la exigencia legal sobre la implementación del sistema de gestión de seguridad y salud en el trabajo y estándares mínimos, y al logro de los objetivos estratégicos de fidelización y la satisfacción de las necesidades y expectativas de los clientes. | H154: 1/01/2021 | I154: =MONTH(H154) -> 1 | J154: 31/12/2021 | K154: =_xlfn.DAYS(J154,H154)/30 -> 12.13333333 | L154: Invitación directa | M154: PromociónyPrevención | N154: 675000000 | O154: 675000000 | P154: NO | Q154: NA | R154: Gerencia de Abastecimiento Estratégico contratacion@positiva.gov.co PBX: (1)6502200 Ext: 10641 | S154: SI | T154: NO | U154: NO | V154: SI | W154: =IF(V154="SI","Pública clasificada","Pública") -> Pública clasificada | X154: =CONCATENATE(E154,"-","Tipo de información"," ",W154,"-",G154) -> C81072021-Tipo de información Pública clasificada-Garantizar la atención de empresas mipymes afiliadas a positiva compañía de seguros, lo que contribuye al cumplimiento de la exigencia legal sobre la implementación del sistema de gestión de seguridad y salud en el trabajo y estándares mínimos, y al logro de los objetivos estratégicos de fidelización y la satisfacción de las necesidades y expectativas de los clientes.
A155: Promoción y Prevención | B155: Gcia. Administración del Riesgo | C155: DAVID DAZA | D155: SI | E155: C77402021 | F155: 93141808 | G155: Continuidad de servicios para los planes de trabajo de los clientes de la sucursal bogota cundinamarca, proveedor con contratos en vigencias pasadas y prestacion de servicios para los clientes de la sucursal. | H155: 15/01/2021 | I155: =MONTH(H155) -> 1 | J155: 31/12/2021 | K155: =_xlfn.DAYS(J155,H155)/30 -> 11.66666667 | L155: Invitación directa | M155: PromociónyPrevención | N155: 600000000 | O155: 600000000 | P155: NO | Q155: NA | R155: Gerencia de Abastecimiento Estratégico contratacion@positiva.gov.co PBX: (1)6502200 Ext: 10641 | S155: SI | T155: NO | U155: NO | V155: SI | W155: =IF(V155="SI","Pública clasificada","Pública") -> Pública clasificada | X155: =CONCATENATE(E155,"-","Tipo de información"," ",W155,"-",G155) -> C77402021-Tipo de información Pública clasificada-Continuidad de servicios para los planes de trabajo de los clientes de la sucursal bogota cundinamarca, proveedor con contratos en vigencias pasadas y prestacion de servicios para los clientes de la sucursal.
A156: Promoción y Prevención | B156: Gcia. Administración del Riesgo | D156: NO | E156: C77142021 | F156: 93141808 | G156: Servicios en empresas clientes representativas para la sucursales cundinamarca, bogota coordinadora y gerencia corredores como el sena, procuraduria general de la nación, corporacion hospitalaria juan ciudad, salud total eps-s, unidad administrativa especial de gestion de restitucion de tierras despojadas, rts sas, icontec, instituto nacional de vias, positiva compañia de seguros s.a., fundacion universtaria autonoma de colombia, superintendencia nacional de salud, entre otras, para la prestacion de las activiades en plan avanzado gestión en prevención de la enfermedad profesional (dme) y plan especializado programas de vigilancia epidemiológica (dme) se proyectan para el próximo año 9,299 horas de ejecución | H156: 31/03/2020 | I156: =MONTH(H156) -> 3 | J156: 30/04/2021 | K156: =_xlfn.DAYS(J156,H156)/30 -> 13.16666667 | L156: Invitación directa | M156: PromociónyPrevención | N156: 500000000 | O156: 500000000 | P156: NO | Q156: NA | R156: Gerencia de Abastecimiento Estratégico contratacion@positiva.gov.co PBX: (1)6502200 Ext: 10641 | S156: SI | T156: NO | U156: NO | V156: SI | W156: =IF(V156="SI","Pública clasificada","Pública") -> Pública clasificada | X156: =CONCATENATE(E156,"-","Tipo de información"," ",W156,"-",G156) -> C77142021-Tipo de información Pública clasificada-Servicios en empresas clientes representativas para la sucursales cundinamarca, bogota coordinadora y gerencia corredores como el sena, procuraduria general de la nación, corporacion hospitalaria juan ciudad, salud total eps-s, unidad administrativa especial de gestion de restitucion de tierras despojadas, rts sas, icontec, instituto nacional de vias, positiva compañia de seguros s.a., fundacion universtaria autonoma de colombia, superintendencia nacional de salud, entre otras, para la prestacion de las activiades en plan avanzado gestión en prevención de la enfermedad profesional (dme) y plan especializado programas de vigilancia epidemiológica (dme) se proyectan para el próximo año 9,299 horas de ejecución
A157: Promoción y Prevención | B157: Gcia. Administración del Riesgo | C157: DAVID DAZA | D157: SI | E157: C77342021 | F157: 93141808 | G157: Continuidad de servicios para los planes de trabajo de los clientes de la zona bogota y sucursal guajira, proveedor con contratos en vigencias pasadas y prestacion de servicios para los clientes de la sucursal. contrato transversal para empresas de las sucursales bogota coordinadora, cundinamarca, corredores y guajira. | H157: 15/01/2021 | I157: =MONTH(H157) -> 1 | J157: 30/11/2021 | K157: =_xlfn.DAYS(J157,H157)/30 -> 10.63333333 | L157: Invitación directa | M157: PromociónyPrevención | N157: 500000000 | O157: 500000000 | P157: NO | Q157: NA | R157: Gerencia de Abastecimiento Estratégico contratacion@positiva.gov.co PBX: (1)6502200 Ext: 10641 | S157: SI | T157: NO | U157: NO | V157: SI | W157: =IF(V157="SI","Pública clasificada","Pública") -> Pública clasificada | X157: =CONCATENATE(E157,"-","Tipo de información"," ",W157,"-",G157) -> C77342021-Tipo de información Pública clasificada-Continuidad de servicios para los planes de trabajo de los clientes de la zona bogota y sucursal guajira, proveedor con contratos en vigencias pasadas y prestacion de servicios para los clientes de la sucursal. contrato transversal para empresas de las sucursales bogota coordinadora, cundinamarca, corredores y guajira.
A158: Promoción y Prevención | B158: Gcia. Administración del Riesgo | C158: DAVID DAZA | D158: SI | E158: C77122021 | F158: 93141808 | G158: Servicios en empresas clientes representativos para la sucursales cundinamarca, bogota coordinadora y gerencia corredores como salgado melendez,, je jaimes, invima, grupon empresarial tecna, laboratorios chalver, entre otras, para la prestacion de actividades de asesoría en plan básico (programa de preparación y atención de emergencias, programa de prevención y protección colectiva e individual), plan avanzado (programa de gestión para el control de incidentes y accidentes de trabajo, programa de gestión prevención de la enfermedad profesional) se proyectan para el próximo año 8.369 horas de ejecución. | H158: 1/01/2021 | I158: =MONTH(H158) -> 1 | J158: 30/11/2021 | K158: =_xlfn.DAYS(J158,H158)/30 -> 11.1 | L158: Invitación directa | M158: PromociónyPrevención | N158: 450000000 | O158: 450000000 | P158: NO | Q158: NA | R158: Gerencia de Abastecimiento Estratégico contratacion@positiva.gov.co PBX: (1)6502200 Ext: 10641 | S158: SI | T158: NO | U158: NO | V158: SI | W158: =IF(V158="SI","Pública clasificada","Pública") -> Pública clasificada | X158: =CONCATENATE(E158,"-","Tipo de información"," ",W158,"-",G158) -> C77122021-Tipo de información Pública clasificada-Servicios en empresas clientes representativos para la sucursales cundinamarca, bogota coordinadora y gerencia corredores como salgado melendez,, je jaimes, invima, grupon empresarial tecna, laboratorios chalver, entre otras, para la prestacion de actividades de asesoría en plan básico (programa de preparación y atención de emergencias, programa de prevención y protección colectiva e individual), plan avanzado (programa de gestión para el control de incidentes y accidentes de trabajo, programa de gestión prevención de la enfermedad profesional) se proyectan para el próximo año 8.369 horas de ejecución.
A159: Promoción y Prevención | B159: Gcia. Administración del Riesgo | C159: DAVID DAZA | D159: SI | E159: C77592021 | F159: 93141808 | G159: "de acuerdo con los planes de trabajo establecidos para las empresas afiliadas a positiva compañia de seguros en la zona bogotá; gerencia de corredores se contemplan actividades de asesoría estratégica orientada a plantear soluciones a los problemas que presenta la empresa en materia de seguridad y salud en el trabajo con el fin de generar impacto en la disminución de la siniestralidad." | H159: 15/01/2021 | I159: =MONTH(H159) -> 1 | J159: 30/11/2021 | K159: =_xlfn.DAYS(J159,H159)/30 -> 10.63333333 | L159: Invitación directa | M159: PromociónyPrevención | N159: 450000000 | O159: 450000000 | P159: NO | Q159: NA | R159: Gerencia de Abastecimiento Estratégico contratacion@positiva.gov.co PBX: (1)6502200 Ext: 10641 | S159: SI | T159: NO | U159: NO | V159: SI | W159: =IF(V159="SI","Pública clasificada","Pública") -> Pública clasificada | X159: =CONCATENATE(E159,"-","Tipo de información"," ",W159,"-",G159) -> C77592021-Tipo de información Pública clasificada-"de acuerdo con los planes de trabajo establecidos para las empresas afiliadas a positiva compañia de seguros en la zona bogotá; gerencia de corredores se contemplan actividades de asesoría estratégica orientada a plantear soluciones a los problemas que presenta la empresa en materia de seguridad y salud en el trabajo con el fin de generar impacto en la disminución de la siniestralidad."
A160: Promoción y Prevención | B160: Gcia. Administración del Riesgo | C160: OMAR VANEGAS | D160: SI | E160: C81012021 | F160: 93141808 | G160: Garantizar la atención de empresas mipymes afiliadas a positiva compañía de seguros, lo que contribuye al cumplimiento de la exigencia legal sobre la implementación del sistema de gestión de seguridad y salud en el trabajo y estándares mínimos, y al logro de los objetivos estratégicos de fidelización y la satisfacción de las necesidades y expectativas de los clientes. | H160: 1/01/2020 | I160: =MONTH(H160) -> 1 | J160: 31/12/2020 | K160: =_xlfn.DAYS(J160,H160)/30 -> 12.16666667 | L160: Invitación directa | M160: PromociónyPrevención | N160: 435000000 | O160: 435000000 | P160: NO | Q160: NA | R160: Gerencia de Abastecimiento Estratégico contratacion@positiva.gov.co PBX: (1)6502200 Ext: 10641 | S160: SI | T160: NO | U160: NO | V160: SI | W160: =IF(V160="SI","Pública clasificada","Pública") -> Pública clasificada | X160: =CONCATENATE(E160,"-","Tipo de información"," ",W160,"-",G160) -> C81012021-Tipo de información Pública clasificada-Garantizar la atención de empresas mipymes afiliadas a positiva compañía de seguros, lo que contribuye al cumplimiento de la exigencia legal sobre la implementación del sistema de gestión de seguridad y salud en el trabajo y estándares mínimos, y al logro de los objetivos estratégicos de fidelización y la satisfacción de las necesidades y expectativas de los clientes.
A161: Promoción y Prevención | B161: Gcia. Administración del Riesgo | C161: DAVID DAZA | D161: SI | E161: C82512021 | F161: 93141808 | G161: Garantizar la atención de empresas con el fin de dar cumplimiento legal en materia de riesgos laborales, la organización del proceso misional de promoción y prevención que define la intervención del riesgo en las empresas afiliadas a positiva compañía de seguros s.a. con accidentalidad leves, graves y mortales, al igual las que presentan alta frecuencia y severidad, mediante la asesoría, investigación por parte de la arl (cuando aplique), inspección / verificación, seguimiento a recomendaciones, con el objetivo de mitigar los riesgos y así disminuir el índice de siniestralidad, al igual que la intervención de las empresas que presenten enfermedades laborales y produzcan la muerte del trabajador, mediante la investigación e identificación de las causas con el objetivo de mitigar el o los riesgos. | H161: 1/01/2020 | I161: =MONTH(H161) -> 1 | J161: 31/12/2020 | K161: =_xlfn.DAYS(J161,H161)/30 -> 12.16666667 | L161: Invitación directa | M161: PromociónyPrevención | N161: 430000000 | O161: 430000000 | P161: NO | Q161: NA | R161: Gerencia de Abastecimiento Estratégico contratacion@positiva.gov.co PBX: (1)6502200 Ext: 10641 | S161: SI | T161: NO | U161: NO | V161: SI | W161: =IF(V161="SI","Pública clasificada","Pública") -> Pública clasificada | X161: =CONCATENATE(E161,"-","Tipo de información"," ",W161,"-",G161) -> C82512021-Tipo de información Pública clasificada-Garantizar la atención de empresas con el fin de dar cumplimiento legal en materia de riesgos laborales, la organización del proceso misional de promoción y prevención que define la intervención del riesgo en las empresas afiliadas a positiva compañía de seguros s.a. con accidentalidad leves, graves y mortales, al igual las que presentan alta frecuencia y severidad, mediante la asesoría, investigación por parte de la arl (cuando aplique), inspección / verificación, seguimiento a recomendaciones, con el objetivo de mitigar los riesgos y así disminuir el índice de siniestralidad, al igual que la intervención de las empresas que presenten enfermedades laborales y produzcan la muerte del trabajador, mediante la investigación e identificación de las causas con el objetivo de mitigar el o los riesgos.
A162: Promoción y Prevención | B162: Gcia. Administración del Riesgo | C162: OMAR VANEGAS | D162: SI | E162: C77782021 | F162: 93141808 | G162: Servicios de promocion y prevencion zona bogota suc corredores | H162: 1/02/2021 | I162: =MONTH(H162) -> 2 | J162: 30/11/2021 | K162: =_xlfn.DAYS(J162,H162)/30 -> 10.06666667 | L162: Invitación directa | M162: PromociónyPrevención | N162: 424560000 | O162: 424560000 | P162: NO | Q162: NA | R162: Gerencia de Abastecimiento Estratégico contratacion@positiva.gov.co PBX: (1)6502200 Ext: 10641 | S162: SI | T162: NO | U162: NO | V162: SI | W162: =IF(V162="SI","Pública clasificada","Pública") -> Pública clasificada | X162: =CONCATENATE(E162,"-","Tipo de información"," ",W162,"-",G162) -> C77782021-Tipo de información Pública clasificada-Servicios de promocion y prevencion zona bogota suc corredores
A163: Promoción y Prevención | B163: Gcia. Administración del Riesgo | D163: NO | E163: C78102021 | F163: 93141808 | G163: App zona atlantico | H163: 1/06/2021 | I163: =MONTH(H163) -> 6 | J163: 31/12/2021 | K163: =_xlfn.DAYS(J163,H163)/30 -> 7.1 | L163: Invitación cerrada | M163: PromociónyPrevención | N163: 402997000 | O163: 402997000 | P163: NO | Q163: NA | R163: Gerencia de Abastecimiento Estratégico contratacion@positiva.gov.co PBX: (1)6502200 Ext: 10641 | S163: SI | T163: NO | U163: NO | V163: SI | W163: =IF(V163="SI","Pública clasificada","Pública") -> Pública clasificada | X163: =CONCATENATE(E163,"-","Tipo de información"," ",W163,"-",G163) -> C78102021-Tipo de información Pública clasificada-App zona atlantico
A164: Promoción y Prevención | B164: Gcia. Administración del Riesgo | C164: DAVID DAZA | D164: SI | E164: C82152021 | F164: 93141808 | G164: El riesgo psicosocial es un riesgo de perjuicio del bienestar fisico y psicologico de los trabajadores que deriva de la interaccion entre el diseño y la gestion del trabajo, dentro del contexto organizativo y social. la exposicion a los riesgos psicosociales puede provocar estrés entre los trabajadores, que dan como resultado un rendimiento escaso y, cuando se prolonga, graves problemas de salud. la vida de trabajo se ve afectada por la aceleracion general del ritmo de vida, lo que contribuye a la intensificacion del trabajo, una presion del tiempo constante, la multitarea y la necesidad de obtener nuevos conocimientos para mantener la situacion actual. los estudios han demostrado que los periodos breves de exposicion a peligros psicosociales y de estrés estan relacionados con reacciones como alteraciones del sueño, cambios de humor, fatiga, dolores de cabeza e irritabilidad de estomago. igualmente, se ha demostrado que una exposicion prolongada a los riesgos psicosociales se asocia a una amplia gama de resultados de salud fisica y mental, incluida la ansiedad, la depresion, los intentos de suicidio, los problemas del sueño, los dolores de espalda, la fatiga cronica, los problemas digestivos, enfermedades autoinmunes, sistema inmunologico deficiente, enfermedades cardiovasculares, alta presion sanguinea y ulceras pépticas. entre otros efectos del estrés y los riesgos psicosociales en el trabajo se incluye la tension emocional y la reduccion de la calidad de vida que experimentan las personas fisicas afectadas, por tanto se considera prioritario continuar la implementacion de asesorias especializadas que propendan por contribuir a que la poblacion trabajadora de la fiscalia general de la nacion, cuente con factores protectores que le permitan hacer frente a las demandas del entorno social, con fines de reducir los efectos negativos para la salud y la productividad. estas intervenciones deben realizarse con un enfoque experiencial, a través de técnicas diferenciales sustentadas en estudios que demuestren su efectividad | H164: 2/02/2021 | I164: =MONTH(H164) -> 2 | J164: 31/12/2021 | K164: =_xlfn.DAYS(J164,H164)/30 -> 11.06666667 | L164: Invitación directa | M164: PromociónyPrevención | N164: 400000000 | O164: 400000000 | P164: NO | Q164: NA | R164: Gerencia de Abastecimiento Estratégico contratacion@positiva.gov.co PBX: (1)6502200 Ext: 10641 | S164: SI | T164: NO | U164: NO | V164: SI | W164: =IF(V164="SI","Pública clasificada","Pública") -> Pública clasificada | X164: =CONCATENATE(E164,"-","Tipo de información"," ",W164,"-",G164) -> C82152021-Tipo de información Pública clasificada-El riesgo psicosocial es un riesgo de perjuicio del bienestar fisico y psicologico de los trabajadores que deriva de la interaccion entre el diseño y la gestion del trabajo, dentro del contexto organizativo y social. la exposicion a los riesgos psicosociales puede provocar estrés entre los trabajadores, que dan como resultado un rendimiento escaso y, cuando se prolonga, graves problemas de salud. la vida de trabajo se ve afectada por la aceleracion general del ritmo de vida, lo que contribuye a la intensificacion del trabajo, una presion del tiempo constante, la multitarea y la necesidad de obtener nuevos conocimientos para mantener la situacion actual. los estudios han demostrado que los periodos breves de exposicion a peligros psicosociales y de estrés estan relacionados con reacciones como alteraciones del sueño, cambios de humor, fatiga, dolores de cabeza e irritabilidad de estomago. igualmente, se ha demostrado que una exposicion prolongada a los riesgos psicosociales se asocia a una amplia gama de resultados de salud fisica y mental, incluida la ansiedad, la depresion, los intentos de suicidio, los problemas del sueño, los dolores de espalda, la fatiga cronica, los problemas digestivos, enfermedades autoinmunes, sistema inmunologico deficiente, enfermedades cardiovasculares, alta presion sanguinea y ulceras pépticas. entre otros efectos del estrés y los riesgos psicosociales en el trabajo se incluye la tension emocional y la reduccion de la calidad de vida que experimentan las personas fisicas afectadas, por tanto se considera prioritario continuar la implementacion de asesorias especializadas que propendan por contribuir a que la poblacion trabajadora de la fiscalia general de la nacion, cuente con factores protectores que le permitan hacer frente a las demandas del entorno social, con fines de reducir los efectos negativos para la salud y la productividad. estas intervenciones deben realizarse con un enfoque experiencial, a través de técnicas diferenciales sustentadas en estudios que demuestren su efectividad
A165: Promoción y Prevención | B165: Gcia. Administración del Riesgo | C165: DAYANA BELTRAN | D165: SI | E165: C82162021 | F165: 93141808 | G165: "con fines de dar cumplimiento a lo establecido en el sistema de gestion en seguridad y salud en el trabajo se requiere contar con servicios de asesoria y asistencia tecnica especializada para la identificacion e intervencion de factores de riesgo psicosocial, con cobertura a nivel nacional, asegurando rigurosidad cientifica en la evaluacion y los diseños de planes de accion orientados a prevenir, mejorar y gestionar la salud psicosocial conforme a los riesgos identificados como prioritarios. para cumplir con los servicios de asesorìa en el orden nacional se requiere contar con sistemas de informacion robustos y eficientes; metodologias efectivas y conocimientos técnicos suficientes, que garanticen la calidad, estabilidad, confiabilidad y la confidencialidad de la informacion, asegurando la tranquilidad y confianza por parte de nuestro cliente fiscalia general de la nacion, frente a la asesoria brindada para cumplir con su sg-sst, particularmente frente a los factores de riesgo psicosocial. el proposito de continuar con con la asesoria especializada de psicologia ocupacional es mantener el servicio de calidad y rigurosidad técnica frente a la identificacion de los factores de riesgo psicosocial y su posterior proceso de intervencion" | H165: 2/02/2021 | I165: =MONTH(H165) -> 2 | J165: 31/12/2021 | K165: =_xlfn.DAYS(J165,H165)/30 -> 11.06666667 | L165: Invitación directa | M165: PromociónyPrevención | N165: 400000000 | O165: 400000000 | P165: NO | Q165: NA | R165: Gerencia de Abastecimiento Estratégico contratacion@positiva.gov.co PBX: (1)6502200 Ext: 10641 | S165: SI | T165: NO | U165: NO | V165: SI | W165: =IF(V165="SI","Pública clasificada","Pública") -> Pública clasificada | X165: =CONCATENATE(E165,"-","Tipo de información"," ",W165,"-",G165) -> C82162021-Tipo de información Pública clasificada-"con fines de dar cumplimiento a lo establecido en el sistema de gestion en seguridad y salud en el trabajo se requiere contar con servicios de asesoria y asistencia tecnica especializada para la identificacion e intervencion de factores de riesgo psicosocial, con cobertura a nivel nacional, asegurando rigurosidad cientifica en la evaluacion y los diseños de planes de accion orientados a prevenir, mejorar y gestionar la salud psicosocial conforme a los riesgos identificados como prioritarios. para cumplir con los servicios de asesorìa en el orden nacional se requiere contar con sistemas de informacion robustos y eficientes; metodologias efectivas y conocimientos técnicos suficientes, que garanticen la calidad, estabilidad, confiabilidad y la confidencialidad de la informacion, asegurando la tranquilidad y confianza por parte de nuestro cliente fiscalia general de la nacion, frente a la asesoria brindada para cumplir con su sg-sst, particularmente frente a los factores de riesgo psicosocial. el proposito de continuar con con la asesoria especializada de psicologia ocupacional es mantener el servicio de calidad y rigurosidad técnica frente a la identificacion de los factores de riesgo psicosocial y su posterior proceso de intervencion"
A166: Promoción y Prevención | B166: Gcia. Administración del Riesgo | C166: JONATHAN GONZALEZ | D166: SI | E166: C80242021 | F166: 93141808 | G166: Prestación de servicios de promoción y prevención para implementar, mejorar y/o mantener actividades de, asesoría, asistencia técnica y de formación en seguridad y salud en el trabajo del plan básico en los programas, (estructura empresarial, preparación y atención ante emergencias, programa de prevención y protección colectiva e individual, programa de promoción y prevención de la salud y programa de investigación de incidentes y accidentes de trabajo), plan avanzado (programa de gestión para el control de incidentes y accidentes de trabajo y programa de gestión en la prevención de la enfermedad laboral) y plan especializado (programa de vigilancia epidemiológica)y el plan de gestion integral sistemas integrados de gestión de la estrategia crea del modelo de gestion positiva suma de acuerdo a los planes de trabajo pactados con la empresas y cargados en el aplicativo gestpos, para empresas de la sucursal coordinadora valle. | H166: 1/01/2021 | I166: =MONTH(H166) -> 1 | J166: 30/11/2021 | K166: =_xlfn.DAYS(J166,H166)/30 -> 11.1 | L166: Invitación directa | M166: PromociónyPrevención | N166: 400000000 | O166: 400000000 | P166: NO | Q166: NA | R166: Gerencia de Abastecimiento Estratégico contratacion@positiva.gov.co PBX: (1)6502200 Ext: 10641 | S166: SI | T166: NO | U166: NO | V166: SI | W166: =IF(V166="SI","Pública clasificada","Pública") -> Pública clasificada | X166: =CONCATENATE(E166,"-","Tipo de información"," ",W166,"-",G166) -> C80242021-Tipo de información Pública clasificada-Prestación de servicios de promoción y prevención para implementar, mejorar y/o mantener actividades de, asesoría, asistencia técnica y de formación en seguridad y salud en el trabajo del plan básico en los programas, (estructura empresarial, preparación y atención ante emergencias, programa de prevención y protección colectiva e individual, programa de promoción y prevención de la salud y programa de investigación de incidentes y accidentes de trabajo), plan avanzado (programa de gestión para el control de incidentes y accidentes de trabajo y programa de gestión en la prevención de la enfermedad laboral) y plan especializado (programa de vigilancia epidemiológica)y el plan de gestion integral sistemas integrados de gestión de la estrategia crea del modelo de gestion positiva suma de acuerdo a los planes de trabajo pactados con la empresas y cargados en el aplicativo gestpos, para empresas de la sucursal coordinadora valle.
A167: Promoción y Prevención | B167: Gcia. Administración del Riesgo | C167: OMAR VANEGAS | D167: SI | E167: C80292021 | F167: 93141808 | G167: Realizar la prestación de servicios mediante actividades de promoción y prevención para implementar, mejorar y/o mantener actividades de asesoría, asistencia técnica y de formación en seguridad y salud en el trabajo del plan basico en los programas, estructura empresarial, preparación y atención ante emergencias, programa de prevención y protección colectiva e individual, programa de promoción y prevención de la salud y programa de investigación de incidentes y accidentes de trabajo, plan avanzado programa de gestión para el control de incidentes y accidentes de trabajo, plan especilizado programa de vigilancia epidemiologica y el plan de gestion integral sistemas integrados de gestión de la estrategia crea del modelo de gestión positiva suma de acuerdo a los planes de trabajo pactados con las empresas y cargados en el aplicativo gestpos, empresas afiliadas a positiva compañía de seguros en la sucursal tipo a coordinadora valle. | H167: 1/01/2021 | I167: =MONTH(H167) -> 1 | J167: 31/12/2021 | K167: =_xlfn.DAYS(J167,H167)/30 -> 12.13333333 | L167: Invitación directa | M167: PromociónyPrevención | N167: 400000000 | O167: 400000000 | P167: NO | Q167: NA | R167: Gerencia de Abastecimiento Estratégico contratacion@positiva.gov.co PBX: (1)6502200 Ext: 10641 | S167: SI | T167: NO | U167: NO | V167: SI | W167: =IF(V167="SI","Pública clasificada","Pública") -> Pública clasificada | X167: =CONCATENATE(E167,"-","Tipo de información"," ",W167,"-",G167) -> C80292021-Tipo de información Pública clasificada-Realizar la prestación de servicios mediante actividades de promoción y prevención para implementar, mejorar y/o mantener actividades de asesoría, asistencia técnica y de formación en seguridad y salud en el trabajo del plan basico en los programas, estructura empresarial, preparación y atención ante emergencias, programa de prevención y protección colectiva e individual, programa de promoción y prevención de la salud y programa de investigación de incidentes y accidentes de trabajo, plan avanzado programa de gestión para el control de incidentes y accidentes de trabajo, plan especilizado programa de vigilancia epidemiologica y el plan de gestion integral sistemas integrados de gestión de la estrategia crea del modelo de gestión positiva suma de acuerdo a los planes de trabajo pactados con las empresas y cargados en el aplicativo gestpos, empresas afiliadas a positiva compañía de seguros en la sucursal tipo a coordinadora valle.
A168: Promoción y Prevención | B168: Gcia. Administración del Riesgo | C168: DAVID DAZA | D168: SI | E168: C82062021 | F168: 93141808 | G168: En el marco del cumplimiento legal contemplado en el artículo 11 de la ley 1562 de 2012 del sistema general de riesgos laborales y el desarrollo del sistema de gestión en seguridad y salud en el trabajo en las empresa rama judicial afiliada a positiva compañia de seguros, a través de programas, campañas, acciones educativas y de prevención, dirigidas a promover el autocuidado, fomentar estilos de vida y trabajo saludables, prevención y control de accidentes, preparación y atención de emergencias, capacitación de los comités paritarios de seguridad y salud en el trabajo | H168: 1/02/2021 | I168: =MONTH(H168) -> 2 | J168: 30/11/2021 | K168: =_xlfn.DAYS(J168,H168)/30 -> 10.06666667 | L168: Invitación directa | M168: PromociónyPrevención | N168: 350015200 | O168: 350015200 | P168: NO | Q168: NA | R168: Gerencia de Abastecimiento Estratégico contratacion@positiva.gov.co PBX: (1)6502200 Ext: 10641 | S168: SI | T168: NO | U168: NO | V168: SI | W168: =IF(V168="SI","Pública clasificada","Pública") -> Pública clasificada | X168: =CONCATENATE(E168,"-","Tipo de información"," ",W168,"-",G168) -> C82062021-Tipo de información Pública clasificada-En el marco del cumplimiento legal contemplado en el artículo 11 de la ley 1562 de 2012 del sistema general de riesgos laborales y el desarrollo del sistema de gestión en seguridad y salud en el trabajo en las empresa rama judicial afiliada a positiva compañia de seguros, a través de programas, campañas, acciones educativas y de prevención, dirigidas a promover el autocuidado, fomentar estilos de vida y trabajo saludables, prevención y control de accidentes, preparación y atención de emergencias, capacitación de los comités paritarios de seguridad y salud en el trabajo
A169: Promoción y Prevención | B169: Gcia. Administración del Riesgo | D169: NO | E169: C78062021 | F169: 93141808 | G169: Cumplimiento legal contemplado en el parágrafo nº 2 del artículo 11 de la ley 1562 de 2012 el cual determina la necesidad de realizar actividades de promoción y prevención, el decreto compilado 1072 de 2015, resolución 0312 de 2019 en la que se definen los estándares mínimos del sgsst. la necesidad de continuidad de los servicios de pyp en la empresas afiliadas, en todas sus modalidades: educa, acompaña y comunica, teniendo en cuenta que el parágrafo nº 2 del artículo 11 de la ley 1562 de 2012 determina la necesidad de realizar actividades de promoción y prevención. para lograr la cobertura y brindar servicios de asesoría, a la empresas en la modalidad planes regulares afiliadas a positiva compañía de seguros sucursal coordinadora atlantico y punto de atencion san andres., en la vigencia 2021 | H169: 1/01/2021 | I169: =MONTH(H169) -> 1 | J169: 31/05/2021 | K169: =_xlfn.DAYS(J169,H169)/30 -> 5 | L169: Invitación directa | M169: PromociónyPrevención | N169: 310000000 | O169: 310000000 | P169: NO | Q169: NA | R169: Gerencia de Abastecimiento Estratégico contratacion@positiva.gov.co PBX: (1)6502200 Ext: 10641 | S169: SI | T169: NO | U169: NO | V169: SI | W169: =IF(V169="SI","Pública clasificada","Pública") -> Pública clasificada | X169: =CONCATENATE(E169,"-","Tipo de información"," ",W169,"-",G169) -> C78062021-Tipo de información Pública clasificada-Cumplimiento legal contemplado en el parágrafo nº 2 del artículo 11 de la ley 1562 de 2012 el cual determina la necesidad de realizar actividades de promoción y prevención, el decreto compilado 1072 de 2015, resolución 0312 de 2019 en la que se definen los estándares mínimos del sgsst. la necesidad de continuidad de los servicios de pyp en la empresas afiliadas, en todas sus modalidades: educa, acompaña y comunica, teniendo en cuenta que el parágrafo nº 2 del artículo 11 de la ley 1562 de 2012 determina la necesidad de realizar actividades de promoción y prevención. para lograr la cobertura y brindar servicios de asesoría, a la empresas en la modalidad planes regulares afiliadas a positiva compañía de seguros sucursal coordinadora atlantico y punto de atencion san andres., en la vigencia 2021
A170: Promoción y Prevención | B170: Gcia. Administración del Riesgo | C170: DAVID DAZA | D170: SI | E170: C77092021 | F170: 93141808 | G170: Servicios en empresas clientes representativos para la sucursales cundinamarca, bogota coordinadora y gerencia corredores como procuraduría, je jaimes, invima, entre otras, para la prestacion de actividades de asesoría en plan básico (programa estructura empresarial, programa de preparación y atención de emergencias, programa de prevención y protección colectiva e individual, programa promoción y prevención en salud, programa de investigación de incidencia y accidentes de trabajo), plan avanzado (programa de gestión para el control de incidentes y accidentes de trabajo, programa de gestión prevención de la enfermedad profesional) plan especializado (programas de vigilancia epidemiológico) plan gestión integral (sistema de gestión en s&so – oshas 18001) se proyectan para el próximo año 5.579 horas de ejecución | H170: 1/01/2021 | I170: =MONTH(H170) -> 1 | J170: 31/12/2021 | K170: =_xlfn.DAYS(J170,H170)/30 -> 12.13333333 | L170: Invitación directa | M170: PromociónyPrevención | N170: 300000000 | O170: 300000000 | P170: NO | Q170: NA | R170: Gerencia de Abastecimiento Estratégico contratacion@positiva.gov.co PBX: (1)6502200 Ext: 10641 | S170: SI | T170: NO | U170: NO | V170: SI | W170: =IF(V170="SI","Pública clasificada","Pública") -> Pública clasificada | X170: =CONCATENATE(E170,"-","Tipo de información"," ",W170,"-",G170) -> C77092021-Tipo de información Pública clasificada-Servicios en empresas clientes representativos para la sucursales cundinamarca, bogota coordinadora y gerencia corredores como procuraduría, je jaimes, invima, entre otras, para la prestacion de actividades de asesoría en plan básico (programa estructura empresarial, programa de preparación y atención de emergencias, programa de prevención y protección colectiva e individual, programa promoción y prevención en salud, programa de investigación de incidencia y accidentes de trabajo), plan avanzado (programa de gestión para el control de incidentes y accidentes de trabajo, programa de gestión prevención de la enfermedad profesional) plan especializado (programas de vigilancia epidemiológico) plan gestión integral (sistema de gestión en s&so – oshas 18001) se proyectan para el próximo año 5.579 horas de ejecución
A171: Promoción y Prevención | B171: Gcia. Administración del Riesgo | D171: NO | E171: C82302021 | F171: 93141808 | G171: Servicios de promocion y prevencion en seguridad e higiene industrial y medicina preventiva, especialmente en seguridad vial, dme y prevencion del riesgo psicosocial a nivel nacional | H171: 1/04/2021 | I171: =MONTH(H171) -> 4 | J171: 31/12/2021 | K171: =_xlfn.DAYS(J171,H171)/30 -> 9.133333333 | L171: Invitación directa | M171: PromociónyPrevención | N171: 300000000 | O171: 300000000 | P171: NO | Q171: NA | R171: Gerencia de Abastecimiento Estratégico contratacion@positiva.gov.co PBX: (1)6502200 Ext: 10641 | S171: SI | T171: NO | U171: NO | V171: SI | W171: =IF(V171="SI","Pública clasificada","Pública") -> Pública clasificada | X171: =CONCATENATE(E171,"-","Tipo de información"," ",W171,"-",G171) -> C82302021-Tipo de información Pública clasificada-Servicios de promocion y prevencion en seguridad e higiene industrial y medicina preventiva, especialmente en seguridad vial, dme y prevencion del riesgo psicosocial a nivel nacional
A172: Promoción y Prevención | B172: Gcia. Administración del Riesgo | C172: DAVID DAZA | D172: SI | E172: C82322021 | F172: 93141808 | G172: Conforme a los planes de trabajo concertados con la empresa cliente rama judicial, brindar servicios de asesoría, asistencia técnica, en la ejecución de actividades del programa plan avanzado - programa positivamentepara la intervención riesgos prioritarios resultado de diagnóstico riesgo psicosocial: gap 3 en el marco del sistema de vigilancia epidemiológica. | H172: 1/02/2021 | I172: =MONTH(H172) -> 2 | J172: 30/11/2021 | K172: =_xlfn.DAYS(J172,H172)/30 -> 10.06666667 | L172: Invitación directa | M172: PromociónyPrevención | N172: 300000000 | O172: 300000000 | P172: NO | Q172: NA | R172: Gerencia de Abastecimiento Estratégico contratacion@positiva.gov.co PBX: (1)6502200 Ext: 10641 | S172: SI | T172: NO | U172: NO | V172: SI | W172: =IF(V172="SI","Pública clasificada","Pública") -> Pública clasificada | X172: =CONCATENATE(E172,"-","Tipo de información"," ",W172,"-",G172) -> C82322021-Tipo de información Pública clasificada-Conforme a los planes de trabajo concertados con la empresa cliente rama judicial, brindar servicios de asesoría, asistencia técnica, en la ejecución de actividades del programa plan avanzado - programa positivamentepara la intervención riesgos prioritarios resultado de diagnóstico riesgo psicosocial: gap 3 en el marco del sistema de vigilancia epidemiológica.
A173: Promoción y Prevención | B173: Gcia. Administración del Riesgo | C173: DAVID DAZA | D173: SI | E173: C79072021 | F173: 93141808 | G173: "para dar cumplimiento a lo establecido en los artículos 2, 59 y 80 del decreto ley 1295 de 1994, el artículo 11 de la ley 1562 de 2012, el decreto compilado 1072 de 2015, resolución 0312 de 2019 y demás normas vigentes del sistema general de riesgos laboralesmediante la contratación de la empresa ingenieria, innovacion y gestion s.a.s, se pretende garantizar la continuidad con un ejecutor que conoce e implementa el modelo de gestión positiva suma, en las empresas afiliadas a la sucursal casanare lo que contribuye en el logro de los objetivos estratégicos de fidelización y la satisfacción de las necesidades y expectativas de los clientes con relación al cumplimiento de los planes de trabajo concertados. teniendo en cuenta que el aliado estratégico: ingenieria, innovacion y gestion s.a.s es una empresa enmarcada en un modelo de gestión del conocimiento y de altos estándares de calidad y servicio que nos permiten satisfacer a nuestros clientes en la prestación de servicios con actividades de, consultoría, asesoría, asistencia técnica y de formación en seguridad y salud en el trabajo, bajo el lineamiento de los programas de la estrategia crea del modelo de gestión positiva suma. en ingenieria, innovacion y gestion s.a.s la gestión integral de los riesgos organizacionales es parte inherente en nuestras operaciones, sin importar lo urgente o trascendental, es política de la organización la prevención y control de las lesiones, enfermedades de origen laboral, la contaminación ambiental y las no conformidades de calidad durante la prestación de sus servicios. dar continuidad con la asesoría, asistencia técnica y de formación en promoción y prevención de los sistemas de gestión en seguridad y salud en el trabajo de las empresas de la sucursal casanare, con el fin de garantizar el conocimiento y satisfacción del cliente así como incidir en el control de tasas de los accidentes de trabajo y enfermedades laborales. cumplir la promesa de valor pactada en los planes de trabajo que se ejecutaran en el año 2021 en las 240 empresas de planes regulares de la sucursal casanare de diversos sectores económicos; con un ejecutor que conozca y halla implementado el modelo de gestión positiva suma, en las empresas afiliadas a la sucursal casanare lo que contribuye en el logro de los objetivos estratégicos de fidelización y la satisfacción de las necesidades y expectativas de los clientes con relación al cumplimiento de los planes de trabajo concertados. brindar atención integral a las empresas de la sucursal casanare en la prestación de servicios de promoción y prevención para implementar, mejorar y/o mantener actividades de, asesoría, asistencia técnica y de formación en seguridad y salud en el trabajo del plan básico en los programas, (programa estructura empresarial, programa preparación y atención de emergencias, programa de prevención y protección colectiva e individual, programa promoción y prevención en salud, programa investigación de incidentes, accidentes de trabajo) avanzado en los programas de (programa gestión para el control de incidentes y accidentes de trabajo, programa gestión en la prevención de enfermedades profesionales, especializado en los programas de (programas de vigilancia epidemiológica) y gestión integral en los programas de (programa sistema de gestión en s&so - ohsas 18001) de la estrategia crea del modelo de gestión positiva suma de acuerdo a los planes de trabajo pactados con la empresas y cargados en el aplicativo gestpos, para empresas afiliadas a positiva compañía de seguros especialmente para empresas en la sucursal casanare de la zona oriente. dar asesoría y asistencia técnica para fortalecer la gestión de prevención de la accidentalidad y enfermedad laboral para la conservación de la salud de los trabajadores en las empresas en la modalidad de atención planes regulares de la zona oriente sucursal casanare." | H173: 1/01/2021 | I173: =MONTH(H173) -> 1 | J173: 30/11/2021 | K173: =_xlfn.DAYS(J173,H173)/30 -> 11.1 | L173: Invitación directa | M173: PromociónyPrevención | N173: 290000000 | O173: 290000000 | P173: NO | Q173: NA | R173: Gerencia de Abastecimiento Estratégico contratacion@positiva.gov.co PBX: (1)6502200 Ext: 10641 | S173: SI | T173: NO | U173: NO | V173: SI | W173: =IF(V173="SI","Pública clasificada","Pública") -> Pública clasificada | X173: =CONCATENATE(E173,"-","Tipo de información"," ",W173,"-",G173) -> C79072021-Tipo de información Pública clasificada-"para dar cumplimiento a lo establecido en los artículos 2, 59 y 80 del decreto ley 1295 de 1994, el artículo 11 de la ley 1562 de 2012, el decreto compilado 1072 de 2015, resolución 0312 de 2019 y demás normas vigentes del sistema general de riesgos laboralesmediante la contratación de la empresa ingenieria, innovacion y gestion s.a.s, se pretende garantizar la continuidad con un ejecutor que conoce e implementa el modelo de gestión positiva suma, en las empresas afiliadas a la sucursal casanare lo que contribuye en el logro de los objetivos estratégicos de fidelización y la satisfacción de las necesidades y expectativas de los clientes con relación al cumplimiento de los planes de trabajo concertados. teniendo en cuenta que el aliado estratégico: ingenieria, innovacion y gestion s.a.s es una empresa enmarcada en un modelo de gestión del conocimiento y de altos estándares de calidad y servicio que nos permiten satisfacer a nuestros clientes en la prestación de servicios con actividades de, consultoría, asesoría, asistencia técnica y de formación en seguridad y salud en el trabajo, bajo el lineamiento de los programas de la estrategia crea del modelo de gestión positiva suma. en ingenieria, innovacion y gestion s.a.s la gestión integral de los riesgos organizacionales es parte inherente en nuestras operaciones, sin importar lo urgente o trascendental, es política de la organización la prevención y control de las lesiones, enfermedades de origen laboral, la contaminación ambiental y las no conformidades de calidad durante la prestación de sus servicios. dar continuidad con la asesoría, asistencia técnica y de formación en promoción y prevención de los sistemas de gestión en seguridad y salud en el trabajo de las empresas de la sucursal casanare, con el fin de garantizar el conocimiento y satisfacción del cliente así como incidir en el control de tasas de los accidentes de trabajo y enfermedades laborales. cumplir la promesa de valor pactada en los planes de trabajo que se ejecutaran en el año 2021 en las 240 empresas de planes regulares de la sucursal casanare de diversos sectores económicos; con un ejecutor que conozca y halla implementado el modelo de gestión positiva suma, en las empresas afiliadas a la sucursal casanare lo que contribuye en el logro de los objetivos estratégicos de fidelización y la satisfacción de las necesidades y expectativas de los clientes con relación al cumplimiento de los planes de trabajo concertados. brindar atención integral a las empresas de la sucursal casanare en la prestación de servicios de promoción y prevención para implementar, mejorar y/o mantener actividades de, asesoría, asistencia técnica y de formación en seguridad y salud en el trabajo del plan básico en los programas, (programa estructura empresarial, programa preparación y atención de emergencias, programa de prevención y protección colectiva e individual, programa promoción y prevención en salud, programa investigación de incidentes, accidentes de trabajo) avanzado en los programas de (programa gestión para el control de incidentes y accidentes de trabajo, programa gestión en la prevención de enfermedades profesionales, especializado en los programas de (programas de vigilancia epidemiológica) y gestión integral en los programas de (programa sistema de gestión en s&so - ohsas 18001) de la estrategia crea del modelo de gestión positiva suma de acuerdo a los planes de trabajo pactados con la empresas y cargados en el aplicativo gestpos, para empresas afiliadas a positiva compañía de seguros especialmente para empresas en la sucursal casanare de la zona oriente. dar asesoría y asistencia técnica para fortalecer la gestión de prevención de la accidentalidad y enfermedad laboral para la conservación de la salud de los trabajadores en las empresas en la modalidad de atención planes regulares de la zona oriente sucursal casanare."
A174: Promoción y Prevención | B174: Gcia. Administración del Riesgo | C174: DAYANA BELTRAN | D174: SI | E174: C77082021 | F174: 93141808 | G174: Autoprestacion de servicios en promoción y prevención en empresa cliente agm salud cooperativa de trabajo asociado para la prestacion de actividades de asesorá en plan básico (programa estructura empresarial, programa de preparación y atención de emergencias, programa de prevención y protección colectiva e individual, programa promoción y prevención en salud, programa de investigación de incidencia y accidentes de trabajo), plan avanzado (programa de gestión para el control de incidentes y accidentes de trabajo, programa de gestión prevención de la enfermedad profesional) plan especializado (programas de vigilancia epidemiológico) plan gestión integral (sistema de gestión en s&so – oshas 18001) se proyectan para el próximo año 5.207 horas de ejecución | H174: 1/01/2021 | I174: =MONTH(H174) -> 1 | J174: 30/11/2021 | K174: =_xlfn.DAYS(J174,H174)/30 -> 11.1 | L174: Invitación directa | M174: PromociónyPrevención | N174: 280000000 | O174: 280000000 | P174: NO | Q174: NA | R174: Gerencia de Abastecimiento Estratégico contratacion@positiva.gov.co PBX: (1)6502200 Ext: 10641 | S174: SI | T174: NO | U174: NO | V174: SI | W174: =IF(V174="SI","Pública clasificada","Pública") -> Pública clasificada | X174: =CONCATENATE(E174,"-","Tipo de información"," ",W174,"-",G174) -> C77082021-Tipo de información Pública clasificada-Autoprestacion de servicios en promoción y prevención en empresa cliente agm salud cooperativa de trabajo asociado para la prestacion de actividades de asesorá en plan básico (programa estructura empresarial, programa de preparación y atención de emergencias, programa de prevención y protección colectiva e individual, programa promoción y prevención en salud, programa de investigación de incidencia y accidentes de trabajo), plan avanzado (programa de gestión para el control de incidentes y accidentes de trabajo, programa de gestión prevención de la enfermedad profesional) plan especializado (programas de vigilancia epidemiológico) plan gestión integral (sistema de gestión en s&so – oshas 18001) se proyectan para el próximo año 5.207 horas de ejecución
A175: Promoción y Prevención | B175: Gcia. Administración del Riesgo | C175: DAYANA BELTRAN | D175: SI | E175: C77552021 | F175: 93141808 | G175: De acuerdo con los planes de trabajo establecidos para la empresas mas representativas en la zona bogotá gerencia de corredores que requieren cobertura nacional se contemplan actividades de acompañamiento y en la modalidad de atención planes regulares en materia de preparación y atención de emergencias, prevención y protección colectiva e individual, investigación de incidentes y accidentes de trabajo y control de incidentes y accidentes de trabajo. | H175: 15/01/2021 | I175: =MONTH(H175) -> 1 | J175: 30/11/2021 | K175: =_xlfn.DAYS(J175,H175)/30 -> 10.63333333 | L175: Invitación directa | M175: PromociónyPrevención | N175: 280000000 | O175: 280000000 | P175: NO | Q175: NA | R175: Gerencia de Abastecimiento Estratégico contratacion@positiva.gov.co PBX: (1)6502200 Ext: 10641 | S175: SI | T175: NO | U175: NO | V175: SI | W175: =IF(V175="SI","Pública clasificada","Pública") -> Pública clasificada | X175: =CONCATENATE(E175,"-","Tipo de información"," ",W175,"-",G175) -> C77552021-Tipo de información Pública clasificada-De acuerdo con los planes de trabajo establecidos para la empresas mas representativas en la zona bogotá gerencia de corredores que requieren cobertura nacional se contemplan actividades de acompañamiento y en la modalidad de atención planes regulares en materia de preparación y atención de emergencias, prevención y protección colectiva e individual, investigación de incidentes y accidentes de trabajo y control de incidentes y accidentes de trabajo.
A176: Promoción y Prevención | B176: Gcia. Administración del Riesgo | C176: DIANA DIAZGRANADOS | D176: SI | E176: C77642021 | F176: 93141808 | G176: "de acuerdo con los planes de trabajo establecidos para las empresas afiliadas a positiva compañia de seguros en la zona bogotá; gerencia de corredores se contemplan actividades de asesoría estratégica orientada a plantear soluciones a los problemas que presenta la empresa en materia de seguridad y salud en el trabajo." | H176: 15/01/2021 | I176: =MONTH(H176) -> 1 | J176: 30/11/2021 | K176: =_xlfn.DAYS(J176,H176)/30 -> 10.63333333 | L176: Invitación directa | M176: PromociónyPrevención | N176: 280000000 | O176: 280000000 | P176: NO | Q176: NA | R176: Gerencia de Abastecimiento Estratégico contratacion@positiva.gov.co PBX: (1)6502200 Ext: 10641 | S176: SI | T176: NO | U176: NO | V176: SI | W176: =IF(V176="SI","Pública clasificada","Pública") -> Pública clasificada | X176: =CONCATENATE(E176,"-","Tipo de información"," ",W176,"-",G176) -> C77642021-Tipo de información Pública clasificada-"de acuerdo con los planes de trabajo establecidos para las empresas afiliadas a positiva compañia de seguros en la zona bogotá; gerencia de corredores se contemplan actividades de asesoría estratégica orientada a plantear soluciones a los problemas que presenta la empresa en materia de seguridad y salud en el trabajo."
A177: Promoción y Prevención | B177: Gcia. Administración del Riesgo | C177: DAVID DAZA | D177: SI | E177: C77242021 | F177: 93141808 | G177: Continuidad de servicios para los planes de trabajo de los clientes de la sucursal bogota cundinamarca, proveedor con contratos en vigencias pasadas y prestacion de servicios para los clientes de la sucursal, solicitud puntual de cuentas como sgs y servicios postales nacionales | H177: 15/01/2021 | I177: =MONTH(H177) -> 1 | J177: 30/11/2021 | K177: =_xlfn.DAYS(J177,H177)/30 -> 10.63333333 | L177: Invitación directa | M177: PromociónyPrevención | N177: 270000000 | O177: 270000000 | P177: NO | Q177: NA | R177: Gerencia de Abastecimiento Estratégico contratacion@positiva.gov.co PBX: (1)6502200 Ext: 10641 | S177: SI | T177: NO | U177: NO | V177: SI | W177: =IF(V177="SI","Pública clasificada","Pública") -> Pública clasificada | X177: =CONCATENATE(E177,"-","Tipo de información"," ",W177,"-",G177) -> C77242021-Tipo de información Pública clasificada-Continuidad de servicios para los planes de trabajo de los clientes de la sucursal bogota cundinamarca, proveedor con contratos en vigencias pasadas y prestacion de servicios para los clientes de la sucursal, solicitud puntual de cuentas como sgs y servicios postales nacionales
A178: Promoción y Prevención | B178: Gcia. Administración del Riesgo | C178: DAYANA BELTRAN | D178: SI | E178: C77542021 | F178: 93141808 | G178: "de acuerdo con los planes de trabajo establecidos para las empresas afiliadas a positiva compañia de seguros en la zona bogotá; gerencia de corredores se contemplan actividades de asesoría estratégica orientada a plantear soluciones a los problemas que presenta la empresa en materia de seguridad y salud en el trabajo con el fin de generar impacto en la disminucion de la siniestralidad." | H178: 15/01/2021 | I178: =MONTH(H178) -> 1 | J178: 30/11/2021 | K178: =_xlfn.DAYS(J178,H178)/30 -> 10.63333333 | L178: Invitación directa | M178: PromociónyPrevención | N178: 270000000 | O178: 270000000 | P178: NO | Q178: NA | R178: Gerencia de Abastecimiento Estratégico contratacion@positiva.gov.co PBX: (1)6502200 Ext: 10641 | S178: SI | T178: NO | U178: NO | V178: SI | W178: =IF(V178="SI","Pública clasificada","Pública") -> Pública clasificada | X178: =CONCATENATE(E178,"-","Tipo de información"," ",W178,"-",G178) -> C77542021-Tipo de información Pública clasificada-"de acuerdo con los planes de trabajo establecidos para las empresas afiliadas a positiva compañia de seguros en la zona bogotá; gerencia de corredores se contemplan actividades de asesoría estratégica orientada a plantear soluciones a los problemas que presenta la empresa en materia de seguridad y salud en el trabajo con el fin de generar impacto en la disminucion de la siniestralidad."
A179: Promoción y Prevención | B179: Gcia. Administración del Riesgo | C179: DIANA DIAZGRANADOS | D179: SI | E179: C77222021 | F179: 93141808 | G179: Continuidad de servicios para los planes de trabajo de los clientes de la zona bogota, proveedor con contratos en vigencias pasadas y prestacion de servicios para los clientes de la sucursal. contrato transversal para empresas de las sucursales bogota coordinadora, cundinamarca y corredores. | H179: 15/01/2021 | I179: =MONTH(H179) -> 1 | J179: 30/11/2021 | K179: =_xlfn.DAYS(J179,H179)/30 -> 10.63333333 | L179: Invitación directa | M179: PromociónyPrevención | N179: 260000000 | O179: 260000000 | P179: NO | Q179: NA | R179: Gerencia de Abastecimiento Estratégico contratacion@positiva.gov.co PBX: (1)6502200 Ext: 10641 | S179: SI | T179: NO | U179: NO | V179: SI | W179: =IF(V179="SI","Pública clasificada","Pública") -> Pública clasificada | X179: =CONCATENATE(E179,"-","Tipo de información"," ",W179,"-",G179) -> C77222021-Tipo de información Pública clasificada-Continuidad de servicios para los planes de trabajo de los clientes de la zona bogota, proveedor con contratos en vigencias pasadas y prestacion de servicios para los clientes de la sucursal. contrato transversal para empresas de las sucursales bogota coordinadora, cundinamarca y corredores.
A180: Promoción y Prevención | B180: Gcia. Administración del Riesgo | C180: DAVID DAZA | D180: SI | E180: C77252021 | F180: 93141808 | G180: Continuidad de servicios para los planes de trabajo de los clientes de la sucursal bogota cundinamarca, proveedor con contratos en vigencias pasadas y prestacion de servicios para los clientes de la sucursal, solicitud puntual de grupo empresarial sgs | H180: 15/01/2021 | I180: =MONTH(H180) -> 1 | J180: 30/11/2021 | K180: =_xlfn.DAYS(J180,H180)/30 -> 10.63333333 | L180: Invitación directa | M180: PromociónyPrevención | N180: 260000000 | O180: 260000000 | P180: NO | Q180: NA | R180: Gerencia de Abastecimiento Estratégico contratacion@positiva.gov.co PBX: (1)6502200 Ext: 10641 | S180: SI | T180: NO | U180: NO | V180: SI | W180: =IF(V180="SI","Pública clasificada","Pública") -> Pública clasificada | X180: =CONCATENATE(E180,"-","Tipo de información"," ",W180,"-",G180) -> C77252021-Tipo de información Pública clasificada-Continuidad de servicios para los planes de trabajo de los clientes de la sucursal bogota cundinamarca, proveedor con contratos en vigencias pasadas y prestacion de servicios para los clientes de la sucursal, solicitud puntual de grupo empresarial sgs
A181: Promoción y Prevención | B181: Gcia. Administración del Riesgo | D181: NO | E181: C79302021 | F181: 93141808 | G181: Servicios de promocion y prevencion zona santander suc boyaca | H181: 1/04/2021 | I181: =MONTH(H181) -> 4 | J181: 30/11/2021 | K181: =_xlfn.DAYS(J181,H181)/30 -> 8.1 | L181: Invitación directa | M181: PromociónyPrevención | N181: 255897000 | O181: 255897000 | P181: NO | Q181: NA | R181: Gerencia de Abastecimiento Estratégico contratacion@positiva.gov.co PBX: (1)6502200 Ext: 10641 | S181: SI | T181: NO | U181: NO | V181: SI | W181: =IF(V181="SI","Pública clasificada","Pública") -> Pública clasificada | X181: =CONCATENATE(E181,"-","Tipo de información"," ",W181,"-",G181) -> C79302021-Tipo de información Pública clasificada-Servicios de promocion y prevencion zona santander suc boyaca
A182: Promoción y Prevención | B182: Gcia. Administración del Riesgo | C182: OMAR VANEGAS | D182: SI | E182: C77572021 | F182: 93141808 | G182: De acuerdo con los planes de trabajo establecidos para la empresas mas representativas en la zona bogotá gerencia de corredores que requieren cobertura nacional se contemplan actividades de asesoría estratégica orientadas a plantear soluciones a los problemas que presenta la empresa en materia de seguridad y salud en el trabajo. | H182: 15/01/2021 | I182: =MONTH(H182) -> 1 | J182: 30/11/2021 | K182: =_xlfn.DAYS(J182,H182)/30 -> 10.63333333 | L182: Invitación directa | M182: PromociónyPrevención | N182: 250000000 | O182: 250000000 | P182: NO | Q182: NA | R182: Gerencia de Abastecimiento Estratégico contratacion@positiva.gov.co PBX: (1)6502200 Ext: 10641 | S182: SI | T182: NO | U182: NO | V182: SI | W182: =IF(V182="SI","Pública clasificada","Pública") -> Pública clasificada | X182: =CONCATENATE(E182,"-","Tipo de información"," ",W182,"-",G182) -> C77572021-Tipo de información Pública clasificada-De acuerdo con los planes de trabajo establecidos para la empresas mas representativas en la zona bogotá gerencia de corredores que requieren cobertura nacional se contemplan actividades de asesoría estratégica orientadas a plantear soluciones a los problemas que presenta la empresa en materia de seguridad y salud en el trabajo.
A183: Promoción y Prevención | B183: Gcia. Administración del Riesgo | C183: DAVID DAZA | D183: SI | E183: C76042021 | F183: 93141808 | G183: Este contrato está orientado a mantener las actividades de prevención dede los riesgos biomecánicos, actividades de asesoría y acompañamiento en estilo de vida saludable, actividades de vigilancia epidemiológica en la empresa cerrejón como cliente vip de la compañía. actividades asociadas a estilos de vida saludables. asesoría en el desarrollo e implementación del programa de vigilancia en disturbio musculo esquelético. asesoría en actividades relacionadas con estilo de vida saludable. asesoría en herramientas que les permitan contribuir con la promoción de los hábitos saludable- asesoría de médico deportólogo para prevención de lesiones deportivas. asesoría en estudio epidemiológico de salud. asesoría para el establecimiento de las condiciones de salud de los empleados de cerrejón con un estudio de autoreporte de condiciones de salud y trabajo. capacitaciones facilitadas por profesionales expertos en el tema específicos de acuerdo a las necesidades. | H183: 1/01/2021 | I183: =MONTH(H183) -> 1 | J183: 30/11/2021 | K183: =_xlfn.DAYS(J183,H183)/30 -> 11.1 | L183: Invitación directa | M183: PromociónyPrevención | N183: 240032000 | O183: 240032000 | P183: NO | Q183: NA | R183: Gerencia de Abastecimiento Estratégico contratacion@positiva.gov.co PBX: (1)6502200 Ext: 10641 | S183: SI | T183: NO | U183: NO | V183: SI | W183: =IF(V183="SI","Pública clasificada","Pública") -> Pública clasificada | X183: =CONCATENATE(E183,"-","Tipo de información"," ",W183,"-",G183) -> C76042021-Tipo de información Pública clasificada-Este contrato está orientado a mantener las actividades de prevención dede los riesgos biomecánicos, actividades de asesoría y acompañamiento en estilo de vida saludable, actividades de vigilancia epidemiológica en la empresa cerrejón como cliente vip de la compañía. actividades asociadas a estilos de vida saludables. asesoría en el desarrollo e implementación del programa de vigilancia en disturbio musculo esquelético. asesoría en actividades relacionadas con estilo de vida saludable. asesoría en herramientas que les permitan contribuir con la promoción de los hábitos saludable- asesoría de médico deportólogo para prevención de lesiones deportivas. asesoría en estudio epidemiológico de salud. asesoría para el establecimiento de las condiciones de salud de los empleados de cerrejón con un estudio de autoreporte de condiciones de salud y trabajo. capacitaciones facilitadas por profesionales expertos en el tema específicos de acuerdo a las necesidades.
A184: Promoción y Prevención | B184: Gcia. Administración del Riesgo | C184: EDGAR SARMIENTO | D184: SI | E184: C75022021 | F184: 93141808 | G184: Prestación de servicios integrales para brindar acompañamiento, asistencia técnica y capacitación en el sistema de gestión de seguridad y salud en el trabajo de confirmadad con el marco legal colombiano vigente para la prevención de riesgo laborales, con el equipo interdisciplinario, en empresas afiliadas a positiva compañía de seguros en la zona antioquia, que le sean asignadas al proveedor, también el inicio de nuevos clientes como el municipio de medellin | H184: 4/01/2021 | I184: =MONTH(H184) -> 1 | J184: 30/11/2021 | K184: =_xlfn.DAYS(J184,H184)/30 -> 11 | L184: Invitación directa | M184: PromociónyPrevención | N184: 240000000 | O184: 240000000 | P184: NO | Q184: NA | R184: Gerencia de Abastecimiento Estratégico contratacion@positiva.gov.co PBX: (1)6502200 Ext: 10641 | S184: SI | T184: NO | U184: NO | V184: SI | W184: =IF(V184="SI","Pública clasificada","Pública") -> Pública clasificada | X184: =CONCATENATE(E184,"-","Tipo de información"," ",W184,"-",G184) -> C75022021-Tipo de información Pública clasificada-Prestación de servicios integrales para brindar acompañamiento, asistencia técnica y capacitación en el sistema de gestión de seguridad y salud en el trabajo de confirmadad con el marco legal colombiano vigente para la prevención de riesgo laborales, con el equipo interdisciplinario, en empresas afiliadas a positiva compañía de seguros en la zona antioquia, que le sean asignadas al proveedor, también el inicio de nuevos clientes como el municipio de medellin
A185: Promoción y Prevención | B185: Gcia. Administración del Riesgo | D185: NO | E185: C80302021 | F185: 93141808 | G185: Prestación de servicios de promoción y prevención para implementar, mejorar y/o mantener actividades de, asesoría, asistencia técnica y de formación en seguridad y salud en el trabajo del plan básico en los programas, estructura empresarial, preparación y atención ante emergencias, programa de prevención y protección colectiva e individual, programa de promoción y prevención de la salud y programa de investigación de incidentes y accidentes de trabajo, plan avanzado programa de gestión para el control de incidentes y accidentes de trabajo y programa de gestión en la prevención de la enfermedad laboral, plan especializado programa de vigilancia epidemiológica y el plan de gestión integral sistemas integrados de gestión de la estrategia crea del modelo de gestion positiva suma de acuerdo a los planes de trabajo pactados con la empresas y cargados en el aplicativo gestpos, para empresas afiliadas a positiva compañía de seguros en la sucursal tipo a coordinadora valle. | H185: 1/01/2021 | I185: =MONTH(H185) -> 1 | J185: 30/11/2021 | K185: =_xlfn.DAYS(J185,H185)/30 -> 11.1 | L185: Invitación directa | M185: PromociónyPrevención | N185: 221996633 | O185: 221996633 | P185: NO | Q185: NA | R185: Gerencia de Abastecimiento Estratégico contratacion@positiva.gov.co PBX: (1)6502200 Ext: 10641 | S185: SI | T185: NO | U185: NO | V185: SI | W185: =IF(V185="SI","Pública clasificada","Pública") -> Pública clasificada | X185: =CONCATENATE(E185,"-","Tipo de información"," ",W185,"-",G185) -> C80302021-Tipo de información Pública clasificada-Prestación de servicios de promoción y prevención para implementar, mejorar y/o mantener actividades de, asesoría, asistencia técnica y de formación en seguridad y salud en el trabajo del plan básico en los programas, estructura empresarial, preparación y atención ante emergencias, programa de prevención y protección colectiva e individual, programa de promoción y prevención de la salud y programa de investigación de incidentes y accidentes de trabajo, plan avanzado programa de gestión para el control de incidentes y accidentes de trabajo y programa de gestión en la prevención de la enfermedad laboral, plan especializado programa de vigilancia epidemiológica y el plan de gestión integral sistemas integrados de gestión de la estrategia crea del modelo de gestion positiva suma de acuerdo a los planes de trabajo pactados con la empresas y cargados en el aplicativo gestpos, para empresas afiliadas a positiva compañía de seguros en la sucursal tipo a coordinadora valle.
A186: Promoción y Prevención | B186: Gcia. Administración del Riesgo | C186: OMAR VANEGAS | D186: SI | E186: C77792021 | F186: 93141808 | G186: Servicios de promocion y prevencion zona bogota suc corredores | H186: 1/02/2021 | I186: =MONTH(H186) -> 2 | J186: 30/11/2021 | K186: =_xlfn.DAYS(J186,H186)/30 -> 10.06666667 | L186: Invitación directa | M186: PromociónyPrevención | N186: 212280000 | O186: 212280000 | P186: NO | Q186: NA | R186: Gerencia de Abastecimiento Estratégico contratacion@positiva.gov.co PBX: (1)6502200 Ext: 10641 | S186: SI | T186: NO | U186: NO | V186: SI | W186: =IF(V186="SI","Pública clasificada","Pública") -> Pública clasificada | X186: =CONCATENATE(E186,"-","Tipo de información"," ",W186,"-",G186) -> C77792021-Tipo de información Pública clasificada-Servicios de promocion y prevencion zona bogota suc corredores
A187: Promoción y Prevención | B187: Gcia. Administración del Riesgo | D187: NO | E187: C77802021 | F187: 93141808 | G187: Servicios de promocion y prevencion zona bogota suc corredores | H187: 1/02/2021 | I187: =MONTH(H187) -> 2 | J187: 30/11/2021 | K187: =_xlfn.DAYS(J187,H187)/30 -> 10.06666667 | L187: Invitación directa | M187: PromociónyPrevención | N187: 212080000 | O187: 212080000 | P187: NO | Q187: NA | R187: Gerencia de Abastecimiento Estratégico contratacion@positiva.gov.co PBX: (1)6502200 Ext: 10641 | S187: SI | T187: NO | U187: NO | V187: SI | W187: =IF(V187="SI","Pública clasificada","Pública") -> Pública clasificada | X187: =CONCATENATE(E187,"-","Tipo de información"," ",W187,"-",G187) -> C77802021-Tipo de información Pública clasificada-Servicios de promocion y prevencion zona bogota suc corredores
A188: Promoción y Prevención | B188: Gcia. Administración del Riesgo | C188: DAVID DAZA | D188: SI | E188: C77022021 | F188: 93141808 | G188: Servicios en empresas clientes representativos para la sucursales cundinamarca, bogota coordinadora y gerencia corredores como el invima, alecser dapre, hospital universitario la samaritana, instituto nacional de salud, universidad nacional, invima, entre otras, para la prestacion de actividades en plan basico promoción y prevención en salud, plan avanzado- gestión de para la prevención de ep –plan especializado- programas de vigilancia epidemiológico se proyectan para el próximo año 2.344 horas de ejecución | H188: 1/01/2021 | I188: =MONTH(H188) -> 1 | J188: 30/11/2021 | K188: =_xlfn.DAYS(J188,H188)/30 -> 11.1 | L188: Invitación directa | M188: PromociónyPrevención | N188: 200000000 | O188: 200000000 | P188: NO | Q188: NA | R188: Gerencia de Abastecimiento Estratégico contratacion@positiva.gov.co PBX: (1)6502200 Ext: 10641 | S188: SI | T188: NO | U188: NO | V188: SI | W188: =IF(V188="SI","Pública clasificada","Pública") -> Pública clasificada | X188: =CONCATENATE(E188,"-","Tipo de información"," ",W188,"-",G188) -> C77022021-Tipo de información Pública clasificada-Servicios en empresas clientes representativos para la sucursales cundinamarca, bogota coordinadora y gerencia corredores como el invima, alecser dapre, hospital universitario la samaritana, instituto nacional de salud, universidad nacional, invima, entre otras, para la prestacion de actividades en plan basico promoción y prevención en salud, plan avanzado- gestión de para la prevención de ep –plan especializado- programas de vigilancia epidemiológico se proyectan para el próximo año 2.344 horas de ejecución
A189: Promoción y Prevención | B189: Gcia. Administración del Riesgo | D189: NO | E189: C77272021 | F189: 93141808 | G189: Prorroga y adiciòn al contrato 0136-2020 para dar continuidad de servicios para los planes de trabajo de los clientes de la zona bogota. contrato transversal para empresas de las sucursales bogota coordinadora, cundinamarca y corredores. | H189: 14/04/2020 | I189: =MONTH(H189) -> 4 | J189: 30/08/2021 | K189: =_xlfn.DAYS(J189,H189)/30 -> 16.76666667 | L189: Invitación directa | M189: PromociónyPrevención | N189: 200000000 | O189: 200000000 | P189: NO | Q189: NA | R189: Gerencia de Abastecimiento Estratégico contratacion@positiva.gov.co PBX: (1)6502200 Ext: 10641 | S189: SI | T189: NO | U189: NO | V189: SI | W189: =IF(V189="SI","Pública clasificada","Pública") -> Pública clasificada | X189: =CONCATENATE(E189,"-","Tipo de información"," ",W189,"-",G189) -> C77272021-Tipo de información Pública clasificada-Prorroga y adiciòn al contrato 0136-2020 para dar continuidad de servicios para los planes de trabajo de los clientes de la zona bogota. contrato transversal para empresas de las sucursales bogota coordinadora, cundinamarca y corredores.
A190: Promoción y Prevención | B190: Gcia. Administración del Riesgo | C190: DAVID DAZA | D190: SI | E190: C77502021 | F190: 93141808 | G190: "con el fin de dar cumplimiento a los planes de trabajo concertados en las empresas afiliadas a la zona bogotá; gerencia de corredores se contemplan actividades de acompañamiento y asesoria en la modalidad de atención planes regulares en materia de prevención y protección colectiva e individual, prevención de la enfermedad laboral y vigilancia epidemiológica orientados a la prevencion de los accidentes de trabajo y las enfermedades laborales." | H190: 15/01/2021 | I190: =MONTH(H190) -> 1 | J190: 30/11/2021 | K190: =_xlfn.DAYS(J190,H190)/30 -> 10.63333333 | L190: Invitación directa | M190: PromociónyPrevención | N190: 200000000 | O190: 200000000 | P190: NO | Q190: NA | R190: Gerencia de Abastecimiento Estratégico contratacion@positiva.gov.co PBX: (1)6502200 Ext: 10641 | S190: SI | T190: NO | U190: NO | V190: SI | W190: =IF(V190="SI","Pública clasificada","Pública") -> Pública clasificada | X190: =CONCATENATE(E190,"-","Tipo de información"," ",W190,"-",G190) -> C77502021-Tipo de información Pública clasificada-"con el fin de dar cumplimiento a los planes de trabajo concertados en las empresas afiliadas a la zona bogotá; gerencia de corredores se contemplan actividades de acompañamiento y asesoria en la modalidad de atención planes regulares en materia de prevención y protección colectiva e individual, prevención de la enfermedad laboral y vigilancia epidemiológica orientados a la prevencion de los accidentes de trabajo y las enfermedades laborales."
A191: Promoción y Prevención | B191: Gcia. Administración del Riesgo | C191: DAVID DAZA | D191: SI | E191: C77662021 | F191: 93141808 | G191: "de acuerdo con los planes de trabajo establecidos para las empresas afiliadas a positiva compañia de seguros en la zona bogotá; gerencia de corredores se contemplan actividades de asesoría estratégica orientada a plantear soluciones a los problemas que presenta la empresa en materia de seguridad y salud en el trabajo." | H191: 15/01/2021 | I191: =MONTH(H191) -> 1 | J191: 30/11/2021 | K191: =_xlfn.DAYS(J191,H191)/30 -> 10.63333333 | L191: Invitación directa | M191: PromociónyPrevención | N191: 200000000 | O191: 200000000 | P191: NO | Q191: NA | R191: Gerencia de Abastecimiento Estratégico contratacion@positiva.gov.co PBX: (1)6502200 Ext: 10641 | S191: SI | T191: NO | U191: NO | V191: SI | W191: =IF(V191="SI","Pública clasificada","Pública") -> Pública clasificada | X191: =CONCATENATE(E191,"-","Tipo de información"," ",W191,"-",G191) -> C77662021-Tipo de información Pública clasificada-"de acuerdo con los planes de trabajo establecidos para las empresas afiliadas a positiva compañia de seguros en la zona bogotá; gerencia de corredores se contemplan actividades de asesoría estratégica orientada a plantear soluciones a los problemas que presenta la empresa en materia de seguridad y salud en el trabajo."
A192: Promoción y Prevención | B192: Gcia. Administración del Riesgo | C192: DAVID DAZA | D192: SI | E192: C79192021 | F192: 93141808 | G192: Prestar servicios de asesoría, asistencia técnica y de formación en seguridad y salud en el trabajo, para actividades del plan básico (programa estructura empresarial, programa de preparación y atención de emergencias, programa prevención y proteción colectiva e individual, programa promoción y prevención en salud, programa investigación de incidentes, accidentes de trabajo) plan avanzado (programa gestión para el control de incidentes y accidentes de trabajo programa gestión en la prevención de enfermedades profesionales) plan especializado (vigilancia epidemiologica programa sistema de gestión en s&so - ohsas 18001) de la estrategia crea del modelo de gestion positiva suma, de acuerdo a los planes de trabajo pactados con las empresas y cargados en el aplicativo gestpos, para empresas afiliadas a positiva compañía de seguros en la sucursal boyacá, zona santander. | H192: 15/01/2021 | I192: =MONTH(H192) -> 1 | J192: 30/11/2021 | K192: =_xlfn.DAYS(J192,H192)/30 -> 10.63333333 | L192: Invitación directa | M192: PromociónyPrevención | N192: 200000000 | O192: 200000000 | P192: NO | Q192: NA | R192: Gerencia de Abastecimiento Estratégico contratacion@positiva.gov.co PBX: (1)6502200 Ext: 10641 | S192: SI | T192: NO | U192: NO | V192: SI | W192: =IF(V192="SI","Pública clasificada","Pública") -> Pública clasificada | X192: =CONCATENATE(E192,"-","Tipo de información"," ",W192,"-",G192) -> C79192021-Tipo de información Pública clasificada-Prestar servicios de asesoría, asistencia técnica y de formación en seguridad y salud en el trabajo, para actividades del plan básico (programa estructura empresarial, programa de preparación y atención de emergencias, programa prevención y proteción colectiva e individual, programa promoción y prevención en salud, programa investigación de incidentes, accidentes de trabajo) plan avanzado (programa gestión para el control de incidentes y accidentes de trabajo programa gestión en la prevención de enfermedades profesionales) plan especializado (vigilancia epidemiologica programa sistema de gestión en s&so - ohsas 18001) de la estrategia crea del modelo de gestion positiva suma, de acuerdo a los planes de trabajo pactados con las empresas y cargados en el aplicativo gestpos, para empresas afiliadas a positiva compañía de seguros en la sucursal boyacá, zona santander.
A193: Promoción y Prevención | B193: Gcia. Administración del Riesgo | C193: DAVID DAZA | D193: SI | E193: C82082021 | F193: 93141808 | G193: El contratista se compromete a realizar la prestación de servicios de promoción y prevención para implementar, mejorar y/o mantener actividades de asesoría técnica del sistema de gestión de seguridad y salud en trabajo, con base en los programas de la estrategia positiva crea del modelo de gestión positiva suma, en plan basico promoción y prevención en salud, plan avanzado – programa gestión en la prevención de enfermedades profesionales y plan especializado programas de vigilancia epidemiológica, para los servidores de la fiscalía general de la nación a nivel nacional | H193: 1/01/2021 | I193: =MONTH(H193) -> 1 | J193: 31/03/2021 | K193: =_xlfn.DAYS(J193,H193)/30 -> 2.966666667 | L193: Invitación directa | M193: PromociónyPrevención | N193: 200000000 | O193: 200000000 | P193: NO | Q193: NA | R193: Gerencia de Abastecimiento Estratégico contratacion@positiva.gov.co PBX: (1)6502200 Ext: 10641 | S193: SI | T193: NO | U193: NO | V193: SI | W193: =IF(V193="SI","Pública clasificada","Pública") -> Pública clasificada | X193: =CONCATENATE(E193,"-","Tipo de información"," ",W193,"-",G193) -> C82082021-Tipo de información Pública clasificada-El contratista se compromete a realizar la prestación de servicios de promoción y prevención para implementar, mejorar y/o mantener actividades de asesoría técnica del sistema de gestión de seguridad y salud en trabajo, con base en los programas de la estrategia positiva crea del modelo de gestión positiva suma, en plan basico promoción y prevención en salud, plan avanzado – programa gestión en la prevención de enfermedades profesionales y plan especializado programas de vigilancia epidemiológica, para los servidores de la fiscalía general de la nación a nivel nacional
A194: Promoción y Prevención | B194: Gcia. Administración del Riesgo | D194: NO | E194: C82102021 | F194: 93141808 | G194: Servicios de medicina preventiva y del trabajo, valoracion del riesgo cardiovascular para la alta direccion a nivel nacional | H194: 2/01/2021 | I194: =MONTH(H194) -> 1 | J194: 31/12/2021 | K194: =_xlfn.DAYS(J194,H194)/30 -> 12.1 | L194: Invitación directa | M194: PromociónyPrevención | N194: 200000000 | O194: 200000000 | P194: NO | Q194: NA | R194: Gerencia de Abastecimiento Estratégico contratacion@positiva.gov.co PBX: (1)6502200 Ext: 10641 | S194: SI | T194: NO | U194: NO | V194: SI | W194: =IF(V194="SI","Pública clasificada","Pública") -> Pública clasificada | X194: =CONCATENATE(E194,"-","Tipo de información"," ",W194,"-",G194) -> C82102021-Tipo de información Pública clasificada-Servicios de medicina preventiva y del trabajo, valoracion del riesgo cardiovascular para la alta direccion a nivel nacional
A195: Promoción y Prevención | B195: Gcia. Administración del Riesgo | C195: OMAR VANEGAS | D195: SI | E195: C80182021 | F195: 93141808 | G195: Realizar la prestación de servicios mediante actividades de promoción y prevención para implementar, mejorar y/o mantener actividades de asesoría, asistencia técnica y de formación en seguridad y salud en el trabajo del plan basico en los programas estructura empresarial, preparación y atención ante emergencias, programa de prevención y protección colectiva e individual, programa de investigación de incidentes y accidentes de trabajo, plan avanzado programa de gestión para el control de incidentes y accidentes de trabajo y el plan de gestion integral sistemas integrados de gestión de la estrategia crea del modelo de gestión positiva suma de acuerdo a los planes de trabajo pactados con las empresas y cargados en el aplicativo gestpos, especialmente para empresas afiliadas a positiva compañía de seguros en la sucursal tipo a coordinadora valle. | H195: 1/01/2021 | I195: =MONTH(H195) -> 1 | J195: 30/11/2021 | K195: =_xlfn.DAYS(J195,H195)/30 -> 11.1 | L195: Invitación directa | M195: PromociónyPrevención | N195: 200000000 | O195: 200000000 | P195: NO | Q195: NA | R195: Gerencia de Abastecimiento Estratégico contratacion@positiva.gov.co PBX: (1)6502200 Ext: 10641 | S195: SI | T195: NO | U195: NO | V195: SI | W195: =IF(V195="SI","Pública clasificada","Pública") -> Pública clasificada | X195: =CONCATENATE(E195,"-","Tipo de información"," ",W195,"-",G195) -> C80182021-Tipo de información Pública clasificada-Realizar la prestación de servicios mediante actividades de promoción y prevención para implementar, mejorar y/o mantener actividades de asesoría, asistencia técnica y de formación en seguridad y salud en el trabajo del plan basico en los programas estructura empresarial, preparación y atención ante emergencias, programa de prevención y protección colectiva e individual, programa de investigación de incidentes y accidentes de trabajo, plan avanzado programa de gestión para el control de incidentes y accidentes de trabajo y el plan de gestion integral sistemas integrados de gestión de la estrategia crea del modelo de gestión positiva suma de acuerdo a los planes de trabajo pactados con las empresas y cargados en el aplicativo gestpos, especialmente para empresas afiliadas a positiva compañía de seguros en la sucursal tipo a coordinadora valle.
A196: Promoción y Prevención | B196: Gcia. Administración del Riesgo | C196: DAVID DAZA | D196: SI | E196: C79262021 | F196: 93141808 | G196: Prestación de servicios de promoción y prevención para implementar, mejorar y/o mantener actividades de, asesoría, asistencia técnica y de formación en seguridad y salud en el trabajo de la estrategia crea del modelo de gestion positiva suma, de acuerdo a los planes de trabajo pactados con la empresas y cargados en el aplicativo gestpos, en apoyo a las principales actividades especializadas en materia de seguridad y salud en el trabajo, para empresas afiliadas a positiva compañía de seguros para empresas en la sucursal santander de la zona santander | H196: 1/01/2021 | I196: =MONTH(H196) -> 1 | J196: 30/11/2021 | K196: =_xlfn.DAYS(J196,H196)/30 -> 11.1 | L196: Invitación directa | M196: PromociónyPrevención | N196: 200000000 | O196: 200000000 | P196: NO | Q196: NA | R196: Gerencia de Abastecimiento Estratégico contratacion@positiva.gov.co PBX: (1)6502200 Ext: 10641 | S196: SI | T196: NO | U196: NO | V196: SI | W196: =IF(V196="SI","Pública clasificada","Pública") -> Pública clasificada | X196: =CONCATENATE(E196,"-","Tipo de información"," ",W196,"-",G196) -> C79262021-Tipo de información Pública clasificada-Prestación de servicios de promoción y prevención para implementar, mejorar y/o mantener actividades de, asesoría, asistencia técnica y de formación en seguridad y salud en el trabajo de la estrategia crea del modelo de gestion positiva suma, de acuerdo a los planes de trabajo pactados con la empresas y cargados en el aplicativo gestpos, en apoyo a las principales actividades especializadas en materia de seguridad y salud en el trabajo, para empresas afiliadas a positiva compañía de seguros para empresas en la sucursal santander de la zona santander
A197: Promoción y Prevención | B197: Gcia. Administración del Riesgo | D197: NO | E197: C79292021 | F197: 93141808 | G197: Servicios de promocion y prevencion zona santander suc boyaca | H197: 1/04/2021 | I197: =MONTH(H197) -> 4 | J197: 30/11/2021 | K197: =_xlfn.DAYS(J197,H197)/30 -> 8.1 | L197: Invitación directa | M197: PromociónyPrevención | N197: 199800000 | O197: 199800000 | P197: NO | Q197: NA | R197: Gerencia de Abastecimiento Estratégico contratacion@positiva.gov.co PBX: (1)6502200 Ext: 10641 | S197: SI | T197: NO | U197: NO | V197: SI | W197: =IF(V197="SI","Pública clasificada","Pública") -> Pública clasificada | X197: =CONCATENATE(E197,"-","Tipo de información"," ",W197,"-",G197) -> C79292021-Tipo de información Pública clasificada-Servicios de promocion y prevencion zona santander suc boyaca
A198: Promoción y Prevención | B198: Gcia. Administración del Riesgo | C198: DAVID DAZA | D198: SI | E198: C76052021 | F198: 93141808 | G198: "este contrato está orientado a mantener las actividades de prevención de de los riesgo psicosociales en la empresa cerrejón como cliente vip de la compañía. asesoría por proyecto para la intervención delriesgo psicosocial en actividades de mineria a cielo abierto. asesoría proyecto de intervención psicocosocial temprano en el caso de eventos de salud asociados a trastornos músculo esqueléticos asistecia técnica para orientar el acompañamiento psicosocial a las áreas (jefes). realización de talleres de sueño y fatiga (teórico/práctco) a grupos de interés. asesoría para la implementación de los gas's identificados en la revisión documental del sve. asesoría técnica al programa cerrejón en movimiento con enfoque en la salud mental, manejo de estrés y conciencia plena. asesoría para la implementación de una campaña lúdica de prevención del consumo de ""alcohol y drogas"". asesoría para la implementación de una campaña de ""conservación auditiva"" en la operación. asesoría para estudio del impacto de la ""noctunidad"" en la situación de salud de los empleados de cerrejón." | H198: 1/01/2021 | I198: =MONTH(H198) -> 1 | J198: 30/11/2021 | K198: =_xlfn.DAYS(J198,H198)/30 -> 11.1 | L198: Invitación directa | M198: PromociónyPrevención | N198: 192576000 | O198: 192576000 | P198: NO | Q198: NA | R198: Gerencia de Abastecimiento Estratégico contratacion@positiva.gov.co PBX: (1)6502200 Ext: 10641 | S198: SI | T198: NO | U198: NO | V198: SI | W198: =IF(V198="SI","Pública clasificada","Pública") -> Pública clasificada | X198: =CONCATENATE(E198,"-","Tipo de información"," ",W198,"-",G198) -> C76052021-Tipo de información Pública clasificada-"este contrato está orientado a mantener las actividades de prevención de de los riesgo psicosociales en la empresa cerrejón como cliente vip de la compañía. asesoría por proyecto para la intervención delriesgo psicosocial en actividades de mineria a cielo abierto. asesoría proyecto de intervención psicocosocial temprano en el caso de eventos de salud asociados a trastornos músculo esqueléticos asistecia técnica para orientar el acompañamiento psicosocial a las áreas (jefes). realización de talleres de sueño y fatiga (teórico/práctco) a grupos de interés. asesoría para la implementación de los gas's identificados en la revisión documental del sve. asesoría técnica al programa cerrejón en movimiento con enfoque en la salud mental, manejo de estrés y conciencia plena. asesoría para la implementación de una campaña lúdica de prevención del consumo de ""alcohol y drogas"". asesoría para la implementación de una campaña de ""conservación auditiva"" en la operación. asesoría para estudio del impacto de la ""noctunidad"" en la situación de salud de los empleados de cerrejón."
A199: Promoción y Prevención | B199: Gcia. Administración del Riesgo | C199: DAVID DAZA | D199: SI | E199: C77212021 | F199: 93141808 | G199: Continuidad de servicios para los planes de trabajo de los clientes de la zona bogota, proveedor con contratos en vigencias pasadas y prestacion de servicios para los clientes de la zona, en especial del grupo bureau veritas. contrato transversal para empresas de las sucursales bogota coordinadora, cundinamarca y corredores. | H199: 15/01/2021 | I199: =MONTH(H199) -> 1 | J199: 30/11/2021 | K199: =_xlfn.DAYS(J199,H199)/30 -> 10.63333333 | L199: Invitación directa | M199: PromociónyPrevención | N199: 186867644 | O199: 186867644 | P199: NO | Q199: NA | R199: Gerencia de Abastecimiento Estratégico contratacion@positiva.gov.co PBX: (1)6502200 Ext: 10641 | S199: SI | T199: NO | U199: NO | V199: SI | W199: =IF(V199="SI","Pública clasificada","Pública") -> Pública clasificada | X199: =CONCATENATE(E199,"-","Tipo de información"," ",W199,"-",G199) -> C77212021-Tipo de información Pública clasificada-Continuidad de servicios para los planes de trabajo de los clientes de la zona bogota, proveedor con contratos en vigencias pasadas y prestacion de servicios para los clientes de la zona, en especial del grupo bureau veritas. contrato transversal para empresas de las sucursales bogota coordinadora, cundinamarca y corredores.
A200: Promoción y Prevención | B200: Gcia. Administración del Riesgo | C200: DAVID DAZA | D200: SI | E200: C77202021 | F200: 93141808 | G200: Continuidad de servicios para los planes de trabajo de los clientes de la sucursal bogota cundinamarca, proveedor con contratos en vigencias pasadas y prestacion de servicios para los clientes de la sucursal. | H200: 15/01/2021 | I200: =MONTH(H200) -> 1 | J200: 30/11/2021 | K200: =_xlfn.DAYS(J200,H200)/30 -> 10.63333333 | L200: Invitación directa | M200: PromociónyPrevención | N200: 180000000 | O200: 180000000 | P200: NO | Q200: NA | R200: Gerencia de Abastecimiento Estratégico contratacion@positiva.gov.co PBX: (1)6502200 Ext: 10641 | S200: SI | T200: NO | U200: NO | V200: SI | W200: =IF(V200="SI","Pública clasificada","Pública") -> Pública clasificada | X200: =CONCATENATE(E200,"-","Tipo de información"," ",W200,"-",G200) -> C77202021-Tipo de información Pública clasificada-Continuidad de servicios para los planes de trabajo de los clientes de la sucursal bogota cundinamarca, proveedor con contratos en vigencias pasadas y prestacion de servicios para los clientes de la sucursal.
A201: Promoción y Prevención | B201: Gcia. Administración del Riesgo | C201: DAVID DAZA | D201: SI | E201: C77412021 | F201: 93141808 | G201: Continuidad de servicios de higiene industrial para los planes de trabajo de los clientes de la sucursal bogota cundinamarca, proveedor con contratos en vigencias pasadas y prestacion de servicios para los clientes de la sucursal, solicitud puntual de grupo empresarial sgs | H201: 15/01/2021 | I201: =MONTH(H201) -> 1 | J201: 30/11/2021 | K201: =_xlfn.DAYS(J201,H201)/30 -> 10.63333333 | L201: Invitación directa | M201: PromociónyPrevención | N201: 180000000 | O201: 180000000 | P201: NO | Q201: NA | R201: Gerencia de Abastecimiento Estratégico contratacion@positiva.gov.co PBX: (1)6502200 Ext: 10641 | S201: SI | T201: NO | U201: NO | V201: SI | W201: =IF(V201="SI","Pública clasificada","Pública") -> Pública clasificada | X201: =CONCATENATE(E201,"-","Tipo de información"," ",W201,"-",G201) -> C77412021-Tipo de información Pública clasificada-Continuidad de servicios de higiene industrial para los planes de trabajo de los clientes de la sucursal bogota cundinamarca, proveedor con contratos en vigencias pasadas y prestacion de servicios para los clientes de la sucursal, solicitud puntual de grupo empresarial sgs
A202: Promoción y Prevención | B202: Gcia. Administración del Riesgo | C202: DAYANA BELTRAN | D202: SI | E202: C77562021 | F202: 93141808 | G202: "con el fin de dar cumplimiento a los planes de trabajo concertados en las empresas afiliadas a la zona bogotá; gerencia de corredores se contemplan actividades de acompañamiento y asesoria en la modalidad de atención planes regulares en materia de preparación y atención de emergencias, prevención y protección colectiva e individual, investigación de incidentes y accidentes de trabajo y control de incidentes y accidentes de trabajo generando impacto en la disminución de la siniestralidad." | H202: 15/01/2021 | I202: =MONTH(H202) -> 1 | J202: 30/11/2021 | K202: =_xlfn.DAYS(J202,H202)/30 -> 10.63333333 | L202: Invitación directa | M202: PromociónyPrevención | N202: 180000000 | O202: 180000000 | P202: NO | Q202: NA | R202: Gerencia de Abastecimiento Estratégico contratacion@positiva.gov.co PBX: (1)6502200 Ext: 10641 | S202: SI | T202: NO | U202: NO | V202: SI | W202: =IF(V202="SI","Pública clasificada","Pública") -> Pública clasificada | X202: =CONCATENATE(E202,"-","Tipo de información"," ",W202,"-",G202) -> C77562021-Tipo de información Pública clasificada-"con el fin de dar cumplimiento a los planes de trabajo concertados en las empresas afiliadas a la zona bogotá; gerencia de corredores se contemplan actividades de acompañamiento y asesoria en la modalidad de atención planes regulares en materia de preparación y atención de emergencias, prevención y protección colectiva e individual, investigación de incidentes y accidentes de trabajo y control de incidentes y accidentes de trabajo generando impacto en la disminución de la siniestralidad."
A203: Promoción y Prevención | B203: Gcia. Administración del Riesgo | C203: DAYANA BELTRAN | D203: SI | E203: C75052021 | F203: 93141808 | G203: Prestación de servicios integrales para brindar acompañamiento, asistencia técnica y capacitación en el sistema de gestión de seguridad y salud en el trabajo de confirmadad con el marco legal colombiano vigente para la prevención de riesgo laborales, con el equipo interdisciplinario, en empresas afiliadas a positiva compañía de seguros en la zona antioquia, que le sean asignadas al proveedor, también el inicio de nuevos clientes como el municipio de medellin | H203: 4/01/2021 | I203: =MONTH(H203) -> 1 | J203: 30/11/2021 | K203: =_xlfn.DAYS(J203,H203)/30 -> 11 | L203: Invitación directa | M203: PromociónyPrevención | N203: 170000000 | O203: 170000000 | P203: NO | Q203: NA | R203: Gerencia de Abastecimiento Estratégico contratacion@positiva.gov.co PBX: (1)6502200 Ext: 10641 | S203: SI | T203: NO | U203: NO | V203: SI | W203: =IF(V203="SI","Pública clasificada","Pública") -> Pública clasificada | X203: =CONCATENATE(E203,"-","Tipo de información"," ",W203,"-",G203) -> C75052021-Tipo de información Pública clasificada-Prestación de servicios integrales para brindar acompañamiento, asistencia técnica y capacitación en el sistema de gestión de seguridad y salud en el trabajo de confirmadad con el marco legal colombiano vigente para la prevención de riesgo laborales, con el equipo interdisciplinario, en empresas afiliadas a positiva compañía de seguros en la zona antioquia, que le sean asignadas al proveedor, también el inicio de nuevos clientes como el municipio de medellin
A204: Promoción y Prevención | B204: Gcia. Administración del Riesgo | C204: OMAR VANEGAS | D204: SI | E204: C77622021 | F204: 93141808 | G204: "de acuerdo con los planes de trabajo establecidos para las empresas afiliadas a positiva compañia de seguros en la zona bogotá; gerencia de corredores se llevaran acabo programas de vigilancia epidemiológica orientados a generar un impacto positivo y mejorar las condiciones de salud de los trabajadores." | H204: 15/01/2021 | I204: =MONTH(H204) -> 1 | J204: 30/11/2021 | K204: =_xlfn.DAYS(J204,H204)/30 -> 10.63333333 | L204: Invitación directa | M204: PromociónyPrevención | N204: 170000000 | O204: 170000000 | P204: NO | Q204: NA | R204: Gerencia de Abastecimiento Estratégico contratacion@positiva.gov.co PBX: (1)6502200 Ext: 10641 | S204: SI | T204: NO | U204: NO | V204: SI | W204: =IF(V204="SI","Pública clasificada","Pública") -> Pública clasificada | X204: =CONCATENATE(E204,"-","Tipo de información"," ",W204,"-",G204) -> C77622021-Tipo de información Pública clasificada-"de acuerdo con los planes de trabajo establecidos para las empresas afiliadas a positiva compañia de seguros en la zona bogotá; gerencia de corredores se llevaran acabo programas de vigilancia epidemiológica orientados a generar un impacto positivo y mejorar las condiciones de salud de los trabajadores."
A205: Promoción y Prevención | B205: Gcia. Administración del Riesgo | C205: DAYANA BELTRAN | D205: SI | E205: C82172021 | F205: 93141808 | G205: De acuerdo a la identificacion de los riesgos presentes en la fiscalia general de la nacion,a partir de lo cual el riesgo psicosocial se considera prioritario, se hace necesario contar con servicios de asesoria especializada orientada a brindar acciones de promocion y prevencion primaria/secundaria, a traves de la identificacion, prevencion e intervencion de factores de riesgos psicosociales, asociados a conductas de consumo de sustancias psicoactivas y prevencion del suicidio a nivel nacional. para tal fin, se requiere mantener la asesoria especializada en la anticipacion a comportamientos adictivos y prevencion de la conducta suicida. resolucion 4886/2018 acorde a los estudios nacionales que se han adelantado en cuanto a la salud mental, resulta prioritario fortalecer las acciones de prevencion frente al consumo abusivo de alcohol y otras sustancias, toda vez que se ha identificado que este mecanismo se usa para afrontar situaciones estresantes, lo anterior sumado al firme proposito de la fiscalia general de la nacion por implementar un programa de prevencion del consumo de alcohol, tabaco y sustancias psicoactivas | H205: 2/02/2021 | I205: =MONTH(H205) -> 2 | J205: 31/12/2021 | K205: =_xlfn.DAYS(J205,H205)/30 -> 11.06666667 | L205: Invitación directa | M205: PromociónyPrevención | N205: 170000000 | O205: 170000000 | P205: NO | Q205: NA | R205: Gerencia de Abastecimiento Estratégico contratacion@positiva.gov.co PBX: (1)6502200 Ext: 10641 | S205: SI | T205: NO | U205: NO | V205: SI | W205: =IF(V205="SI","Pública clasificada","Pública") -> Pública clasificada | X205: =CONCATENATE(E205,"-","Tipo de información"," ",W205,"-",G205) -> C82172021-Tipo de información Pública clasificada-De acuerdo a la identificacion de los riesgos presentes en la fiscalia general de la nacion,a partir de lo cual el riesgo psicosocial se considera prioritario, se hace necesario contar con servicios de asesoria especializada orientada a brindar acciones de promocion y prevencion primaria/secundaria, a traves de la identificacion, prevencion e intervencion de factores de riesgos psicosociales, asociados a conductas de consumo de sustancias psicoactivas y prevencion del suicidio a nivel nacional. para tal fin, se requiere mantener la asesoria especializada en la anticipacion a comportamientos adictivos y prevencion de la conducta suicida. resolucion 4886/2018 acorde a los estudios nacionales que se han adelantado en cuanto a la salud mental, resulta prioritario fortalecer las acciones de prevencion frente al consumo abusivo de alcohol y otras sustancias, toda vez que se ha identificado que este mecanismo se usa para afrontar situaciones estresantes, lo anterior sumado al firme proposito de la fiscalia general de la nacion por implementar un programa de prevencion del consumo de alcohol, tabaco y sustancias psicoactivas
A206: Promoción y Prevención | B206: Gcia. Administración del Riesgo | C206: DIANA DIAZGRANADOS | D206: SI | E206: C82292021 | F206: 93141808 | G206: La fiscalia general de la nacion (fgn) para cumplir con su objeto misional relacionado con la administracion de justicia tiene dispuestas a nivel nacional, varias unidades o centros de atencion a usuarios que dentro de una investigacion criminal pueden ser victimas, victimarios o testigos. quienes interactuan con usuarios regularmente son investigadores criminales, asistentes de fiscal, fiscales y otros servidores de quienes se demanda la adecuada gestion de sus emociones de modo que su trabajo produzca los resultados esperados. por lo anterior, se hace necesario contar con servicios de asesoria especializada para la prevencion e intervencion del riesgo psicosocial con fines de promover la salud mental de los servidores de la entidad cuya tarea implica alta demanda emocional. a traves de los servicios de asesoria se busca orientar a los servidores en la adquision de herramientas que les permitan desarrollar el trabajo emocional sin afectar su salud mental | H206: 2/02/2021 | I206: =MONTH(H206) -> 2 | J206: 31/12/2021 | K206: =_xlfn.DAYS(J206,H206)/30 -> 11.06666667 | L206: Invitación directa | M206: PromociónyPrevención | N206: 170000000 | O206: 170000000 | P206: NO | Q206: NA | R206: Gerencia de Abastecimiento Estratégico contratacion@positiva.gov.co PBX: (1)6502200 Ext: 10641 | S206: SI | T206: NO | U206: NO | V206: SI | W206: =IF(V206="SI","Pública clasificada","Pública") -> Pública clasificada | X206: =CONCATENATE(E206,"-","Tipo de información"," ",W206,"-",G206) -> C82292021-Tipo de información Pública clasificada-La fiscalia general de la nacion (fgn) para cumplir con su objeto misional relacionado con la administracion de justicia tiene dispuestas a nivel nacional, varias unidades o centros de atencion a usuarios que dentro de una investigacion criminal pueden ser victimas, victimarios o testigos. quienes interactuan con usuarios regularmente son investigadores criminales, asistentes de fiscal, fiscales y otros servidores de quienes se demanda la adecuada gestion de sus emociones de modo que su trabajo produzca los resultados esperados. por lo anterior, se hace necesario contar con servicios de asesoria especializada para la prevencion e intervencion del riesgo psicosocial con fines de promover la salud mental de los servidores de la entidad cuya tarea implica alta demanda emocional. a traves de los servicios de asesoria se busca orientar a los servidores en la adquision de herramientas que les permitan desarrollar el trabajo emocional sin afectar su salud mental
... 856 more rows

Sheet Hoja5 (hidden)
A3: Suma de Valor total estimado
A4: DEPENDENCIA | B4: Total
A5: ESTRATEGIA | B5: 694295625
A6: ESTRATEGIA, TALENTO HUMANO y RIESGOS | B6: 97086437
A7: FINANCIERA Y ADMON | B7: 8752267945
A8: NEGOCIOS | B8: 7381429080
A9: NEGOCIOS Y FINANCIERA Y ADMON | B9: 269479593
A10: NEGOCIOS Y SECRETARIA GENERAL | B10: 110000000
A11: NEGOCIOS, SECRETARIA GENERAL y PYP | B11: 6589650515
A12: OPERACIONES | B12: 38366883401
A13: OTI | B13: 1.63261224e+10
A14: PYP | B14: 120411187909
A15: RIESGOS | B15: 68348301
A16: SECRETARIA GENERAL Y JURIDICA | B16: 6077135191
A17: TÉCNICA | B17: 1132517831
A18: Total general | B18: 2.062764042e+11
